Ref No,Fund Type,Dept,Cost Centre Description    ,Description    ,Creditor Name    ,GL Code Net Amount,Payment date        
2,Revenue,CAHD,Central - Commissioned Services,Permanent Residential,1 St Georges House,13333.52, 15-Nov-2022
3,Revenue,CAHD,Central - Commissioned Services,Fees & Charges Income - General,1 St Georges House,-438.80, 15-Nov-2022
4,Revenue,CAHD,CSC - Care Leavers Support Costs,Client Transport,1625 Independent People,6709.61, 25-Nov-2022
5,Revenue,CAHD,CSC - LAC Housing Support Grants,Grants to Voluntary Bodies,1625 Independent People,3343.00, 14-Nov-2022
6,Revenue,CAHD,Supporting People Programme,Grants to Voluntary Bodies,1625 Independent People,15622.00, 01-Nov-2022
7,Revenue,CAHD,Supporting People Programme,Grants to Voluntary Bodies,1625 Independent People,15629.08, 01-Nov-2022
8,Revenue,CAHD,CSC - Asylum Seekers - Unaccompanied,Independent Living,16Pluscare Support Solutions,18883.34, 11-Nov-2022
9,Revenue,CAHD,CSC - Care Leavers Independent Living,Independent Living,16Pluscare Support Solutions,11707.34, 09-Nov-2022
10,Revenue,CAHD,Central - Commissioned Services,Other Small Contracts,3 Trees Community Support Limited,151.20, 28-Nov-2022
11,Revenue,CAHD,Central - Commissioned Services,Supported Living,3 Trees Community Support Limited,3371.84, 28-Nov-2022
12,Revenue,CAHD,Central - Commissioned Services,Supported Living,3 Trees Community Support Limited,3077.76, 28-Nov-2022
13,Revenue,CAHD,Central - Commissioned Services,Supported Living,3 Trees Community Support Limited,3053.76, 28-Nov-2022
14,Revenue,CAHD,South - Commissioned Services,Supported Living,3 Trees Community Support Limited,3086.72, 28-Nov-2022
15,Revenue,CAHD,North - Community based support,Supported Living,3 Trees Community Support Limited,28.16, 28-Nov-2022
16,Revenue,CAHD,Central - Commissioned Services,Other Small Contracts,3 Trees Community Support Limited,151.20, 24-Nov-2022
17,Revenue,CAHD,Central - Commissioned Services,Supported Living,3 Trees Community Support Limited,3024.00, 24-Nov-2022
18,Revenue,CAHD,Central - Commissioned Services,Supported Living,3 Trees Community Support Limited,3024.00, 24-Nov-2022
19,Revenue,CAHD,Central - Commissioned Services,Supported Living,3 Trees Community Support Limited,3024.00, 24-Nov-2022
20,Revenue,CAHD,South - Commissioned Services,Supported Living,3 Trees Community Support Limited,3086.72, 24-Nov-2022
21,Revenue,CAHD,Central - Commissioned Services,Other Small Contracts,3 Trees Community Support Limited,151.20, 28-Nov-2022
22,Revenue,CAHD,Central - Commissioned Services,Supported Living,3 Trees Community Support Limited,3024.00, 28-Nov-2022
23,Revenue,CAHD,Central - Commissioned Services,Supported Living,3 Trees Community Support Limited,3024.00, 28-Nov-2022
24,Revenue,CAHD,Central - Commissioned Services,Supported Living,3 Trees Community Support Limited,3024.00, 28-Nov-2022
25,Revenue,CAHD,South - Commissioned Services,Supported Living,3 Trees Community Support Limited,3086.72, 28-Nov-2022
26,Revenue,CAHD,Central - Commissioned Services,Supported Living,3 Trees Community Support Limited,3024.00, 16-Nov-2022
27,Revenue,CAHD,Central - Commissioned Services,Supported Living,3 Trees Community Support Limited,3024.00, 16-Nov-2022
28,Revenue,CAHD,Central - Commissioned Services,Supported Living,3 Trees Community Support Limited,3024.00, 16-Nov-2022
29,Revenue,CAHD,South - Commissioned Services,Supported Living,3 Trees Community Support Limited,3086.72, 16-Nov-2022
30,Revenue,CAHD,Central - Commissioned Services,Supported Living,3 Trees Community Support Limited,3024.00, 28-Nov-2022
31,Revenue,CAHD,Central - Commissioned Services,Supported Living,3 Trees Community Support Limited,3024.00, 28-Nov-2022
32,Revenue,CAHD,Central - Commissioned Services,Supported Living,3 Trees Community Support Limited,3024.00, 28-Nov-2022
33,Revenue,CAHD,South - Commissioned Services,Supported Living,3 Trees Community Support Limited,3086.72, 28-Nov-2022
34,Revenue,CAHD,South - Commissioned Services,Permanent Residential,5Th Floor Harlech Court,12291.40, 15-Nov-2022
35,Revenue,CAHD,South - Commissioned Services,Permanent Residential,5Th Floor Harlech Court,17913.24, 15-Nov-2022
36,Revenue,CAHD,South - Commissioned Services,Permanent Residential,5Th Floor Harlech Court,18839.56, 15-Nov-2022
37,Revenue,CAHD,South - Commissioned Services,Fees & Charges Income - General,5Th Floor Harlech Court,-582.88, 15-Nov-2022
38,Revenue,CAHD,South - Commissioned Services,Fees & Charges Income - General,5Th Floor Harlech Court,-438.80, 15-Nov-2022
39,Revenue,CAHD,South - Commissioned Services,Fees & Charges Income - General,5Th Floor Harlech Court,-418.80, 15-Nov-2022
40,Revenue,CAHD,S28A cases,Permanent Residential,5Th Floor Harlech Court,11719.96, 15-Nov-2022
41,Revenue,CAHD,S28A cases,Fees & Charges Income - General,5Th Floor Harlech Court,-399.80, 15-Nov-2022
42,Revenue,CAHD,North - Community based support,Permanent Residential,5Th Floor Harlech Court,12498.56, 15-Nov-2022
43,Revenue,CAHD,North - Community based support,Fees & Charges Income - General,5Th Floor Harlech Court,-450.80, 15-Nov-2022
44,Revenue,CAHD,Central - Commissioned Services,Permanent Residential,5Th Floor Harlech Court,15338.12, 15-Nov-2022
45,Revenue,CAHD,Central - Commissioned Services,Fees & Charges Income - General,5Th Floor Harlech Court,-438.80, 15-Nov-2022
46,Revenue,CAHD,North - Community based support,Permanent Residential,5Th Floor Harlech Court,9615.40, 15-Nov-2022
47,Revenue,CAHD,North - Community based support,Permanent Residential,5Th Floor Harlech Court,10853.36, 15-Nov-2022
48,Revenue,CAHD,North - Community based support,Fees & Charges Income - General,5Th Floor Harlech Court,-438.80, 15-Nov-2022
49,Revenue,CAHD,North - Community based support,Fees & Charges Income - General,5Th Floor Harlech Court,-438.80, 15-Nov-2022
50,Revenue,CAHD,CSC - Section 17 CENTRAL,Client Transport Recharge,A Star Taxi`s Ltd,382.50, 10-Nov-2022
51,Revenue,CAHD,CSC - Section 17 CENTRAL,Client Transport Recharge,A Star Taxi`s Ltd,420.75, 10-Nov-2022
52,Revenue,CAHD,CSC - Section 17 0-25,Preventative Assistance,A+bility Ltd,690.00, 15-Nov-2022
53,Revenue,CAHD,CSC - Section 17 0-25,Preventative Assistance,A+bility Ltd,840.00, 15-Nov-2022
54,Revenue,CAHD,Central - Commissioned Services,Non Residential Care Income,A4E Management Ltd,-112.74, 11-Nov-2022
55,Revenue,CAHD,Central - Commissioned Services,Non Residential Care Income,A4E Management Ltd,-112.74, 25-Nov-2022
56,Revenue,CAHD,EARLY YEARS DEPRIVATION PAYMENT,Preventative Assistance,Abacus Pre School @ Mangotsfield,545.82, 11-Nov-2022
57,Revenue,CAHD,EARLY YEARS DEPRIVATION PAYMENT,Preventative Assistance,Abacus Pre-School (Meadowbrook),1203.59, 11-Nov-2022
58,Revenue,CAHD,Early Years Pupil Premium Grant,Preventative Assistance,Abacus Pre-School (Meadowbrook),774.00, 11-Nov-2022
59,Revenue,CAHD,EARLY YEARS DISABILITY  ACCES FUND,Preventative Assistance,Abacus Pre-School (Meadowbrook),800.00, 01-Nov-2022
60,Revenue,CAHD,EARLY YEARS DEPRIVATION PAYMENT,Preventative Assistance,Abacus Pre-School @ Stoke Gifford,727.75, 11-Nov-2022
61,Revenue,CAHD,CSC - Care Leavers Independent Living,Supported Living,Individual,875.00, 04-Nov-2022
62,Revenue,CAHD,Central - Commissioned Services,Permanent Nursing,ABI Development Limited,83310.43, 15-Nov-2022
63,Revenue,CAHD,Central - Commissioned Services,Fees & Charges Income - General,ABI Development Limited,-3290.14, 15-Nov-2022
64,Revenue,CAHD,CSC - Asylum Seekers - Unaccompanied,Independent Living,Ability Supported Living Limited,6700.42, 09-Nov-2022
65,Revenue,CAHD,South - Commissioned Services,Permanent Nursing,Acacia House,3085.88, 15-Nov-2022
66,Revenue,CAHD,South - Commissioned Services,Fees & Charges Income - General,Acacia House,-1074.60, 15-Nov-2022
67,Revenue,CAHD,Central - Commissioned Services,Permanent Nursing,Acacia House,3777.92, 15-Nov-2022
68,Revenue,CAHD,D2A spend on behalf of NHS,Day Care / Social Activities,Access UK Limited,13345.78, 30-Nov-2022
69,Revenue,CAHD,Central - Commissioned Services,Permanent Residential,Acer House Care Home.,4028.00, 15-Nov-2022
70,Revenue,CAHD,Central - Commissioned Services,Fees & Charges Income - General,Acer House Care Home.,-1093.68, 15-Nov-2022
71,Revenue,CAHD,Post 16 LDD Transport to college,Bus & Rail Passes (not one off tickets),Acorn Bus & Coach Limited,768.00, 24-Nov-2022
72,Revenue,CAHD,MH Purchasing - Younger,Permanent Residential,Acorn Care Providers,6920.56, 15-Nov-2022
73,Revenue,CAHD,MH Purchasing - Younger,Permanent Residential,Acorn Care Providers,6795.68, 15-Nov-2022
74,Revenue,CAHD,North - S117,Permanent Residential,Acorn Care Providers,4311.40, 15-Nov-2022
75,Revenue,CAHD,Section 117 Placements MH Younger,Permanent Residential,Acorn Care Providers,5941.40, 15-Nov-2022
76,Revenue,CAHD,Jointly Funded H&SC Packages,Permanent Residential,Acorn Care Providers,3515.52, 15-Nov-2022
77,Revenue,CAHD,Jointly Funded H&SC Packages,Permanent Residential,Acorn Care Providers,2366.36, 15-Nov-2022
78,Revenue,CAHD,Jointly Funded H&SC Packages,Permanent Residential,Acorn Care Providers,2193.40, 15-Nov-2022
79,Revenue,CAHD,CSC - Fostering Carer Support,Training Expenses,Acorn Health & Safety Limited,479.00, 22-Nov-2022
80,Revenue,CAHD,Training - Adult Services,Training Expenses,Acorn Health & Safety Limited,720.00, 02-Nov-2022
81,Revenue,CAHD,Training - Adult Services,Training Expenses,Acorn Health & Safety Limited,650.00, 03-Nov-2022
82,Revenue,CAHD,CSC - Agency Fostering,Foster Parent Allowances,Action for Children,2392.07, 21-Nov-2022
83,Revenue,CAHD,Independent Special Placements - Pre 16,Other Private Contractors,Action for Children,56245.00, 04-Nov-2022
84,Revenue,CAHD,CSC - Residential Placements,Permanent Residential,Action for Children,56245.00, 22-Nov-2022
85,Revenue,CAHD,CSC - Residential Placements,Permanent Residential,Action for Children,23212.00, 22-Nov-2022
86,Revenue,CAHD,CSC - Residential Placements,Permanent Residential,Action for Children,95356.00, 24-Nov-2022
87,Revenue,CAHD,CSC - Age Related Allowances,Foster Parent Allowances,Individual,384.00, 04-Nov-2022
88,Revenue,CAHD,CSC - Professional Fees Foster Carers,Band 3 Foster Care,Individual,486.00, 04-Nov-2022
89,Revenue,CAHD,CSC - Age Related Allowances,Foster Parent Allowances,Individual,384.00, 11-Nov-2022
90,Revenue,CAHD,CSC - Fostering Carer Support,Payments to Carers,Individual,945.00, 11-Nov-2022
91,Revenue,CAHD,CSC - Professional Fees Foster Carers,Band 3 Foster Care,Individual,486.00, 11-Nov-2022
92,Revenue,CAHD,CSC - Asylum Seekers - Unaccompanied,Independent Living,Adolescent Support Home Services Ltd,6473.40, 10-Nov-2022
93,Revenue,CAHD,South - Commissioned Services,Other Small Contracts,Advantedge Commercial Finance Limited,906.44, 10-Nov-2022
94,Revenue,CAHD,South - Commissioned Services,Other Small Contracts,Advantedge Commercial Finance Limited,295.12, 10-Nov-2022
95,Revenue,CAHD,South - Commissioned Services,Other Small Contracts,Advantedge Commercial Finance Limited,721.99, 10-Nov-2022
96,Revenue,CAHD,South - Commissioned Services,Other Small Contracts,Advantedge Commercial Finance Limited,721.99, 10-Nov-2022
97,Revenue,CAHD,South - Commissioned Services,Other Small Contracts,Advantedge Commercial Finance Limited,885.36, 10-Nov-2022
98,Revenue,CAHD,South - Commissioned Services,Other Small Contracts,Advantedge Commercial Finance Limited,927.52, 10-Nov-2022
99,Revenue,CAHD,South - Commissioned Services,Other Small Contracts,Advantedge Commercial Finance Limited,2656.08, 10-Nov-2022
100,Revenue,CAHD,South - Commissioned Services,Other Small Contracts,Advantedge Commercial Finance Limited,2392.58, 28-Nov-2022
101,Revenue,CAHD,South - Commissioned Services,Other Small Contracts,Advantedge Commercial Finance Limited,3794.40, 28-Nov-2022
102,Revenue,CAHD,South - Commissioned Services,Other Small Contracts,Advantedge Commercial Finance Limited,721.99, 28-Nov-2022
103,Revenue,CAHD,South - Commissioned Services,Other Small Contracts,Advantedge Commercial Finance Limited,732.53, 28-Nov-2022
104,Revenue,CAHD,South - Commissioned Services,Other Small Contracts,Advantedge Commercial Finance Limited,927.52, 28-Nov-2022
105,Revenue,CAHD,South - Commissioned Services,Other Small Contracts,Advantedge Commercial Finance Limited,969.68, 28-Nov-2022
106,Revenue,CAHD,South - Commissioned Services,Other Small Contracts,Advantedge Commercial Finance Limited,2656.08, 28-Nov-2022
107,Revenue,CAHD,South - Commissioned Services,Other Small Contracts,Advantedge Commercial Finance Limited,-5.27, 28-Nov-2022
108,Revenue,CAHD,South - Commissioned Services,Other Small Contracts,Advantedge Commercial Finance Limited,3715.35, 10-Nov-2022
109,Revenue,CAHD,Central - Commissioned Services,Day Care / Social Activities,Age Concern,-47.10, 15-Nov-2022
110,Revenue,CAHD,Central - Commissioned Services,Day Care / Social Activities,Age Concern,288.08, 15-Nov-2022
111,Revenue,CAHD,South - Commissioned Services,Day Care / Social Activities,Age Concern,288.08, 15-Nov-2022
112,Revenue,CAHD,North - Community based support,Day Care / Social Activities,Age Concern,681.60, 15-Nov-2022
113,Revenue,CAHD,North - Community based support,Day Care / Social Activities,Age Concern,340.80, 15-Nov-2022
114,Revenue,CAHD,North - Community based support,Day Care / Social Activities,Age Concern,288.08, 15-Nov-2022
115,Revenue,CAHD,South - Commissioned Services,Day Care / Social Activities,Age UK - Grace Court,226.48, 15-Nov-2022
116,Revenue,CAHD,South - Commissioned Services,Day Care / Social Activities,Age UK - Grace Court,288.08, 15-Nov-2022
117,Revenue,CAHD,South - Commissioned Services,Day Care / Social Activities,Age UK - Grace Court,288.08, 15-Nov-2022
118,Revenue,CAHD,South - Commissioned Services,Day Care / Social Activities,Age UK - Grace Court,288.08, 15-Nov-2022
119,Revenue,CAHD,South - Commissioned Services,Day Care / Social Activities,Age UK - Grace Court,288.08, 15-Nov-2022
120,Revenue,CAHD,South - Commissioned Services,Day Care / Social Activities,Age UK - Grace Court,226.48, 15-Nov-2022
121,Revenue,CAHD,South - Commissioned Services,Day Care / Social Activities,Age UK - Grace Court,612.17, 15-Nov-2022
122,Revenue,CAHD,South - Commissioned Services,Day Care / Social Activities,Age UK - Grace Court,288.08, 15-Nov-2022
123,Revenue,CAHD,South - Commissioned Services,Day Care / Social Activities,Age UK - Grace Court,1368.38, 15-Nov-2022
124,Revenue,CAHD,North - Community based support,Day Care / Social Activities,Age UK - Grace Court,288.08, 15-Nov-2022
125,Revenue,CAHD,North - Community based support,Day Care / Social Activities,Age UK - Grace Court,426.00, 15-Nov-2022
126,Revenue,CAHD,North - Community based support,Day Care / Social Activities,Age UK - Grace Court,288.08, 15-Nov-2022
127,Revenue,CAHD,Extra Care Housing,Private & Voluntary Home Care,Agincare UK Limited,25937.78, 01-Nov-2022
128,Revenue,CAHD,Extra Care Housing,Private & Voluntary Home Care,Agincare UK Limited,12479.78, 01-Nov-2022
129,Revenue,CAHD,Extra Care Housing,Private & Voluntary Home Care,Agincare UK Limited,32712.59, 04-Nov-2022
130,Revenue,CAHD,Extra Care Housing,Private & Voluntary Home Care,Agincare UK Limited,26182.00, 11-Nov-2022
131,Revenue,CAHD,Prison Assessments & Costs,Other Supplies & Services,Agincare UK Limited,4664.00, 22-Nov-2022
132,Revenue,CAHD,Central - Commissioned Services,Other Small Contracts,AliMo Care Ltd,2556.12, 02-Nov-2022
133,Revenue,CAHD,South - Commissioned Services,Other Small Contracts,AliMo Care Ltd,3612.66, 02-Nov-2022
134,Revenue,CAHD,South - Commissioned Services,Other Small Contracts,AliMo Care Ltd,1318.26, 02-Nov-2022
135,Revenue,CAHD,South - Commissioned Services,Other Small Contracts,AliMo Care Ltd,6328.35, 02-Nov-2022
136,Revenue,CAHD,South - Commissioned Services,Other Small Contracts,AliMo Care Ltd,4012.53, 02-Nov-2022
137,Revenue,CAHD,North - Community based support,Other Small Contracts,AliMo Care Ltd,3038.88, 02-Nov-2022
138,Revenue,CAHD,South - Commissioned Services,Other Small Contracts,AliMo Care Ltd,736.98, 02-Nov-2022
139,Revenue,CAHD,South - Commissioned Services,Other Small Contracts,AliMo Care Ltd,1193.70, 02-Nov-2022
140,Revenue,CAHD,North - Community based support,Other Small Contracts,AliMo Care Ltd,591.66, 02-Nov-2022
141,Revenue,CAHD,South - Commissioned Services,Other Small Contracts,AliMo Care Ltd,866.73, 02-Nov-2022
142,Revenue,CAHD,North - Community based support,Other Small Contracts,AliMo Care Ltd,451.53, 02-Nov-2022
143,Revenue,CAHD,South - Commissioned Services,Other Small Contracts,AliMo Care Ltd,171.27, 02-Nov-2022
144,Revenue,CAHD,South - Commissioned Services,Other Small Contracts,AliMo Care Ltd,607.23, 02-Nov-2022
145,Revenue,CAHD,North - Community based support,Other Small Contracts,AliMo Care Ltd,285.45, 02-Nov-2022
146,Revenue,CAHD,South - Commissioned Services,Other Small Contracts,AliMo Care Ltd,529.38, 02-Nov-2022
147,Revenue,CAHD,South - Commissioned Services,Other Small Contracts,AliMo Care Ltd,866.73, 02-Nov-2022
148,Revenue,CAHD,North - Community based support,Other Small Contracts,AliMo Care Ltd,430.77, 02-Nov-2022
149,Revenue,CAHD,South - Commissioned Services,Other Small Contracts,AliMo Care Ltd,171.27, 02-Nov-2022
150,Revenue,CAHD,South - Commissioned Services,Other Small Contracts,AliMo Care Ltd,295.83, 02-Nov-2022
151,Revenue,CAHD,North - Community based support,Other Small Contracts,AliMo Care Ltd,150.51, 02-Nov-2022
152,Revenue,CAHD,South - Commissioned Services,Other Small Contracts,AliMo Care Ltd,186.84, 02-Nov-2022
153,Revenue,CAHD,South - Commissioned Services,Other Small Contracts,AliMo Care Ltd,316.59, 02-Nov-2022
154,Revenue,CAHD,North - Community based support,Other Small Contracts,AliMo Care Ltd,155.70, 02-Nov-2022
155,Revenue,CAHD,South - Commissioned Services,Other Small Contracts,AliMo Care Ltd,181.65, 10-Nov-2022
156,Revenue,CAHD,South - Commissioned Services,Other Small Contracts,AliMo Care Ltd,311.40, 10-Nov-2022
157,Revenue,CAHD,North - Community based support,Other Small Contracts,AliMo Care Ltd,119.37, 10-Nov-2022
158,Revenue,CAHD,CSC - Age Related Allowances,Foster Parent Allowances,Individual,363.00, 04-Nov-2022
159,Revenue,CAHD,CSC - Professional Fees Foster Carers,Band 3 Foster Care,Individual,486.00, 04-Nov-2022
160,Revenue,CAHD,CSC - Age Related Allowances,Foster Parent Allowances,Individual,363.00, 11-Nov-2022
161,Revenue,CAHD,CSC - Professional Fees Foster Carers,Band 3 Foster Care,Individual,486.00, 11-Nov-2022
162,Revenue,CAHD,CSC - Age Related Allowances,Foster Parent Allowances,Individual,363.00, 18-Nov-2022
163,Revenue,CAHD,CSC - Age Related Allowances,Day Care / Social Activities,Individual,63.00, 18-Nov-2022
164,Revenue,CAHD,CSC - Professional Fees Foster Carers,Band 3 Foster Care,Individual,486.00, 18-Nov-2022
165,Revenue,CAHD,CSC - Age Related Allowances,Foster Parent Allowances,Individual,363.00, 25-Nov-2022
166,Revenue,CAHD,CSC - Professional Fees Foster Carers,Band 3 Foster Care,Individual,486.00, 25-Nov-2022
167,Revenue,CAHD,South - Commissioned Services,Permanent Nursing,Allambie Court,2734.44, 15-Nov-2022
168,Revenue,CAHD,South - Commissioned Services,Fees & Charges Income - General,Allambie Court,-823.52, 15-Nov-2022
169,Revenue,CAHD,CSC - Age Related Allowances,Children - Family Support,Individual,303.42, 04-Nov-2022
170,Revenue,CAHD,CSC - Professional Fees Foster Carers,Children - Family Support,Individual,291.42, 04-Nov-2022
171,Revenue,CAHD,CSC - Residential Placements,Permanent Residential,Amberleigh Care Ltd,5951.00, 09-Nov-2022
172,Revenue,CAHD,CSC - Residential Placements,Permanent Residential,Ambito Care and Education,19920.87, 03-Nov-2022
173,Revenue,CAHD,CSC - Residential Placements,Permanent Residential,Ambito Care and Education,19930.88, 22-Nov-2022
174,Revenue,CAHD,CSC - Agency Fostering,Foster Parent Allowances,Amicus Foster Care Ltd,4879.00, 03-Nov-2022
175,Revenue,CAHD,CSC - Agency Fostering,Foster Parent Allowances,Amicus Foster Care Ltd,4037.13, 03-Nov-2022
176,Revenue,CAHD,CSC - Agency Fostering,Foster Parent Allowances,Amicus Foster Care Ltd,4796.44, 03-Nov-2022
177,Revenue,CAHD,CSC - Care Leavers Independent Living,Supported Living,Individual,1120.00, 25-Nov-2022
178,Revenue,CAHD,EARLY YEARS DEPRIVATION PAYMENT,Preventative Assistance,Anchor Day Nursery Ltd,727.75, 11-Nov-2022
179,Revenue,CAHD,Supporting People Programme,Grants to Voluntary Bodies,Anchor Hanover Group,1070.50, 01-Nov-2022
180,Revenue,CAHD,Supporting People Programme,Grants to Voluntary Bodies,Anchor Hanover Group,873.08, 01-Nov-2022
181,Revenue,CAHD,Community Support - South,Preventative Assistance,Angel Care Support Limited,13902.00, 04-Nov-2022
182,Revenue,CAHD,Community Support - South,Preventative Assistance,Angel Care Support Limited,10147.00, 02-Nov-2022
183,Revenue,CAHD,Community Support - South,Preventative Assistance,Angel Care Support Limited,11375.00, 30-Nov-2022
184,Revenue,CAHD,CSC - Special Guardianship Orders,Special Payments,Individual,500.30, 04-Nov-2022
185,Revenue,CAHD,CSC - Fostering Carer Support,Care Mgt/Asesmnt Staff Pay,Individual,1000.00, 04-Nov-2022
186,Revenue,CAHD,Ukranian Refugees,Other Small Contracts,Individual,767.00, 15-Nov-2022
187,Revenue,CAHD,Social Lettings Agency,Rent,Individual,822.73, 18-Nov-2022
188,Revenue,CAHD,Social Lettings Agency,Fees & Charges Income - General,Individual,-65.82, 18-Nov-2022
189,Revenue,CAHD,Social Lettings Agency,Rent,Individual,822.73, 02-Nov-2022
190,Revenue,CAHD,Social Lettings Agency,Fees & Charges Income - General,Individual,-65.82, 02-Nov-2022
191,Revenue,CAHD,EARLY YEARS DEPRIVATION PAYMENT,Preventative Assistance,Apple Tree Pre-School,509.43, 11-Nov-2022
192,Revenue,CAHD,North - Community based support,Permanent Nursing,Arbour Walk,3947.24, 15-Nov-2022
193,Revenue,CAHD,North - Community based support,Fees & Charges Income - General,Arbour Walk,-1276.96, 15-Nov-2022
194,Revenue,CAHD,North - S117,Permanent Nursing,Arbour Walk,5400.00, 15-Nov-2022
195,Revenue,CAHD,CSC - Residential Placements,Permanent Residential,ARC HD Services Ltd,22667.33, 03-Nov-2022
196,Revenue,CAHD,South - S117,Supported Living,Archcare Rehab Limited,2062.52, 15-Nov-2022
197,Revenue,CAHD,Younger MH non-res purchasing,Respite Care,Archcare Rehab Limited,0.00, 15-Nov-2022
198,Revenue,CAHD,South - Commissioned Services,Permanent Residential,Ash Lea House,5885.04, 15-Nov-2022
199,Revenue,CAHD,South - Commissioned Services,Fees & Charges Income - General,Ash Lea House,-438.80, 15-Nov-2022
200,Revenue,CAHD,North - Community based support,Permanent Residential,Ash View House,7525.48, 15-Nov-2022
201,Revenue,CAHD,North - Community based support,Permanent Residential,Ash View House,7547.20, 15-Nov-2022
202,Revenue,CAHD,North - Community based support,Fees & Charges Income - General,Ash View House,-438.80, 15-Nov-2022
203,Revenue,CAHD,North - Community based support,Fees & Charges Income - General,Ash View House,-438.80, 15-Nov-2022
204,Revenue,CAHD,South - Commissioned Services,Permanent Residential,Ash View House,7317.24, 15-Nov-2022
205,Revenue,CAHD,South - Commissioned Services,Permanent Residential,Ash View House,5994.80, 15-Nov-2022
206,Revenue,CAHD,South - Commissioned Services,Fees & Charges Income - General,Ash View House,-438.80, 15-Nov-2022
207,Revenue,CAHD,South - Commissioned Services,Fees & Charges Income - General,Ash View House,-387.80, 15-Nov-2022
208,Revenue,CAHD,South - S117,Permanent Residential,Ash View House,7402.64, 15-Nov-2022
209,Revenue,CAHD,Section 117 Placements MH Younger,Permanent Residential,Ash View House,5444.12, 15-Nov-2022
210,Revenue,CAHD,Jointly Funded H&SC Packages,Permanent Residential,Ash View House,1160.84, 15-Nov-2022
211,Revenue,CAHD,Jointly Funded H&SC Packages,Permanent Residential,Ash View House,2204.28, 15-Nov-2022
212,Revenue,CAHD,S117 Placements PCT,Permanent Residential,Ash View House,8357.80, 15-Nov-2022
213,Revenue,CAHD,Supporting People Programme,Grants to Voluntary Bodies,Aspects and Milestones Trust,3544.83, 01-Nov-2022
214,Revenue,CAHD,Supporting People Programme,Grants to Voluntary Bodies,Aspects and Milestones Trust,1777.17, 01-Nov-2022
215,Revenue,CAHD,18-25 Year Olds,Other Small Contracts,Aspirations,124.56, 16-Nov-2022
216,Revenue,CAHD,18-25 Year Olds,Other Small Contracts,Aspirations,83.04, 16-Nov-2022
217,Revenue,CAHD,18-25 Year Olds,Other Small Contracts,Aspirations,83.04, 16-Nov-2022
218,Revenue,CAHD,18-25 Year Olds,Other Small Contracts,Aspirations,124.56, 16-Nov-2022
219,Revenue,CAHD,18-25 Year Olds,Other Small Contracts,Aspirations,72.66, 16-Nov-2022
220,Revenue,CAHD,18-25 Year Olds,Supported Living,Aspirations,736.98, 16-Nov-2022
221,Revenue,CAHD,18-25 Year Olds,Supported Living,Aspirations,871.92, 16-Nov-2022
222,Revenue,CAHD,Central - Commissioned Services,Other Small Contracts,Aspirations,50.88, 16-Nov-2022
223,Revenue,CAHD,Central - Commissioned Services,Other Small Contracts,Aspirations,581.28, 16-Nov-2022
224,Revenue,CAHD,Central - Commissioned Services,Other Small Contracts,Aspirations,228.36, 16-Nov-2022
225,Revenue,CAHD,South - Commissioned Services,Other Small Contracts,Aspirations,1830.60, 16-Nov-2022
226,Revenue,CAHD,South - Commissioned Services,Other Small Contracts,Aspirations,166.08, 16-Nov-2022
227,Revenue,CAHD,South - Commissioned Services,Other Small Contracts,Aspirations,89.04, 16-Nov-2022
228,Revenue,CAHD,South - Commissioned Services,Supported Living,Aspirations,373.68, 16-Nov-2022
229,Revenue,CAHD,South - Commissioned Services,Supported Living,Aspirations,584.64, 16-Nov-2022
230,Revenue,CAHD,South - Commissioned Services,Supported Living,Aspirations,332.16, 16-Nov-2022
231,Revenue,CAHD,South - Commissioned Services,Supported Living,Aspirations,1214.46, 16-Nov-2022
232,Revenue,CAHD,South - Commissioned Services,Supported Living,Aspirations,238.74, 16-Nov-2022
233,Revenue,CAHD,South - Commissioned Services,Supported Living,Aspirations,352.92, 16-Nov-2022
234,Revenue,CAHD,South - Commissioned Services,Supported Living,Aspirations,766.80, 16-Nov-2022
235,Revenue,CAHD,South - Commissioned Services,Supported Living,Aspirations,83.04, 16-Nov-2022
236,Revenue,CAHD,South - Commissioned Services,Supported Living,Aspirations,572.40, 16-Nov-2022
237,Revenue,CAHD,South - Commissioned Services,Supported Living,Aspirations,259.50, 16-Nov-2022
238,Revenue,CAHD,South - Commissioned Services,Supported Living,Aspirations,228.36, 16-Nov-2022
239,Revenue,CAHD,South - Commissioned Services,Supported Living,Aspirations,2689.17, 16-Nov-2022
240,Revenue,CAHD,South - Commissioned Services,Supported Living,Aspirations,124.56, 16-Nov-2022
241,Revenue,CAHD,South - Commissioned Services,Supported Living,Aspirations,1442.82, 16-Nov-2022
242,Revenue,CAHD,South - Commissioned Services,Supported Living,Aspirations,477.48, 16-Nov-2022
243,Revenue,CAHD,South - Commissioned Services,Supported Living,Aspirations,2907.18, 16-Nov-2022
244,Revenue,CAHD,South - Commissioned Services,Supported Living,Aspirations,3299.42, 16-Nov-2022
245,Revenue,CAHD,South - Commissioned Services,Supported Living,Aspirations,1790.55, 16-Nov-2022
246,Revenue,CAHD,South - Commissioned Services,Supported Living,Aspirations,498.24, 16-Nov-2022
247,Revenue,CAHD,South - Commissioned Services,Mentoring,Aspirations,101.76, 16-Nov-2022
248,Revenue,CAHD,South - Commissioned Services,Mentoring,Aspirations,25.44, 16-Nov-2022
249,Revenue,CAHD,North - Community based support,Other Small Contracts,Aspirations,-200.01, 16-Nov-2022
250,Revenue,CAHD,North - Community based support,Other Small Contracts,Aspirations,332.16, 16-Nov-2022
251,Revenue,CAHD,North - Community based support,Supported Living,Aspirations,2325.12, 16-Nov-2022
252,Revenue,CAHD,North - Community based support,Supported Living,Aspirations,176.46, 16-Nov-2022
253,Revenue,CAHD,18-25 Year Olds,Other Small Contracts,Aspirations,124.56, 10-Nov-2022
254,Revenue,CAHD,18-25 Year Olds,Other Small Contracts,Aspirations,124.56, 10-Nov-2022
255,Revenue,CAHD,18-25 Year Olds,Other Small Contracts,Aspirations,83.04, 10-Nov-2022
256,Revenue,CAHD,18-25 Year Olds,Other Small Contracts,Aspirations,124.56, 10-Nov-2022
257,Revenue,CAHD,18-25 Year Olds,Other Small Contracts,Aspirations,72.66, 10-Nov-2022
258,Revenue,CAHD,18-25 Year Olds,Supported Living,Aspirations,731.79, 10-Nov-2022
259,Revenue,CAHD,18-25 Year Olds,Supported Living,Aspirations,871.92, 10-Nov-2022
260,Revenue,CAHD,Central - Commissioned Services,Other Small Contracts,Aspirations,50.88, 10-Nov-2022
261,Revenue,CAHD,Central - Commissioned Services,Other Small Contracts,Aspirations,581.28, 10-Nov-2022
262,Revenue,CAHD,Central - Commissioned Services,Other Small Contracts,Aspirations,228.36, 10-Nov-2022
263,Revenue,CAHD,South - Commissioned Services,Other Small Contracts,Aspirations,1819.80, 10-Nov-2022
264,Revenue,CAHD,South - Commissioned Services,Other Small Contracts,Aspirations,166.08, 10-Nov-2022
265,Revenue,CAHD,South - Commissioned Services,Other Small Contracts,Aspirations,89.04, 10-Nov-2022
266,Revenue,CAHD,South - Commissioned Services,Supported Living,Aspirations,373.68, 10-Nov-2022
267,Revenue,CAHD,South - Commissioned Services,Supported Living,Aspirations,584.64, 10-Nov-2022
268,Revenue,CAHD,South - Commissioned Services,Supported Living,Aspirations,332.16, 10-Nov-2022
269,Revenue,CAHD,South - Commissioned Services,Supported Living,Aspirations,1287.12, 10-Nov-2022
270,Revenue,CAHD,South - Commissioned Services,Supported Living,Aspirations,249.12, 10-Nov-2022
271,Revenue,CAHD,South - Commissioned Services,Supported Living,Aspirations,352.92, 10-Nov-2022
272,Revenue,CAHD,South - Commissioned Services,Supported Living,Aspirations,766.80, 10-Nov-2022
273,Revenue,CAHD,South - Commissioned Services,Supported Living,Aspirations,25.95, 10-Nov-2022
274,Revenue,CAHD,South - Commissioned Services,Supported Living,Aspirations,901.80, 10-Nov-2022
275,Revenue,CAHD,South - Commissioned Services,Supported Living,Aspirations,259.50, 10-Nov-2022
276,Revenue,CAHD,South - Commissioned Services,Supported Living,Aspirations,342.54, 10-Nov-2022
277,Revenue,CAHD,South - Commissioned Services,Supported Living,Aspirations,2795.58, 10-Nov-2022
278,Revenue,CAHD,South - Commissioned Services,Supported Living,Aspirations,124.56, 10-Nov-2022
279,Revenue,CAHD,South - Commissioned Services,Supported Living,Aspirations,1432.44, 10-Nov-2022
280,Revenue,CAHD,South - Commissioned Services,Supported Living,Aspirations,477.48, 10-Nov-2022
281,Revenue,CAHD,South - Commissioned Services,Supported Living,Aspirations,2912.34, 10-Nov-2022
282,Revenue,CAHD,South - Commissioned Services,Supported Living,Aspirations,3127.31, 10-Nov-2022
283,Revenue,CAHD,South - Commissioned Services,Supported Living,Aspirations,1764.60, 10-Nov-2022
284,Revenue,CAHD,South - Commissioned Services,Supported Living,Aspirations,498.24, 10-Nov-2022
285,Revenue,CAHD,South - Commissioned Services,Mentoring,Aspirations,101.76, 10-Nov-2022
286,Revenue,CAHD,South - Commissioned Services,Mentoring,Aspirations,25.44, 10-Nov-2022
287,Revenue,CAHD,North - Community based support,Other Small Contracts,Aspirations,584.64, 10-Nov-2022
288,Revenue,CAHD,North - Community based support,Other Small Contracts,Aspirations,332.16, 10-Nov-2022
289,Revenue,CAHD,North - Community based support,Supported Living,Aspirations,2304.36, 10-Nov-2022
290,Revenue,CAHD,North - Community based support,Supported Living,Aspirations,134.94, 10-Nov-2022
291,Revenue,CAHD,18-25 Year Olds,Other Small Contracts,Aspirations,124.56, 10-Nov-2022
292,Revenue,CAHD,18-25 Year Olds,Other Small Contracts,Aspirations,83.04, 10-Nov-2022
293,Revenue,CAHD,18-25 Year Olds,Other Small Contracts,Aspirations,83.04, 10-Nov-2022
294,Revenue,CAHD,18-25 Year Olds,Other Small Contracts,Aspirations,124.56, 10-Nov-2022
295,Revenue,CAHD,18-25 Year Olds,Other Small Contracts,Aspirations,145.32, 10-Nov-2022
296,Revenue,CAHD,18-25 Year Olds,Supported Living,Aspirations,508.62, 10-Nov-2022
297,Revenue,CAHD,18-25 Year Olds,Supported Living,Aspirations,747.36, 10-Nov-2022
298,Revenue,CAHD,Central - Commissioned Services,Other Small Contracts,Aspirations,50.88, 10-Nov-2022
299,Revenue,CAHD,Central - Commissioned Services,Other Small Contracts,Aspirations,581.28, 10-Nov-2022
300,Revenue,CAHD,Central - Commissioned Services,Other Small Contracts,Aspirations,228.36, 10-Nov-2022
301,Revenue,CAHD,Central - Commissioned Services,Supported Living,Aspirations,86.40, 10-Nov-2022
302,Revenue,CAHD,South - Commissioned Services,Other Small Contracts,Aspirations,1819.80, 10-Nov-2022
303,Revenue,CAHD,South - Commissioned Services,Other Small Contracts,Aspirations,166.08, 10-Nov-2022
304,Revenue,CAHD,South - Commissioned Services,Other Small Contracts,Aspirations,89.04, 10-Nov-2022
305,Revenue,CAHD,South - Commissioned Services,Supported Living,Aspirations,124.56, 10-Nov-2022
306,Revenue,CAHD,South - Commissioned Services,Supported Living,Aspirations,584.64, 10-Nov-2022
307,Revenue,CAHD,South - Commissioned Services,Supported Living,Aspirations,394.44, 10-Nov-2022
308,Revenue,CAHD,South - Commissioned Services,Supported Living,Aspirations,1598.52, 10-Nov-2022
309,Revenue,CAHD,South - Commissioned Services,Supported Living,Aspirations,249.12, 10-Nov-2022
310,Revenue,CAHD,South - Commissioned Services,Supported Living,Aspirations,352.92, 10-Nov-2022
311,Revenue,CAHD,South - Commissioned Services,Supported Living,Aspirations,745.20, 10-Nov-2022
312,Revenue,CAHD,South - Commissioned Services,Supported Living,Aspirations,430.77, 10-Nov-2022
313,Revenue,CAHD,South - Commissioned Services,Supported Living,Aspirations,939.60, 10-Nov-2022
314,Revenue,CAHD,South - Commissioned Services,Supported Living,Aspirations,259.50, 10-Nov-2022
315,Revenue,CAHD,South - Commissioned Services,Supported Living,Aspirations,425.58, 10-Nov-2022
316,Revenue,CAHD,South - Commissioned Services,Supported Living,Aspirations,2790.39, 10-Nov-2022
317,Revenue,CAHD,South - Commissioned Services,Supported Living,Aspirations,124.56, 10-Nov-2022
318,Revenue,CAHD,South - Commissioned Services,Supported Living,Aspirations,1318.26, 10-Nov-2022
319,Revenue,CAHD,South - Commissioned Services,Supported Living,Aspirations,477.48, 10-Nov-2022
320,Revenue,CAHD,South - Commissioned Services,Supported Living,Aspirations,2896.77, 10-Nov-2022
321,Revenue,CAHD,South - Commissioned Services,Supported Living,Aspirations,3124.48, 10-Nov-2022
322,Revenue,CAHD,South - Commissioned Services,Supported Living,Aspirations,1868.40, 10-Nov-2022
323,Revenue,CAHD,South - Commissioned Services,Supported Living,Aspirations,498.24, 10-Nov-2022
324,Revenue,CAHD,South - Commissioned Services,Mentoring,Aspirations,25.44, 10-Nov-2022
325,Revenue,CAHD,North - Community based support,Other Small Contracts,Aspirations,584.64, 10-Nov-2022
326,Revenue,CAHD,North - Community based support,Other Small Contracts,Aspirations,332.16, 10-Nov-2022
327,Revenue,CAHD,North - Community based support,Supported Living,Aspirations,1592.37, 10-Nov-2022
328,Revenue,CAHD,North - Community based support,Supported Living,Aspirations,134.94, 10-Nov-2022
329,Revenue,CAHD,18-25 Year Olds,Other Small Contracts,Aspirations,124.56, 24-Nov-2022
330,Revenue,CAHD,18-25 Year Olds,Other Small Contracts,Aspirations,124.56, 24-Nov-2022
331,Revenue,CAHD,18-25 Year Olds,Other Small Contracts,Aspirations,83.04, 24-Nov-2022
332,Revenue,CAHD,18-25 Year Olds,Other Small Contracts,Aspirations,124.56, 24-Nov-2022
333,Revenue,CAHD,18-25 Year Olds,Other Small Contracts,Aspirations,145.32, 24-Nov-2022
334,Revenue,CAHD,18-25 Year Olds,Supported Living,Aspirations,736.98, 24-Nov-2022
335,Revenue,CAHD,18-25 Year Olds,Supported Living,Aspirations,871.92, 24-Nov-2022
336,Revenue,CAHD,Central - Commissioned Services,Other Small Contracts,Aspirations,50.88, 24-Nov-2022
337,Revenue,CAHD,Central - Commissioned Services,Other Small Contracts,Aspirations,581.28, 24-Nov-2022
338,Revenue,CAHD,Central - Commissioned Services,Other Small Contracts,Aspirations,228.36, 24-Nov-2022
339,Revenue,CAHD,South - Commissioned Services,Other Small Contracts,Aspirations,1833.39, 24-Nov-2022
340,Revenue,CAHD,South - Commissioned Services,Other Small Contracts,Aspirations,166.08, 24-Nov-2022
341,Revenue,CAHD,South - Commissioned Services,Supported Living,Aspirations,373.68, 24-Nov-2022
342,Revenue,CAHD,South - Commissioned Services,Supported Living,Aspirations,584.64, 24-Nov-2022
343,Revenue,CAHD,South - Commissioned Services,Supported Living,Aspirations,269.88, 24-Nov-2022
344,Revenue,CAHD,South - Commissioned Services,Supported Living,Aspirations,1494.72, 24-Nov-2022
345,Revenue,CAHD,South - Commissioned Services,Supported Living,Aspirations,238.74, 24-Nov-2022
346,Revenue,CAHD,South - Commissioned Services,Supported Living,Aspirations,352.92, 24-Nov-2022
347,Revenue,CAHD,South - Commissioned Services,Supported Living,Aspirations,766.80, 24-Nov-2022
348,Revenue,CAHD,South - Commissioned Services,Supported Living,Aspirations,108.99, 24-Nov-2022
349,Revenue,CAHD,South - Commissioned Services,Supported Living,Aspirations,907.20, 24-Nov-2022
350,Revenue,CAHD,South - Commissioned Services,Supported Living,Aspirations,259.50, 24-Nov-2022
351,Revenue,CAHD,South - Commissioned Services,Supported Living,Aspirations,114.18, 24-Nov-2022
352,Revenue,CAHD,South - Commissioned Services,Supported Living,Aspirations,2795.58, 24-Nov-2022
353,Revenue,CAHD,South - Commissioned Services,Supported Living,Aspirations,124.56, 24-Nov-2022
354,Revenue,CAHD,South - Commissioned Services,Supported Living,Aspirations,1318.26, 24-Nov-2022
355,Revenue,CAHD,South - Commissioned Services,Supported Living,Aspirations,477.48, 24-Nov-2022
356,Revenue,CAHD,South - Commissioned Services,Supported Living,Aspirations,2907.15, 24-Nov-2022
357,Revenue,CAHD,South - Commissioned Services,Supported Living,Aspirations,3225.32, 24-Nov-2022
358,Revenue,CAHD,South - Commissioned Services,Supported Living,Aspirations,1743.84, 24-Nov-2022
359,Revenue,CAHD,South - Commissioned Services,Supported Living,Aspirations,373.68, 24-Nov-2022
360,Revenue,CAHD,South - Commissioned Services,Mentoring,Aspirations,101.76, 24-Nov-2022
361,Revenue,CAHD,South - Commissioned Services,Mentoring,Aspirations,50.88, 24-Nov-2022
362,Revenue,CAHD,North - Community based support,Other Small Contracts,Aspirations,584.64, 24-Nov-2022
363,Revenue,CAHD,North - Community based support,Other Small Contracts,Aspirations,332.16, 24-Nov-2022
364,Revenue,CAHD,North - Community based support,Supported Living,Aspirations,2304.36, 24-Nov-2022
365,Revenue,CAHD,North - Community based support,Supported Living,Aspirations,176.46, 24-Nov-2022
366,Revenue,CAHD,18-25 Year Olds,Other Small Contracts,Aspirations,124.56, 28-Nov-2022
367,Revenue,CAHD,18-25 Year Olds,Other Small Contracts,Aspirations,124.56, 28-Nov-2022
368,Revenue,CAHD,18-25 Year Olds,Other Small Contracts,Aspirations,83.04, 28-Nov-2022
369,Revenue,CAHD,18-25 Year Olds,Other Small Contracts,Aspirations,124.56, 28-Nov-2022
370,Revenue,CAHD,18-25 Year Olds,Other Small Contracts,Aspirations,145.32, 28-Nov-2022
371,Revenue,CAHD,18-25 Year Olds,Supported Living,Aspirations,736.98, 28-Nov-2022
372,Revenue,CAHD,18-25 Year Olds,Supported Living,Aspirations,871.92, 28-Nov-2022
373,Revenue,CAHD,Central - Commissioned Services,Other Small Contracts,Aspirations,50.88, 28-Nov-2022
374,Revenue,CAHD,Central - Commissioned Services,Other Small Contracts,Aspirations,581.28, 28-Nov-2022
375,Revenue,CAHD,Central - Commissioned Services,Other Small Contracts,Aspirations,228.36, 28-Nov-2022
376,Revenue,CAHD,South - Commissioned Services,Other Small Contracts,Aspirations,1836.00, 28-Nov-2022
377,Revenue,CAHD,South - Commissioned Services,Other Small Contracts,Aspirations,166.08, 28-Nov-2022
378,Revenue,CAHD,South - Commissioned Services,Other Small Contracts,Aspirations,89.04, 28-Nov-2022
379,Revenue,CAHD,South - Commissioned Services,Supported Living,Aspirations,373.68, 28-Nov-2022
380,Revenue,CAHD,South - Commissioned Services,Supported Living,Aspirations,584.64, 28-Nov-2022
381,Revenue,CAHD,South - Commissioned Services,Supported Living,Aspirations,394.44, 28-Nov-2022
382,Revenue,CAHD,South - Commissioned Services,Supported Living,Aspirations,1598.52, 28-Nov-2022
383,Revenue,CAHD,South - Commissioned Services,Supported Living,Aspirations,249.12, 28-Nov-2022
384,Revenue,CAHD,South - Commissioned Services,Supported Living,Aspirations,228.36, 28-Nov-2022
385,Revenue,CAHD,South - Commissioned Services,Supported Living,Aspirations,680.40, 28-Nov-2022
386,Revenue,CAHD,South - Commissioned Services,Supported Living,Aspirations,124.56, 28-Nov-2022
387,Revenue,CAHD,South - Commissioned Services,Supported Living,Aspirations,842.40, 28-Nov-2022
388,Revenue,CAHD,South - Commissioned Services,Supported Living,Aspirations,259.50, 28-Nov-2022
389,Revenue,CAHD,South - Commissioned Services,Supported Living,Aspirations,228.36, 28-Nov-2022
390,Revenue,CAHD,South - Commissioned Services,Supported Living,Aspirations,2795.58, 28-Nov-2022
391,Revenue,CAHD,South - Commissioned Services,Supported Living,Aspirations,124.56, 28-Nov-2022
392,Revenue,CAHD,South - Commissioned Services,Supported Living,Aspirations,1224.84, 28-Nov-2022
393,Revenue,CAHD,South - Commissioned Services,Supported Living,Aspirations,477.48, 28-Nov-2022
394,Revenue,CAHD,South - Commissioned Services,Supported Living,Aspirations,2883.81, 28-Nov-2022
395,Revenue,CAHD,South - Commissioned Services,Supported Living,Aspirations,3110.59, 28-Nov-2022
396,Revenue,CAHD,South - Commissioned Services,Supported Living,Aspirations,1702.32, 28-Nov-2022
397,Revenue,CAHD,South - Commissioned Services,Supported Living,Aspirations,373.68, 28-Nov-2022
398,Revenue,CAHD,South - Commissioned Services,Mentoring,Aspirations,101.76, 28-Nov-2022
399,Revenue,CAHD,South - Commissioned Services,Mentoring,Aspirations,50.88, 28-Nov-2022
400,Revenue,CAHD,North - Community based support,Other Small Contracts,Aspirations,584.64, 28-Nov-2022
401,Revenue,CAHD,North - Community based support,Other Small Contracts,Aspirations,332.16, 28-Nov-2022
402,Revenue,CAHD,North - Community based support,Supported Living,Aspirations,2325.12, 28-Nov-2022
403,Revenue,CAHD,North - Community based support,Supported Living,Aspirations,176.46, 28-Nov-2022
404,Revenue,CAHD,18-25 Year Olds,Other Small Contracts,Aspirations,124.56, 28-Nov-2022
405,Revenue,CAHD,18-25 Year Olds,Other Small Contracts,Aspirations,124.56, 28-Nov-2022
406,Revenue,CAHD,18-25 Year Olds,Other Small Contracts,Aspirations,83.04, 28-Nov-2022
407,Revenue,CAHD,18-25 Year Olds,Other Small Contracts,Aspirations,124.56, 28-Nov-2022
408,Revenue,CAHD,18-25 Year Olds,Other Small Contracts,Aspirations,145.32, 28-Nov-2022
409,Revenue,CAHD,18-25 Year Olds,Supported Living,Aspirations,736.98, 28-Nov-2022
410,Revenue,CAHD,18-25 Year Olds,Supported Living,Aspirations,871.92, 28-Nov-2022
411,Revenue,CAHD,Central - Commissioned Services,Other Small Contracts,Aspirations,50.88, 28-Nov-2022
412,Revenue,CAHD,Central - Commissioned Services,Other Small Contracts,Aspirations,581.28, 28-Nov-2022
413,Revenue,CAHD,Central - Commissioned Services,Other Small Contracts,Aspirations,228.36, 28-Nov-2022
414,Revenue,CAHD,South - Commissioned Services,Other Small Contracts,Aspirations,1836.00, 28-Nov-2022
415,Revenue,CAHD,South - Commissioned Services,Other Small Contracts,Aspirations,166.08, 28-Nov-2022
416,Revenue,CAHD,South - Commissioned Services,Other Small Contracts,Aspirations,89.04, 28-Nov-2022
417,Revenue,CAHD,South - Commissioned Services,Supported Living,Aspirations,249.12, 28-Nov-2022
418,Revenue,CAHD,South - Commissioned Services,Supported Living,Aspirations,584.64, 28-Nov-2022
419,Revenue,CAHD,South - Commissioned Services,Supported Living,Aspirations,394.44, 28-Nov-2022
420,Revenue,CAHD,South - Commissioned Services,Supported Living,Aspirations,1473.96, 28-Nov-2022
421,Revenue,CAHD,South - Commissioned Services,Supported Living,Aspirations,238.74, 28-Nov-2022
422,Revenue,CAHD,South - Commissioned Services,Supported Living,Aspirations,352.92, 28-Nov-2022
423,Revenue,CAHD,South - Commissioned Services,Supported Living,Aspirations,648.00, 28-Nov-2022
424,Revenue,CAHD,South - Commissioned Services,Supported Living,Aspirations,977.40, 28-Nov-2022
425,Revenue,CAHD,South - Commissioned Services,Supported Living,Aspirations,259.50, 28-Nov-2022
426,Revenue,CAHD,South - Commissioned Services,Supported Living,Aspirations,228.36, 28-Nov-2022
427,Revenue,CAHD,South - Commissioned Services,Supported Living,Aspirations,2795.58, 28-Nov-2022
428,Revenue,CAHD,South - Commissioned Services,Supported Living,Aspirations,124.56, 28-Nov-2022
429,Revenue,CAHD,South - Commissioned Services,Supported Living,Aspirations,1442.82, 28-Nov-2022
430,Revenue,CAHD,South - Commissioned Services,Supported Living,Aspirations,477.48, 28-Nov-2022
431,Revenue,CAHD,South - Commissioned Services,Supported Living,Aspirations,2901.99, 28-Nov-2022
432,Revenue,CAHD,South - Commissioned Services,Supported Living,Aspirations,3117.03, 28-Nov-2022
433,Revenue,CAHD,South - Commissioned Services,Supported Living,Aspirations,1930.68, 28-Nov-2022
434,Revenue,CAHD,South - Commissioned Services,Supported Living,Aspirations,498.24, 28-Nov-2022
435,Revenue,CAHD,South - Commissioned Services,Mentoring,Aspirations,101.76, 28-Nov-2022
436,Revenue,CAHD,South - Commissioned Services,Mentoring,Aspirations,50.88, 28-Nov-2022
437,Revenue,CAHD,North - Community based support,Other Small Contracts,Aspirations,563.88, 28-Nov-2022
438,Revenue,CAHD,North - Community based support,Other Small Contracts,Aspirations,332.16, 28-Nov-2022
439,Revenue,CAHD,North - Community based support,Supported Living,Aspirations,2325.12, 28-Nov-2022
440,Revenue,CAHD,North - Community based support,Supported Living,Aspirations,176.46, 28-Nov-2022
441,Revenue,CAHD,18-25 Year Olds,Adults - Family Support,Aspirations Support Bristol Limited,14589.68, 11-Nov-2022
442,Revenue,CAHD,18-25 Year Olds,Adults - Family Support,Aspirations Support Bristol Limited,13759.68, 11-Nov-2022
443,Revenue,CAHD,CSC - Vinney Green Secure Unit,R & M by Departments,Assa Abloy Limited,940.00, 25-Nov-2022
444,Revenue,CAHD,18-25 Year Olds,Adults - Family Support,Ategi Limited,264.00, 15-Nov-2022
445,Revenue,CAHD,18-25 Year Olds,Adults - Family Support,Ategi Limited,2806.24, 15-Nov-2022
446,Revenue,CAHD,18-25 Year Olds,Adults - Family Support,Ategi Limited,1695.36, 15-Nov-2022
447,Revenue,CAHD,18-25 Year Olds,Respite Care,Ategi Limited,0.00, 15-Nov-2022
448,Revenue,CAHD,18-25 Year Olds,Respite Care,Ategi Limited,0.00, 15-Nov-2022
449,Revenue,CAHD,18-25 Year Olds,Respite Care,Ategi Limited,0.00, 15-Nov-2022
450,Revenue,CAHD,South - Commissioned Services,Adults - Family Support,Ategi Limited,1695.36, 15-Nov-2022
451,Revenue,CAHD,South - Commissioned Services,Adults - Family Support,Ategi Limited,2424.64, 15-Nov-2022
452,Revenue,CAHD,South - Commissioned Services,Adults - Family Support,Ategi Limited,264.00, 15-Nov-2022
453,Revenue,CAHD,South - Commissioned Services,Adults - Family Support,Ategi Limited,2424.64, 15-Nov-2022
454,Revenue,CAHD,South - Commissioned Services,Adults - Family Support,Ategi Limited,1695.36, 15-Nov-2022
455,Revenue,CAHD,South - Commissioned Services,Adults - Family Support,Ategi Limited,1144.00, 15-Nov-2022
456,Revenue,CAHD,South - Commissioned Services,Respite Care,Ategi Limited,0.00, 15-Nov-2022
457,Revenue,CAHD,South - Commissioned Services,Respite Care,Ategi Limited,0.00, 15-Nov-2022
458,Revenue,CAHD,South - Commissioned Services,Respite Care,Ategi Limited,0.00, 15-Nov-2022
459,Revenue,CAHD,North - Community based support,Adults - Family Support,Ategi Limited,1695.36, 15-Nov-2022
460,Revenue,CAHD,North - Community based support,Adults - Family Support,Ategi Limited,1695.36, 15-Nov-2022
461,Revenue,CAHD,North - Community based support,Adults - Family Support,Ategi Limited,299.52, 15-Nov-2022
462,Revenue,CAHD,North - Community based support,Respite Care,Ategi Limited,0.00, 15-Nov-2022
463,Revenue,CAHD,North - Community based support,Respite Care,Ategi Limited,0.00, 15-Nov-2022
464,Revenue,CAHD,Statemented Support Academies,Other Public Bodies,Athelstan Trust,740.00, 22-Nov-2022
465,Revenue,CAHD,Statemented Support Academies,Other Public Bodies,Athelstan Trust,1012.67, 22-Nov-2022
466,Revenue,CAHD,Statemented Support Academies,Other Public Bodies,Athelstan Trust,740.00, 22-Nov-2022
467,Revenue,CAHD,Statemented Support Academies,Other Public Bodies,Athelstan Trust,740.00, 22-Nov-2022
468,Revenue,CAHD,Statemented Support Academies,Other Public Bodies,Athelstan Trust,740.00, 22-Nov-2022
469,Revenue,CAHD,Statemented Support Academies,Other Public Bodies,Athelstan Trust,740.00, 22-Nov-2022
470,Revenue,CAHD,Statemented Support Academies,Other Public Bodies,Athelstan Trust,740.00, 22-Nov-2022
471,Revenue,CAHD,Academy Resource Base Funding,Other Public Bodies,Athelstan Trust,1377.69, 22-Nov-2022
472,Revenue,CAHD,Academy Resource Base Funding,Other Public Bodies,Athelstan Trust,1377.69, 22-Nov-2022
473,Revenue,CAHD,Academy Resource Base Funding,Other Public Bodies,Athelstan Trust,1377.69, 22-Nov-2022
474,Revenue,CAHD,Academy Resource Base Funding,Other Public Bodies,Athelstan Trust,1377.69, 22-Nov-2022
475,Revenue,CAHD,Academy Resource Base Funding,Other Public Bodies,Athelstan Trust,1377.69, 22-Nov-2022
476,Revenue,CAHD,Academy Resource Base Funding,Other Public Bodies,Athelstan Trust,1147.97, 22-Nov-2022
477,Revenue,CAHD,Academy Resource Base Funding,Other Public Bodies,Athelstan Trust,1147.97, 22-Nov-2022
478,Revenue,CAHD,Academy Resource Base Funding,Other Public Bodies,Athelstan Trust,1147.97, 22-Nov-2022
479,Revenue,CAHD,Academy Resource Base Funding,Other Public Bodies,Athelstan Trust,1377.69, 22-Nov-2022
480,Revenue,CAHD,Academy Resource Base Funding,Other Public Bodies,Athelstan Trust,1377.69, 22-Nov-2022
481,Revenue,CAHD,Academy Resource Base Funding,Other Public Bodies,Athelstan Trust,1377.69, 22-Nov-2022
482,Revenue,CAHD,Academy Resource Base Funding,Other Public Bodies,Athelstan Trust,2465.76, 22-Nov-2022
483,Revenue,CAHD,Academy Resource Base Funding,Other Public Bodies,Athelstan Trust,1147.97, 22-Nov-2022
484,Revenue,CAHD,Academy Resource Base Funding,Other Public Bodies,Athelstan Trust,1147.97, 22-Nov-2022
485,Revenue,CAHD,Special ISB,Other Public Bodies,Athelstan Trust,3451.76, 22-Nov-2022
486,Revenue,CAHD,Special ISB,Other Public Bodies,Athelstan Trust,1137.94, 22-Nov-2022
487,Revenue,CAHD,Special ISB,Other Public Bodies,Athelstan Trust,1137.94, 22-Nov-2022
488,Revenue,CAHD,Special ISB,Other Public Bodies,Athelstan Trust,1137.94, 22-Nov-2022
489,Revenue,CAHD,Special ISB,Other Public Bodies,Athelstan Trust,1137.94, 22-Nov-2022
490,Revenue,CAHD,Special ISB,Other Public Bodies,Athelstan Trust,863.27, 22-Nov-2022
491,Revenue,CAHD,Special ISB,Other Public Bodies,Athelstan Trust,2733.79, 22-Nov-2022
492,Revenue,CAHD,Special ISB,Other Public Bodies,Athelstan Trust,1137.94, 22-Nov-2022
493,Revenue,CAHD,Special ISB,Other Public Bodies,Athelstan Trust,863.27, 22-Nov-2022
494,Revenue,CAHD,Special ISB,Other Public Bodies,Athelstan Trust,2618.59, 22-Nov-2022
495,Revenue,CAHD,Special ISB,Other Public Bodies,Athelstan Trust,1648.03, 22-Nov-2022
496,Revenue,CAHD,Special ISB,Other Public Bodies,Athelstan Trust,1491.13, 22-Nov-2022
497,Revenue,CAHD,Special ISB,Other Public Bodies,Athelstan Trust,1137.94, 22-Nov-2022
498,Revenue,CAHD,Special ISB,Other Public Bodies,Athelstan Trust,2618.59, 22-Nov-2022
499,Revenue,CAHD,Special ISB,Other Public Bodies,Athelstan Trust,1137.94, 22-Nov-2022
500,Revenue,CAHD,Special ISB,Other Public Bodies,Athelstan Trust,2618.59, 22-Nov-2022
501,Revenue,CAHD,Special ISB,Other Public Bodies,Athelstan Trust,3451.76, 22-Nov-2022
502,Revenue,CAHD,Special ISB,Other Public Bodies,Athelstan Trust,1491.13, 22-Nov-2022
503,Revenue,CAHD,Special ISB,Other Public Bodies,Athelstan Trust,1491.13, 22-Nov-2022
504,Revenue,CAHD,Special ISB,Other Public Bodies,Athelstan Trust,1137.94, 22-Nov-2022
505,Revenue,CAHD,Special ISB,Other Public Bodies,Athelstan Trust,1137.94, 22-Nov-2022
506,Revenue,CAHD,Special ISB,Other Public Bodies,Athelstan Trust,1137.94, 22-Nov-2022
507,Revenue,CAHD,Special ISB,Other Public Bodies,Athelstan Trust,1137.94, 22-Nov-2022
508,Revenue,CAHD,Special ISB,Other Public Bodies,Athelstan Trust,627.77, 22-Nov-2022
509,Revenue,CAHD,Special ISB,Other Public Bodies,Athelstan Trust,863.27, 22-Nov-2022
510,Revenue,CAHD,Special ISB,Other Public Bodies,Athelstan Trust,1428.31, 22-Nov-2022
511,Revenue,CAHD,Special ISB,Other Public Bodies,Athelstan Trust,2219.65, 22-Nov-2022
512,Revenue,CAHD,Special ISB,Other Public Bodies,Athelstan Trust,863.27, 22-Nov-2022
513,Revenue,CAHD,Special ISB,Other Public Bodies,Athelstan Trust,2118.90, 22-Nov-2022
514,Revenue,CAHD,Special ISB,Other Public Bodies,Athelstan Trust,1137.94, 22-Nov-2022
515,Revenue,CAHD,Special ISB,Other Public Bodies,Athelstan Trust,1137.94, 22-Nov-2022
516,Revenue,CAHD,Special ISB,Other Public Bodies,Athelstan Trust,2618.59, 22-Nov-2022
517,Revenue,CAHD,Special ISB,Other Public Bodies,Athelstan Trust,1137.94, 22-Nov-2022
518,Revenue,CAHD,Special ISB,Other Public Bodies,Athelstan Trust,3451.76, 22-Nov-2022
519,Revenue,CAHD,Special ISB,Other Public Bodies,Athelstan Trust,1137.94, 22-Nov-2022
520,Revenue,CAHD,Special ISB,Other Public Bodies,Athelstan Trust,1137.94, 22-Nov-2022
521,Revenue,CAHD,Special ISB,Other Public Bodies,Athelstan Trust,2510.02, 22-Nov-2022
522,Revenue,CAHD,Special ISB,Other Public Bodies,Athelstan Trust,1491.13, 22-Nov-2022
523,Revenue,CAHD,Special ISB,Other Public Bodies,Athelstan Trust,1491.13, 22-Nov-2022
524,Revenue,CAHD,Special ISB,Other Public Bodies,Athelstan Trust,1137.94, 22-Nov-2022
525,Revenue,CAHD,Special ISB,Other Public Bodies,Athelstan Trust,2118.90, 22-Nov-2022
526,Revenue,CAHD,Special ISB,Other Public Bodies,Athelstan Trust,863.27, 22-Nov-2022
527,Revenue,CAHD,Special ISB,Other Public Bodies,Athelstan Trust,2118.90, 22-Nov-2022
528,Revenue,CAHD,Special ISB,Other Public Bodies,Athelstan Trust,1137.94, 22-Nov-2022
529,Revenue,CAHD,Special ISB,Other Public Bodies,Athelstan Trust,3451.76, 22-Nov-2022
530,Revenue,CAHD,Special ISB,Other Public Bodies,Athelstan Trust,1137.94, 22-Nov-2022
531,Revenue,CAHD,Special ISB,Other Public Bodies,Athelstan Trust,3451.76, 22-Nov-2022
532,Revenue,CAHD,Special ISB,Other Public Bodies,Athelstan Trust,627.77, 22-Nov-2022
533,Revenue,CAHD,Special ISB,Other Public Bodies,Athelstan Trust,2118.90, 22-Nov-2022
534,Revenue,CAHD,Special ISB,Other Public Bodies,Athelstan Trust,2118.90, 22-Nov-2022
535,Revenue,CAHD,Special ISB,Other Public Bodies,Athelstan Trust,3451.76, 22-Nov-2022
536,Revenue,CAHD,Special ISB,Other Public Bodies,Athelstan Trust,1491.13, 22-Nov-2022
537,Revenue,CAHD,Special ISB,Other Public Bodies,Athelstan Trust,1137.94, 22-Nov-2022
538,Revenue,CAHD,Special ISB,Other Public Bodies,Athelstan Trust,3451.76, 22-Nov-2022
539,Revenue,CAHD,Special ISB,Other Public Bodies,Athelstan Trust,1137.94, 22-Nov-2022
540,Revenue,CAHD,Special ISB,Other Public Bodies,Athelstan Trust,863.27, 22-Nov-2022
541,Revenue,CAHD,Special ISB,Other Public Bodies,Athelstan Trust,1137.94, 22-Nov-2022
542,Revenue,CAHD,Special ISB,Other Public Bodies,Athelstan Trust,1137.94, 22-Nov-2022
543,Revenue,CAHD,Special ISB,Other Public Bodies,Athelstan Trust,863.27, 22-Nov-2022
544,Revenue,CAHD,Special ISB,Other Public Bodies,Athelstan Trust,2118.90, 22-Nov-2022
545,Revenue,CAHD,Special ISB,Other Public Bodies,Athelstan Trust,1137.94, 22-Nov-2022
546,Revenue,CAHD,Special ISB,Other Public Bodies,Athelstan Trust,1137.94, 22-Nov-2022
547,Revenue,CAHD,Special ISB,Other Public Bodies,Athelstan Trust,863.27, 22-Nov-2022
548,Revenue,CAHD,Special ISB,Other Public Bodies,Athelstan Trust,1137.94, 22-Nov-2022
549,Revenue,CAHD,Special ISB,Other Public Bodies,Athelstan Trust,1900.62, 22-Nov-2022
550,Revenue,CAHD,Special ISB,Other Public Bodies,Athelstan Trust,1491.13, 22-Nov-2022
551,Revenue,CAHD,Special ISB,Other Public Bodies,Athelstan Trust,1491.13, 22-Nov-2022
552,Revenue,CAHD,Special ISB,Other Public Bodies,Athelstan Trust,863.27, 22-Nov-2022
553,Revenue,CAHD,Special ISB,Other Public Bodies,Athelstan Trust,1648.03, 22-Nov-2022
554,Revenue,CAHD,Special ISB,Other Public Bodies,Athelstan Trust,1491.13, 22-Nov-2022
555,Revenue,CAHD,Special ISB,Other Public Bodies,Athelstan Trust,863.27, 22-Nov-2022
556,Revenue,CAHD,Special ISB,Other Public Bodies,Athelstan Trust,1137.94, 22-Nov-2022
557,Revenue,CAHD,Special ISB,Other Public Bodies,Athelstan Trust,627.77, 22-Nov-2022
558,Revenue,CAHD,Special ISB,Other Public Bodies,Athelstan Trust,1137.94, 22-Nov-2022
559,Revenue,CAHD,Special ISB,Other Public Bodies,Athelstan Trust,1137.94, 22-Nov-2022
560,Revenue,CAHD,Special ISB,Other Public Bodies,Athelstan Trust,1137.94, 22-Nov-2022
561,Revenue,CAHD,Special ISB,Other Public Bodies,Athelstan Trust,863.27, 22-Nov-2022
562,Revenue,CAHD,Special ISB,Other Public Bodies,Athelstan Trust,863.27, 22-Nov-2022
563,Revenue,CAHD,Special ISB,Other Public Bodies,Athelstan Trust,2432.79, 22-Nov-2022
564,Revenue,CAHD,Special ISB,Other Public Bodies,Athelstan Trust,2118.90, 22-Nov-2022
565,Revenue,CAHD,Special ISB,Other Public Bodies,Athelstan Trust,627.77, 22-Nov-2022
566,Revenue,CAHD,Special ISB,Other Public Bodies,Athelstan Trust,627.77, 22-Nov-2022
567,Revenue,CAHD,Special ISB,Other Public Bodies,Athelstan Trust,1491.13, 22-Nov-2022
568,Revenue,CAHD,Special ISB,Other Public Bodies,Athelstan Trust,863.27, 22-Nov-2022
569,Revenue,CAHD,Special ISB,Other Public Bodies,Athelstan Trust,3451.76, 22-Nov-2022
570,Revenue,CAHD,Special ISB,Other Public Bodies,Athelstan Trust,2118.90, 22-Nov-2022
571,Revenue,CAHD,Special ISB,Other Public Bodies,Athelstan Trust,1491.13, 22-Nov-2022
572,Revenue,CAHD,Special ISB,Other Public Bodies,Athelstan Trust,1137.94, 22-Nov-2022
573,Revenue,CAHD,Special ISB,Other Public Bodies,Athelstan Trust,863.27, 22-Nov-2022
574,Revenue,CAHD,Special ISB,Other Public Bodies,Athelstan Trust,1137.94, 22-Nov-2022
575,Revenue,CAHD,Special ISB,Other Public Bodies,Athelstan Trust,1137.94, 22-Nov-2022
576,Revenue,CAHD,Special ISB,Other Public Bodies,Athelstan Trust,1491.13, 22-Nov-2022
577,Revenue,CAHD,Special ISB,Other Public Bodies,Athelstan Trust,2618.59, 22-Nov-2022
578,Revenue,CAHD,Special ISB,Other Public Bodies,Athelstan Trust,1137.94, 22-Nov-2022
579,Revenue,CAHD,Special ISB,Other Public Bodies,Athelstan Trust,863.27, 22-Nov-2022
580,Revenue,CAHD,Special ISB,Other Public Bodies,Athelstan Trust,1137.94, 22-Nov-2022
581,Revenue,CAHD,Special ISB,Other Public Bodies,Athelstan Trust,1491.13, 22-Nov-2022
582,Revenue,CAHD,CSC - Vinney Green Secure Unit,R & M by Departments,Atus Systems Limited,584.81, 11-Nov-2022
583,Revenue,CAHD,CSC - Vinney Green Secure Unit,R & M by Departments,Atus Systems Limited,2876.61, 25-Nov-2022
584,Revenue,CAHD,Independent Special Placements - Pre 16,Other Private Contractors,Aurora Severnside School,25044.00, 03-Nov-2022
585,Revenue,CAHD,South - Commissioned Services,Permanent Residential,Autism Specialised Care Homes,6506.88, 15-Nov-2022
586,Revenue,CAHD,South - Commissioned Services,Fees & Charges Income - General,Autism Specialised Care Homes,-438.80, 15-Nov-2022
587,Revenue,CAHD,Younger Adult Mental Health,Agency Staff (Admin/Support Staff) Pay,Avon & Wiltshire Mental Health,4632.00, 16-Nov-2022
588,Revenue,CAHD,Younger Adult Mental Health,Health Services (Third Party Payments),Avon & Wiltshire Mental Health,1700.00, 18-Nov-2022
589,Revenue,CAHD,Younger Adult Mental Health,Health Services (Third Party Payments),Avon & Wiltshire Mental Health,2981.00, 28-Nov-2022
590,Revenue,CAHD,Younger Adult Mental Health,Health Services (Third Party Payments),Avon & Wiltshire Mental Health,14583.00, 30-Nov-2022
591,Revenue,CAHD,South Glos Users in South Glos Homes,Permanent Nursing,Avon Lodge Care Centre,836.76, 15-Nov-2022
592,Revenue,CAHD,South Glos Users in South Glos Homes,Permanent Nursing,Avon Lodge Care Centre,836.76, 15-Nov-2022
593,Revenue,CAHD,South Glos Users in South Glos Homes,Permanent Nursing,Avon Lodge Care Centre,836.76, 15-Nov-2022
594,Revenue,CAHD,South Glos Users in South Glos Homes,Permanent Nursing,Avon Lodge Care Centre,836.76, 15-Nov-2022
595,Revenue,CAHD,South Glos Users in South Glos Homes,Permanent Nursing,Avon Lodge Care Centre,836.76, 15-Nov-2022
596,Revenue,CAHD,South Glos Users in South Glos Homes,Permanent Nursing,Avon Lodge Care Centre,836.76, 15-Nov-2022
597,Revenue,CAHD,South Glos Users in South Glos Homes,Permanent Nursing,Avon Lodge Care Centre,836.76, 15-Nov-2022
598,Revenue,CAHD,South Glos Users in South Glos Homes,Permanent Nursing,Avon Lodge Care Centre,836.76, 15-Nov-2022
599,Revenue,CAHD,South Glos Users in South Glos Homes,Permanent Nursing,Avon Lodge Care Centre,836.76, 15-Nov-2022
600,Revenue,CAHD,South Glos Users in South Glos Homes,Permanent Nursing,Avon Lodge Care Centre,836.76, 15-Nov-2022
601,Revenue,CAHD,South Glos Users in South Glos Homes,Permanent Nursing,Avon Lodge Care Centre,2243.35, 15-Nov-2022
602,Revenue,CAHD,South Glos Users in South Glos Homes,Permanent Nursing,Avon Lodge Care Centre,836.76, 15-Nov-2022
603,Revenue,CAHD,South Glos Users in South Glos Homes,Permanent Nursing,Avon Lodge Care Centre,-89.66, 15-Nov-2022
604,Revenue,CAHD,South Glos Users in South Glos Homes,Permanent Nursing,Avon Lodge Care Centre,836.76, 15-Nov-2022
605,Revenue,CAHD,South Glos Users in South Glos Homes,Permanent Nursing,Avon Lodge Care Centre,836.76, 15-Nov-2022
606,Revenue,CAHD,South Glos Users in South Glos Homes,Permanent Nursing,Avon Lodge Care Centre,836.76, 15-Nov-2022
607,Revenue,CAHD,South Glos Users in South Glos Homes,Permanent Nursing,Avon Lodge Care Centre,836.76, 15-Nov-2022
608,Revenue,CAHD,South Glos Users in South Glos Homes,Permanent Nursing,Avon Lodge Care Centre,836.76, 15-Nov-2022
609,Revenue,CAHD,South Glos Users in South Glos Homes,Permanent Nursing,Avon Lodge Care Centre,-537.92, 15-Nov-2022
610,Revenue,CAHD,South Glos Users in South Glos Homes,Permanent Nursing,Avon Lodge Care Centre,-268.96, 15-Nov-2022
611,Revenue,CAHD,South Glos Users in South Glos Homes,Permanent Nursing,Avon Lodge Care Centre,6160.96, 15-Nov-2022
612,Revenue,CAHD,South Glos Users in South Glos Homes,Permanent Nursing,Avon Lodge Care Centre,836.76, 15-Nov-2022
613,Revenue,CAHD,South Glos Users in South Glos Homes,Permanent Nursing,Avon Lodge Care Centre,836.76, 15-Nov-2022
614,Revenue,CAHD,South Glos Users in South Glos Homes,Permanent Nursing,Avon Lodge Care Centre,836.76, 15-Nov-2022
615,Revenue,CAHD,South Glos Users in South Glos Homes,Permanent Nursing,Avon Lodge Care Centre,-926.42, 15-Nov-2022
616,Revenue,CAHD,South Glos Users in South Glos Homes,Permanent Nursing,Avon Lodge Care Centre,836.76, 15-Nov-2022
617,Revenue,CAHD,South Glos Users in South Glos Homes,Permanent Nursing,Avon Lodge Care Centre,836.76, 15-Nov-2022
618,Revenue,CAHD,South Glos Users in South Glos Homes,Permanent Nursing,Avon Lodge Care Centre,-2809.12, 15-Nov-2022
619,Revenue,CAHD,South Glos Users in South Glos Homes,Permanent Nursing,Avon Lodge Care Centre,836.76, 15-Nov-2022
620,Revenue,CAHD,South Glos Users in South Glos Homes,Permanent Nursing,Avon Lodge Care Centre,836.76, 15-Nov-2022
621,Revenue,CAHD,South Glos Users in South Glos Homes,Permanent Nursing,Avon Lodge Care Centre,836.76, 15-Nov-2022
622,Revenue,CAHD,South Glos Users in South Glos Homes,Permanent Nursing,Avon Lodge Care Centre,836.76, 15-Nov-2022
623,Revenue,CAHD,Central - Commissioned Services,Respite Planned - Residential,Avon Lodge Care Centre,4296.00, 15-Nov-2022
624,Revenue,CAHD,Central - Commissioned Services,Permanent Nursing,Avon Lodge Care Centre,4296.48, 15-Nov-2022
625,Revenue,CAHD,Central - Commissioned Services,Permanent Nursing,Avon Lodge Care Centre,4120.64, 15-Nov-2022
626,Revenue,CAHD,Central - Commissioned Services,Respite Planned - Nursing,Avon Lodge Care Centre,2148.00, 15-Nov-2022
627,Revenue,CAHD,Central - Commissioned Services,Respite Planned - Nursing,Avon Lodge Care Centre,2301.43, 15-Nov-2022
628,Revenue,CAHD,Central - Commissioned Services,Fees & Charges Income - General,Avon Lodge Care Centre,-1308.52, 15-Nov-2022
629,Revenue,CAHD,Central - Commissioned Services,Fees & Charges Income - General,Avon Lodge Care Centre,-956.96, 15-Nov-2022
630,Revenue,CAHD,South - Commissioned Services,Permanent Residential,Avon Lodge Care Centre,3318.24, 15-Nov-2022
631,Revenue,CAHD,South - Commissioned Services,Permanent Residential,Avon Lodge Care Centre,3800.00, 15-Nov-2022
632,Revenue,CAHD,South - Commissioned Services,Permanent Residential,Avon Lodge Care Centre,3816.00, 15-Nov-2022
633,Revenue,CAHD,South - Commissioned Services,Permanent Residential,Avon Lodge Care Centre,-2589.43, 15-Nov-2022
634,Revenue,CAHD,South - Commissioned Services,Permanent Residential,Avon Lodge Care Centre,8285.14, 15-Nov-2022
635,Revenue,CAHD,South - Commissioned Services,Permanent Residential,Avon Lodge Care Centre,3667.60, 15-Nov-2022
636,Revenue,CAHD,South - Commissioned Services,Permanent Residential,Avon Lodge Care Centre,8135.71, 15-Nov-2022
637,Revenue,CAHD,South - Commissioned Services,Respite Planned - Residential,Avon Lodge Care Centre,2301.42, 15-Nov-2022
638,Revenue,CAHD,South - Commissioned Services,Permanent Nursing,Avon Lodge Care Centre,4296.48, 15-Nov-2022
639,Revenue,CAHD,South - Commissioned Services,Permanent Nursing,Avon Lodge Care Centre,4028.00, 15-Nov-2022
640,Revenue,CAHD,South - Commissioned Services,Permanent Nursing,Avon Lodge Care Centre,4296.48, 15-Nov-2022
641,Revenue,CAHD,South - Commissioned Services,Permanent Nursing,Avon Lodge Care Centre,5349.68, 15-Nov-2022
642,Revenue,CAHD,South - Commissioned Services,Permanent Nursing,Avon Lodge Care Centre,3539.44, 15-Nov-2022
643,Revenue,CAHD,South - Commissioned Services,Permanent Nursing,Avon Lodge Care Centre,3751.96, 15-Nov-2022
644,Revenue,CAHD,South - Commissioned Services,Permanent Nursing,Avon Lodge Care Centre,4210.12, 15-Nov-2022
645,Revenue,CAHD,South - Commissioned Services,Permanent Nursing,Avon Lodge Care Centre,4714.76, 15-Nov-2022
646,Revenue,CAHD,South - Commissioned Services,Permanent Nursing,Avon Lodge Care Centre,4775.44, 15-Nov-2022
647,Revenue,CAHD,South - Commissioned Services,Permanent Nursing,Avon Lodge Care Centre,4674.92, 15-Nov-2022
648,Revenue,CAHD,South - Commissioned Services,Permanent Nursing,Avon Lodge Care Centre,4664.00, 15-Nov-2022
649,Revenue,CAHD,South - Commissioned Services,Permanent Nursing,Avon Lodge Care Centre,-1324.49, 15-Nov-2022
650,Revenue,CAHD,South - Commissioned Services,Permanent Nursing,Avon Lodge Care Centre,4554.28, 15-Nov-2022
651,Revenue,CAHD,South - Commissioned Services,Permanent Nursing,Avon Lodge Care Centre,4296.48, 15-Nov-2022
652,Revenue,CAHD,South - Commissioned Services,Respite Planned - Nursing,Avon Lodge Care Centre,6904.29, 15-Nov-2022
653,Revenue,CAHD,South - Commissioned Services,Respite Planned - Nursing,Avon Lodge Care Centre,153.45, 15-Nov-2022
654,Revenue,CAHD,South - Commissioned Services,Respite Planned - Nursing,Avon Lodge Care Centre,2148.24, 15-Nov-2022
655,Revenue,CAHD,South - Commissioned Services,Fees & Charges Income - General,Avon Lodge Care Centre,-679.80, 15-Nov-2022
656,Revenue,CAHD,South - Commissioned Services,Fees & Charges Income - General,Avon Lodge Care Centre,-1134.24, 15-Nov-2022
657,Revenue,CAHD,South - Commissioned Services,Fees & Charges Income - General,Avon Lodge Care Centre,-725.24, 15-Nov-2022
658,Revenue,CAHD,South - Commissioned Services,Fees & Charges Income - General,Avon Lodge Care Centre,-1066.12, 15-Nov-2022
659,Revenue,CAHD,South - Commissioned Services,Fees & Charges Income - General,Avon Lodge Care Centre,-1393.76, 15-Nov-2022
660,Revenue,CAHD,South - Commissioned Services,Fees & Charges Income - General,Avon Lodge Care Centre,-1525.00, 15-Nov-2022
661,Revenue,CAHD,South - Commissioned Services,Fees & Charges Income - General,Avon Lodge Care Centre,-438.80, 15-Nov-2022
662,Revenue,CAHD,South - Commissioned Services,Fees & Charges Income - General,Avon Lodge Care Centre,-1280.20, 15-Nov-2022
663,Revenue,CAHD,South - Commissioned Services,Fees & Charges Income - General,Avon Lodge Care Centre,-811.68, 15-Nov-2022
664,Revenue,CAHD,South - Commissioned Services,Fees & Charges Income - General,Avon Lodge Care Centre,-1017.44, 15-Nov-2022
665,Revenue,CAHD,South - Commissioned Services,Fees & Charges Income - General,Avon Lodge Care Centre,-852.32, 15-Nov-2022
666,Revenue,CAHD,South - Commissioned Services,Fees & Charges Income - General,Avon Lodge Care Centre,-1056.84, 15-Nov-2022
667,Revenue,CAHD,South - Commissioned Services,Fees & Charges Income - General,Avon Lodge Care Centre,-1889.12, 15-Nov-2022
668,Revenue,CAHD,South - Commissioned Services,Fees & Charges Income - General,Avon Lodge Care Centre,994.13, 15-Nov-2022
669,Revenue,CAHD,South - Commissioned Services,Fees & Charges Income - General,Avon Lodge Care Centre,408.52, 15-Nov-2022
670,Revenue,CAHD,South - Commissioned Services,Fees & Charges Income - General,Avon Lodge Care Centre,-627.80, 15-Nov-2022
671,Revenue,CAHD,South - Commissioned Services,Fees & Charges Income - General,Avon Lodge Care Centre,-627.80, 15-Nov-2022
672,Revenue,CAHD,North - Community based support,Respite Care,Avon Lodge Care Centre,0.00, 15-Nov-2022
673,Revenue,CAHD,North - Community based support,Permanent Residential,Avon Lodge Care Centre,5063.14, 15-Nov-2022
674,Revenue,CAHD,North - Community based support,Permanent Residential,Avon Lodge Care Centre,3751.96, 15-Nov-2022
675,Revenue,CAHD,North - Community based support,Permanent Nursing,Avon Lodge Care Centre,4553.76, 15-Nov-2022
676,Revenue,CAHD,North - Community based support,Permanent Nursing,Avon Lodge Care Centre,4120.64, 15-Nov-2022
677,Revenue,CAHD,North - Community based support,Respite Planned - Nursing,Avon Lodge Care Centre,4105.80, 15-Nov-2022
678,Revenue,CAHD,North - Community based support,Fees & Charges Income - General,Avon Lodge Care Centre,-627.80, 15-Nov-2022
679,Revenue,CAHD,North - Community based support,Fees & Charges Income - General,Avon Lodge Care Centre,-1323.91, 15-Nov-2022
680,Revenue,CAHD,North - Community based support,Fees & Charges Income - General,Avon Lodge Care Centre,-1493.16, 15-Nov-2022
681,Revenue,CAHD,North - Community based support,Fees & Charges Income - General,Avon Lodge Care Centre,-794.36, 15-Nov-2022
682,Revenue,CAHD,South - Commissioned Services,Permanent Residential,Avon Valley Care Home,4337.52, 15-Nov-2022
683,Revenue,CAHD,South - Commissioned Services,Permanent Residential,Avon Valley Care Home,4526.20, 15-Nov-2022
684,Revenue,CAHD,South - Commissioned Services,Permanent Residential,Avon Valley Care Home,4294.16, 15-Nov-2022
685,Revenue,CAHD,South - Commissioned Services,Permanent Residential,Avon Valley Care Home,4483.80, 15-Nov-2022
686,Revenue,CAHD,South - Commissioned Services,Permanent Residential,Avon Valley Care Home,4294.16, 15-Nov-2022
687,Revenue,CAHD,South - Commissioned Services,Permanent Residential,Avon Valley Care Home,4526.20, 15-Nov-2022
688,Revenue,CAHD,South - Commissioned Services,Permanent Residential,Avon Valley Care Home,3214.08, 15-Nov-2022
689,Revenue,CAHD,South - Commissioned Services,Permanent Residential,Avon Valley Care Home,4483.80, 15-Nov-2022
690,Revenue,CAHD,South - Commissioned Services,Permanent Residential,Avon Valley Care Home,4570.00, 15-Nov-2022
691,Revenue,CAHD,South - Commissioned Services,Permanent Residential,Avon Valley Care Home,4728.28, 15-Nov-2022
692,Revenue,CAHD,South - Commissioned Services,Permanent Residential,Avon Valley Care Home,3860.40, 15-Nov-2022
693,Revenue,CAHD,South - Commissioned Services,Permanent Residential,Avon Valley Care Home,4429.64, 15-Nov-2022
694,Revenue,CAHD,South - Commissioned Services,Permanent Residential,Avon Valley Care Home,3980.00, 15-Nov-2022
695,Revenue,CAHD,South - Commissioned Services,Permanent Residential,Avon Valley Care Home,4483.80, 15-Nov-2022
696,Revenue,CAHD,South - Commissioned Services,Permanent Residential,Avon Valley Care Home,3980.00, 15-Nov-2022
697,Revenue,CAHD,South - Commissioned Services,Permanent Residential,Avon Valley Care Home,8414.29, 15-Nov-2022
698,Revenue,CAHD,South - Commissioned Services,Fees & Charges Income - General,Avon Valley Care Home,-628.16, 15-Nov-2022
699,Revenue,CAHD,South - Commissioned Services,Fees & Charges Income - General,Avon Valley Care Home,-1009.24, 15-Nov-2022
700,Revenue,CAHD,South - Commissioned Services,Fees & Charges Income - General,Avon Valley Care Home,-1285.52, 15-Nov-2022
701,Revenue,CAHD,South - Commissioned Services,Fees & Charges Income - General,Avon Valley Care Home,-1040.32, 15-Nov-2022
702,Revenue,CAHD,South - Commissioned Services,Fees & Charges Income - General,Avon Valley Care Home,0.00, 15-Nov-2022
703,Revenue,CAHD,South - Commissioned Services,Fees & Charges Income - General,Avon Valley Care Home,-1972.56, 15-Nov-2022
704,Revenue,CAHD,South - Commissioned Services,Fees & Charges Income - General,Avon Valley Care Home,-663.80, 15-Nov-2022
705,Revenue,CAHD,South - Commissioned Services,Fees & Charges Income - General,Avon Valley Care Home,-1202.56, 15-Nov-2022
706,Revenue,CAHD,South - Commissioned Services,Fees & Charges Income - General,Avon Valley Care Home,-1100.24, 15-Nov-2022
707,Revenue,CAHD,South - Commissioned Services,Fees & Charges Income - General,Avon Valley Care Home,-627.80, 15-Nov-2022
708,Revenue,CAHD,South - Commissioned Services,Fees & Charges Income - General,Avon Valley Care Home,-1175.92, 15-Nov-2022
709,Revenue,CAHD,South - Commissioned Services,Fees & Charges Income - General,Avon Valley Care Home,-793.84, 15-Nov-2022
710,Revenue,CAHD,South - Commissioned Services,Fees & Charges Income - General,Avon Valley Care Home,-2780.64, 15-Nov-2022
711,Revenue,CAHD,North - Community based support,Permanent Residential,Avon Valley Care Home,4400.00, 15-Nov-2022
712,Revenue,CAHD,North - Community based support,Fees & Charges Income - General,Avon Valley Care Home,-895.20, 15-Nov-2022
713,Revenue,CAHD,South - S117,Permanent Residential,Avon Valley Care Home,4337.52, 15-Nov-2022
714,Revenue,CAHD,Central - Commissioned Services,Permanent Residential,Avonmere Care Home,5027.14, 15-Nov-2022
715,Revenue,CAHD,Central - Commissioned Services,Fees & Charges Income - General,Avonmere Care Home,-762.33, 15-Nov-2022
716,Revenue,CAHD,South - Commissioned Services,Permanent Residential,Avonmere Care Home,3980.00, 15-Nov-2022
717,Revenue,CAHD,South - Commissioned Services,Fees & Charges Income - General,Avonmere Care Home,-992.44, 15-Nov-2022
718,Revenue,CAHD,North - Community based support,Permanent Residential,Avonmere Care Home,-740.00, 15-Nov-2022
719,Revenue,CAHD,North - Community based support,Permanent Residential,Avonmere Care Home,12272.14, 15-Nov-2022
720,Revenue,CAHD,North - Community based support,Permanent Residential,Avonmere Care Home,4960.80, 15-Nov-2022
721,Revenue,CAHD,North - Community based support,Permanent Residential,Avonmere Care Home,4793.00, 15-Nov-2022
722,Revenue,CAHD,North - Community based support,Permanent Residential,Avonmere Care Home,4876.00, 15-Nov-2022
723,Revenue,CAHD,North - Community based support,Permanent Residential,Avonmere Care Home,4140.00, 15-Nov-2022
724,Revenue,CAHD,North - Community based support,Permanent Residential,Avonmere Care Home,4140.00, 15-Nov-2022
725,Revenue,CAHD,North - Community based support,Fees & Charges Income - General,Avonmere Care Home,200.59, 15-Nov-2022
726,Revenue,CAHD,North - Community based support,Fees & Charges Income - General,Avonmere Care Home,-3768.91, 15-Nov-2022
727,Revenue,CAHD,North - Community based support,Fees & Charges Income - General,Avonmere Care Home,-1090.32, 15-Nov-2022
728,Revenue,CAHD,North - Community based support,Fees & Charges Income - General,Avonmere Care Home,-1002.96, 15-Nov-2022
729,Revenue,CAHD,North - Community based support,Fees & Charges Income - General,Avonmere Care Home,-1111.72, 15-Nov-2022
730,Revenue,CAHD,North - Community based support,Fees & Charges Income - General,Avonmere Care Home,-1070.64, 15-Nov-2022
731,Revenue,CAHD,North - Community based support,Fees & Charges Income - General,Avonmere Care Home,-997.40, 15-Nov-2022
732,Revenue,CAHD,School Awards Ceremony,Premises Hire,BAC Trading Limited,5500.00, 21-Nov-2022
733,Revenue,CAHD,South Glos Users in South Glos Homes,Permanent Nursing,Badminton Place,-567.80, 15-Nov-2022
734,Revenue,CAHD,South Glos Users in South Glos Homes,Permanent Nursing,Badminton Place,836.76, 15-Nov-2022
735,Revenue,CAHD,South Glos Users in South Glos Homes,Permanent Nursing,Badminton Place,836.76, 15-Nov-2022
736,Revenue,CAHD,South Glos Users in South Glos Homes,Permanent Nursing,Badminton Place,836.76, 15-Nov-2022
737,Revenue,CAHD,South Glos Users in South Glos Homes,Permanent Nursing,Badminton Place,836.76, 15-Nov-2022
738,Revenue,CAHD,South Glos Users in South Glos Homes,Permanent Nursing,Badminton Place,836.76, 15-Nov-2022
739,Revenue,CAHD,South Glos Users in South Glos Homes,Permanent Nursing,Badminton Place,836.76, 15-Nov-2022
740,Revenue,CAHD,Central - Commissioned Services,Permanent Residential,Badminton Place,8000.00, 15-Nov-2022
741,Revenue,CAHD,Central - Commissioned Services,Permanent Nursing,Badminton Place,-4310.29, 15-Nov-2022
742,Revenue,CAHD,Central - Commissioned Services,Fees & Charges Income - General,Badminton Place,665.95, 15-Nov-2022
743,Revenue,CAHD,Central - Commissioned Services,Fees & Charges Income - General,Badminton Place,-438.80, 15-Nov-2022
744,Revenue,CAHD,South - Commissioned Services,Permanent Residential,Badminton Place,3136.52, 15-Nov-2022
745,Revenue,CAHD,South - Commissioned Services,Fees & Charges Income - General,Badminton Place,-1502.80, 15-Nov-2022
746,Revenue,CAHD,North - Community based support,Permanent Residential,Badminton Place,4480.00, 15-Nov-2022
747,Revenue,CAHD,North - Community based support,Permanent Nursing,Badminton Place,5156.16, 15-Nov-2022
748,Revenue,CAHD,North - Community based support,Permanent Nursing,Badminton Place,5974.00, 15-Nov-2022
749,Revenue,CAHD,North - Community based support,Fees & Charges Income - General,Badminton Place,-689.68, 15-Nov-2022
750,Revenue,CAHD,North - Community based support,Fees & Charges Income - General,Badminton Place,-991.64, 15-Nov-2022
751,Revenue,CAHD,North - Community based support,Permanent Nursing,Bamfield Lodge,5200.00, 15-Nov-2022
752,Revenue,CAHD,North - Community based support,Fees & Charges Income - General,Bamfield Lodge,-1168.04, 15-Nov-2022
753,Revenue,CAHD,Pensions - Non DSG,Unfunded Annual Pension,Bath & North East Somerset Council,98203.51, 03-Nov-2022
754,Revenue,CAHD,Pensions - Non DSG,Unfunded Annual Pension,Bath & North East Somerset Council,97916.47, 30-Nov-2022
755,Revenue,CAHD,South Glos Users in South Glos Homes,Permanent Nursing,Beaufort Grange Care Home,836.76, 15-Nov-2022
756,Revenue,CAHD,South Glos Users in South Glos Homes,Permanent Nursing,Beaufort Grange Care Home,836.76, 15-Nov-2022
757,Revenue,CAHD,South Glos Users in South Glos Homes,Permanent Nursing,Beaufort Grange Care Home,836.76, 15-Nov-2022
758,Revenue,CAHD,South Glos Users in South Glos Homes,Permanent Nursing,Beaufort Grange Care Home,836.76, 15-Nov-2022
759,Revenue,CAHD,South Glos Users in South Glos Homes,Permanent Nursing,Beaufort Grange Care Home,836.76, 15-Nov-2022
760,Revenue,CAHD,South Glos Users in South Glos Homes,Permanent Nursing,Beaufort Grange Care Home,3760.57, 15-Nov-2022
761,Revenue,CAHD,South Glos Users in South Glos Homes,Permanent Nursing,Beaufort Grange Care Home,836.76, 15-Nov-2022
762,Revenue,CAHD,South Glos Users in South Glos Homes,Permanent Nursing,Beaufort Grange Care Home,836.76, 15-Nov-2022
763,Revenue,CAHD,South Glos Users in South Glos Homes,Permanent Nursing,Beaufort Grange Care Home,836.76, 15-Nov-2022
764,Revenue,CAHD,South Glos Users in South Glos Homes,Permanent Nursing,Beaufort Grange Care Home,836.76, 15-Nov-2022
765,Revenue,CAHD,South Glos Users in South Glos Homes,Permanent Nursing,Beaufort Grange Care Home,836.76, 15-Nov-2022
766,Revenue,CAHD,South Glos Users in South Glos Homes,Permanent Nursing,Beaufort Grange Care Home,836.76, 15-Nov-2022
767,Revenue,CAHD,South Glos Users in South Glos Homes,Permanent Nursing,Beaufort Grange Care Home,836.76, 15-Nov-2022
768,Revenue,CAHD,South Glos Users in South Glos Homes,Permanent Nursing,Beaufort Grange Care Home,836.76, 15-Nov-2022
769,Revenue,CAHD,South Glos Users in South Glos Homes,Permanent Nursing,Beaufort Grange Care Home,836.76, 15-Nov-2022
770,Revenue,CAHD,South Glos Users in South Glos Homes,Permanent Nursing,Beaufort Grange Care Home,836.76, 15-Nov-2022
771,Revenue,CAHD,South Glos Users in South Glos Homes,Permanent Nursing,Beaufort Grange Care Home,836.76, 15-Nov-2022
772,Revenue,CAHD,South Glos Users in South Glos Homes,Permanent Nursing,Beaufort Grange Care Home,836.76, 15-Nov-2022
773,Revenue,CAHD,South Glos Users in South Glos Homes,Permanent Nursing,Beaufort Grange Care Home,836.76, 15-Nov-2022
774,Revenue,CAHD,South Glos Users in South Glos Homes,Permanent Nursing,Beaufort Grange Care Home,836.76, 15-Nov-2022
775,Revenue,CAHD,South Glos Users in South Glos Homes,Permanent Nursing,Beaufort Grange Care Home,836.76, 15-Nov-2022
776,Revenue,CAHD,South Glos Users in South Glos Homes,Permanent Nursing,Beaufort Grange Care Home,836.76, 15-Nov-2022
777,Revenue,CAHD,South Glos Users in South Glos Homes,Permanent Nursing,Beaufort Grange Care Home,836.76, 15-Nov-2022
778,Revenue,CAHD,South Glos Users in South Glos Homes,Permanent Nursing,Beaufort Grange Care Home,836.76, 15-Nov-2022
779,Revenue,CAHD,South Glos Users in South Glos Homes,Permanent Nursing,Beaufort Grange Care Home,836.76, 15-Nov-2022
780,Revenue,CAHD,South Glos Users in South Glos Homes,Permanent Nursing,Beaufort Grange Care Home,836.76, 15-Nov-2022
781,Revenue,CAHD,South Glos Users in South Glos Homes,Permanent Nursing,Beaufort Grange Care Home,836.76, 15-Nov-2022
782,Revenue,CAHD,South Glos Users in South Glos Homes,Permanent Nursing,Beaufort Grange Care Home,836.76, 15-Nov-2022
783,Revenue,CAHD,South Glos Users in South Glos Homes,Permanent Nursing,Beaufort Grange Care Home,836.76, 15-Nov-2022
784,Revenue,CAHD,South Glos Users in South Glos Homes,Permanent Nursing,Beaufort Grange Care Home,836.76, 15-Nov-2022
785,Revenue,CAHD,South Glos Users in South Glos Homes,Permanent Nursing,Beaufort Grange Care Home,836.76, 15-Nov-2022
786,Revenue,CAHD,South Glos Users in South Glos Homes,Permanent Nursing,Beaufort Grange Care Home,836.76, 15-Nov-2022
787,Revenue,CAHD,South Glos Users in South Glos Homes,Permanent Nursing,Beaufort Grange Care Home,8459.29, 15-Nov-2022
788,Revenue,CAHD,South Glos Users in South Glos Homes,Permanent Nursing,Beaufort Grange Care Home,836.76, 15-Nov-2022
789,Revenue,CAHD,South Glos Users in South Glos Homes,Permanent Nursing,Beaufort Grange Care Home,836.76, 15-Nov-2022
790,Revenue,CAHD,South Glos Users in South Glos Homes,Permanent Nursing,Beaufort Grange Care Home,836.76, 15-Nov-2022
791,Revenue,CAHD,South Glos Users in South Glos Homes,Permanent Nursing,Beaufort Grange Care Home,836.76, 15-Nov-2022
792,Revenue,CAHD,South Glos Users in South Glos Homes,Permanent Nursing,Beaufort Grange Care Home,3826.21, 15-Nov-2022
793,Revenue,CAHD,Central - Commissioned Services,Permanent Residential,Beaufort Grange Care Home,7200.00, 15-Nov-2022
794,Revenue,CAHD,Central - Commissioned Services,Permanent Nursing,Beaufort Grange Care Home,5500.00, 15-Nov-2022
795,Revenue,CAHD,Central - Commissioned Services,Permanent Nursing,Beaufort Grange Care Home,11684.00, 15-Nov-2022
796,Revenue,CAHD,Central - Commissioned Services,Permanent Nursing,Beaufort Grange Care Home,5400.00, 15-Nov-2022
797,Revenue,CAHD,Central - Commissioned Services,Permanent Nursing,Beaufort Grange Care Home,5500.00, 15-Nov-2022
798,Revenue,CAHD,Central - Commissioned Services,Permanent Nursing,Beaufort Grange Care Home,5449.60, 15-Nov-2022
799,Revenue,CAHD,Central - Commissioned Services,Fees & Charges Income - General,Beaufort Grange Care Home,-607.80, 15-Nov-2022
800,Revenue,CAHD,Central - Commissioned Services,Fees & Charges Income - General,Beaufort Grange Care Home,-894.80, 15-Nov-2022
801,Revenue,CAHD,South - Commissioned Services,Permanent Nursing,Beaufort Grange Care Home,29892.86, 15-Nov-2022
802,Revenue,CAHD,South - Commissioned Services,Permanent Nursing,Beaufort Grange Care Home,6400.00, 15-Nov-2022
803,Revenue,CAHD,North - Community based support,Permanent Nursing,Beaufort Grange Care Home,4369.60, 15-Nov-2022
804,Revenue,CAHD,North - Community based support,Permanent Nursing,Beaufort Grange Care Home,10620.00, 15-Nov-2022
805,Revenue,CAHD,North - Community based support,Fees & Charges Income - General,Beaufort Grange Care Home,-627.80, 15-Nov-2022
806,Revenue,CAHD,North - Community based support,Fees & Charges Income - General,Beaufort Grange Care Home,-438.80, 15-Nov-2022
807,Revenue,CAHD,Central Team - S117,Permanent Nursing,Beaufort Grange Care Home,-1772.93, 15-Nov-2022
808,Revenue,CAHD,South Glos Users in South Glos Homes,Permanent Nursing,Beaufort Grange Care Home,1017.72, 15-Nov-2022
809,Revenue,CAHD,South Glos Users in South Glos Homes,Permanent Nursing,Beaufort Grange Care Home,836.76, 15-Nov-2022
810,Revenue,CAHD,Central - Commissioned Services,Permanent Residential,Beaufort House,3171.36, 15-Nov-2022
811,Revenue,CAHD,Central - Commissioned Services,Permanent Residential,Beaufort House,4028.00, 15-Nov-2022
812,Revenue,CAHD,Central - Commissioned Services,Permanent Residential,Beaufort House,3582.80, 15-Nov-2022
813,Revenue,CAHD,Central - Commissioned Services,Permanent Residential,Beaufort House,4000.00, 15-Nov-2022
814,Revenue,CAHD,Central - Commissioned Services,Permanent Residential,Beaufort House,3392.00, 15-Nov-2022
815,Revenue,CAHD,Central - Commissioned Services,Permanent Residential,Beaufort House,4240.00, 15-Nov-2022
816,Revenue,CAHD,Central - Commissioned Services,Permanent Residential,Beaufort House,3816.00, 15-Nov-2022
817,Revenue,CAHD,Central - Commissioned Services,Permanent Residential,Beaufort House,3816.00, 15-Nov-2022
818,Revenue,CAHD,Central - Commissioned Services,Permanent Residential,Beaufort House,4000.00, 15-Nov-2022
819,Revenue,CAHD,Central - Commissioned Services,Respite Planned - Nursing,Beaufort House,4400.00, 15-Nov-2022
820,Revenue,CAHD,Central - Commissioned Services,Fees & Charges Income - General,Beaufort House,-821.12, 15-Nov-2022
821,Revenue,CAHD,Central - Commissioned Services,Fees & Charges Income - General,Beaufort House,-731.44, 15-Nov-2022
822,Revenue,CAHD,Central - Commissioned Services,Fees & Charges Income - General,Beaufort House,-1448.48, 15-Nov-2022
823,Revenue,CAHD,Central - Commissioned Services,Fees & Charges Income - General,Beaufort House,-4504.41, 15-Nov-2022
824,Revenue,CAHD,Central - Commissioned Services,Fees & Charges Income - General,Beaufort House,-751.32, 15-Nov-2022
825,Revenue,CAHD,Central - Commissioned Services,Fees & Charges Income - General,Beaufort House,-627.80, 15-Nov-2022
826,Revenue,CAHD,Central - Commissioned Services,Fees & Charges Income - General,Beaufort House,-1125.36, 15-Nov-2022
827,Revenue,CAHD,North - Community based support,Permanent Residential,Beaufort House,4240.00, 15-Nov-2022
828,Revenue,CAHD,North - Community based support,Permanent Residential,Beaufort House,2986.32, 15-Nov-2022
829,Revenue,CAHD,North - Community based support,Permanent Residential,Beaufort House,4240.00, 15-Nov-2022
830,Revenue,CAHD,North - Community based support,Fees & Charges Income - General,Beaufort House,-1166.52, 15-Nov-2022
831,Revenue,CAHD,North - Community based support,Fees & Charges Income - General,Beaufort House,-627.80, 15-Nov-2022
832,Revenue,CAHD,North - Community based support,Fees & Charges Income - General,Beaufort House,-663.80, 15-Nov-2022
833,Revenue,CAHD,South Glos Users in South Glos Homes,Permanent Nursing,Beech House,-836.76, 15-Nov-2022
834,Revenue,CAHD,South Glos Users in South Glos Homes,Permanent Nursing,Beech House,836.76, 15-Nov-2022
835,Revenue,CAHD,South Glos Users in South Glos Homes,Permanent Nursing,Beech House,836.76, 15-Nov-2022
836,Revenue,CAHD,South Glos Users in South Glos Homes,Permanent Nursing,Beech House,836.76, 15-Nov-2022
837,Revenue,CAHD,South Glos Users in South Glos Homes,Permanent Nursing,Beech House,836.76, 15-Nov-2022
838,Revenue,CAHD,South Glos Users in South Glos Homes,Permanent Nursing,Beech House,836.76, 15-Nov-2022
839,Revenue,CAHD,South Glos Users in South Glos Homes,Permanent Nursing,Beech House,836.76, 15-Nov-2022
840,Revenue,CAHD,South Glos Users in South Glos Homes,Permanent Nursing,Beech House,836.76, 15-Nov-2022
841,Revenue,CAHD,South Glos Users in South Glos Homes,Permanent Nursing,Beech House,836.76, 15-Nov-2022
842,Revenue,CAHD,South Glos Users in South Glos Homes,Permanent Nursing,Beech House,836.76, 15-Nov-2022
843,Revenue,CAHD,South Glos Users in South Glos Homes,Permanent Nursing,Beech House,836.76, 15-Nov-2022
844,Revenue,CAHD,South Glos Users in South Glos Homes,Permanent Nursing,Beech House,836.76, 15-Nov-2022
845,Revenue,CAHD,South Glos Users in South Glos Homes,Permanent Nursing,Beech House,836.76, 15-Nov-2022
846,Revenue,CAHD,South Glos Users in South Glos Homes,Permanent Nursing,Beech House,836.76, 15-Nov-2022
847,Revenue,CAHD,South Glos Users in South Glos Homes,Permanent Nursing,Beech House,836.76, 15-Nov-2022
848,Revenue,CAHD,South Glos Users in South Glos Homes,Permanent Nursing,Beech House,836.76, 15-Nov-2022
849,Revenue,CAHD,South Glos Users in South Glos Homes,Permanent Nursing,Beech House,836.76, 15-Nov-2022
850,Revenue,CAHD,South Glos Users in South Glos Homes,Permanent Nursing,Beech House,836.76, 15-Nov-2022
851,Revenue,CAHD,South Glos Users in South Glos Homes,Permanent Nursing,Beech House,836.76, 15-Nov-2022
852,Revenue,CAHD,South Glos Users in South Glos Homes,Permanent Nursing,Beech House,-1972.36, 15-Nov-2022
853,Revenue,CAHD,South Glos Users in South Glos Homes,Permanent Nursing,Beech House,836.76, 15-Nov-2022
854,Revenue,CAHD,Central - Commissioned Services,Permanent Nursing,Beech House,836.76, 15-Nov-2022
855,Revenue,CAHD,South - Commissioned Services,Permanent Residential,Beech House,4748.80, 15-Nov-2022
856,Revenue,CAHD,South - Commissioned Services,Fees & Charges Income - General,Beech House,-789.36, 15-Nov-2022
857,Revenue,CAHD,North - Community based support,Permanent Residential,Beech House,4727.88, 15-Nov-2022
858,Revenue,CAHD,North - Community based support,Permanent Residential,Beech House,177.98, 15-Nov-2022
859,Revenue,CAHD,North - Community based support,Permanent Residential,Beech House,-1356.80, 15-Nov-2022
860,Revenue,CAHD,North - Community based support,Permanent Residential,Beech House,4748.80, 15-Nov-2022
861,Revenue,CAHD,North - Community based support,Permanent Residential,Beech House,4772.80, 15-Nov-2022
862,Revenue,CAHD,North - Community based support,Permanent Residential,Beech House,4748.80, 15-Nov-2022
863,Revenue,CAHD,North - Community based support,Permanent Residential,Beech House,4664.00, 15-Nov-2022
864,Revenue,CAHD,North - Community based support,Permanent Nursing,Beech House,4660.00, 15-Nov-2022
865,Revenue,CAHD,North - Community based support,Permanent Nursing,Beech House,4660.00, 15-Nov-2022
866,Revenue,CAHD,North - Community based support,Permanent Nursing,Beech House,836.76, 15-Nov-2022
867,Revenue,CAHD,North - Community based support,Permanent Nursing,Beech House,35870.00, 15-Nov-2022
868,Revenue,CAHD,North - Community based support,Permanent Nursing,Beech House,4641.16, 15-Nov-2022
869,Revenue,CAHD,North - Community based support,Permanent Nursing,Beech House,4671.56, 15-Nov-2022
870,Revenue,CAHD,North - Community based support,Permanent Nursing,Beech House,836.76, 15-Nov-2022
871,Revenue,CAHD,North - Community based support,Permanent Nursing,Beech House,11973.43, 15-Nov-2022
872,Revenue,CAHD,North - Community based support,Fees & Charges Income - General,Beech House,-627.80, 15-Nov-2022
873,Revenue,CAHD,North - Community based support,Fees & Charges Income - General,Beech House,-1904.60, 15-Nov-2022
874,Revenue,CAHD,North - Community based support,Fees & Charges Income - General,Beech House,-1280.20, 15-Nov-2022
875,Revenue,CAHD,North - Community based support,Fees & Charges Income - General,Beech House,-1356.72, 15-Nov-2022
876,Revenue,CAHD,North - Community based support,Fees & Charges Income - General,Beech House,-1822.16, 15-Nov-2022
877,Revenue,CAHD,North - Community based support,Fees & Charges Income - General,Beech House,6804.57, 15-Nov-2022
878,Revenue,CAHD,North - Community based support,Fees & Charges Income - General,Beech House,-629.00, 15-Nov-2022
879,Revenue,CAHD,North - Community based support,Fees & Charges Income - General,Beech House,-1428.72, 15-Nov-2022
880,Revenue,CAHD,North - Community based support,Fees & Charges Income - General,Beech House,-840.16, 15-Nov-2022
881,Revenue,CAHD,North - Community based support,Fees & Charges Income - General,Beech House,-1304.60, 15-Nov-2022
882,Revenue,CAHD,North - Community based support,Fees & Charges Income - General,Beech House,-5072.41, 15-Nov-2022
883,Revenue,CAHD,18-25 Year Olds,Permanent Residential,Beechwood Court Ltd,15505.70, 11-Nov-2022
884,Revenue,CAHD,18-25 Year Olds,Permanent Residential,Beechwood Court Ltd,15505.70, 11-Nov-2022
885,Revenue,CAHD,CSC - Residential Placements,Permanent Residential,Beechwood Court Ltd,22328.35, 11-Nov-2022
886,Revenue,CAHD,CSC - Residential Placements,Permanent Residential,Beechwood Court Ltd,22328.35, 11-Nov-2022
887,Revenue,CAHD,18-25 Year Olds,Permanent Residential,Beechwood Court Ltd,15505.70, 11-Nov-2022
888,Revenue,CAHD,CSC - Residential Placements,Permanent Residential,Beechwood Court Ltd,22328.35, 11-Nov-2022
889,Revenue,CAHD,18-25 Year Olds,Permanent Residential,Beechwood Court Ltd,15505.70, 22-Nov-2022
890,Revenue,CAHD,18-25 Year Olds,Permanent Residential,Beechwood Court Ltd,22328.35, 22-Nov-2022
891,Revenue,CAHD,Ukranian Refugees,Rent,Individual,695.00, 07-Nov-2022
892,Revenue,CAHD,Ukranian Refugees,Rent,Individual,695.00, 07-Nov-2022
893,Revenue,CAHD,Parent Partnership & Disagreement Resolutions,Fees - General,Bevan Brittan LLP,1837.00, 22-Nov-2022
894,Revenue,CAHD,Parent Partnership & Disagreement Resolutions,Fees - General,Bevan Brittan LLP,1406.00, 23-Nov-2022
895,Revenue,CAHD,Parent Partnership & Disagreement Resolutions,Fees - General,Bevan Brittan LLP,1007.00, 23-Nov-2022
896,Revenue,CAHD,Parent Partnership & Disagreement Resolutions,Fees - General,Bevan Brittan LLP,1197.00, 21-Nov-2022
897,Revenue,CAHD,Parent Partnership & Disagreement Resolutions,Fees - General,Bevan Brittan LLP,1425.00, 25-Nov-2022
898,Revenue,CAHD,North - Community based support,One-off Planned Direct Payment,Individual,335.71, 11-Nov-2022
899,Revenue,CAHD,South - S117,Permanent Residential,Bidna House,3774.24, 15-Nov-2022
900,Revenue,CAHD,Placements OLA Special Schools and RB,Other L.A.s - General,Blaise High School,766.84, 22-Nov-2022
901,Revenue,CAHD,Placements OLA Special Schools and RB,Other L.A.s - General,Blaise High School,766.84, 22-Nov-2022
902,Revenue,CAHD,Statemented Support Payments to OLAs,Other L.A.s - General,Blaise High School,907.83, 22-Nov-2022
903,Revenue,CAHD,Placements OLA Special Schools and RB,Other L.A.s - General,Blaise High School,766.84, 22-Nov-2022
904,Revenue,CAHD,18-25 Year Olds,Other Small Contracts,Blakehill Healthcare Ltd,1456.40, 28-Nov-2022
905,Revenue,CAHD,Central - Commissioned Services,Other Small Contracts,Blakehill Healthcare Ltd,635.52, 28-Nov-2022
906,Revenue,CAHD,Central - Commissioned Services,Other Small Contracts,Blakehill Healthcare Ltd,231.70, 28-Nov-2022
907,Revenue,CAHD,Central - Commissioned Services,Other Small Contracts,Blakehill Healthcare Ltd,681.86, 28-Nov-2022
908,Revenue,CAHD,Central - Commissioned Services,Other Small Contracts,Blakehill Healthcare Ltd,1443.16, 28-Nov-2022
909,Revenue,CAHD,Central - Commissioned Services,Other Small Contracts,Blakehill Healthcare Ltd,556.08, 28-Nov-2022
910,Revenue,CAHD,Central - Commissioned Services,Other Small Contracts,Blakehill Healthcare Ltd,2959.14, 28-Nov-2022
911,Revenue,CAHD,Central - Commissioned Services,Other Small Contracts,Blakehill Healthcare Ltd,1807.26, 28-Nov-2022
912,Revenue,CAHD,Central - Commissioned Services,Other Small Contracts,Blakehill Healthcare Ltd,642.14, 28-Nov-2022
913,Revenue,CAHD,Central - Commissioned Services,Other Small Contracts,Blakehill Healthcare Ltd,542.84, 28-Nov-2022
914,Revenue,CAHD,Central - Commissioned Services,Other Small Contracts,Blakehill Healthcare Ltd,2323.62, 28-Nov-2022
915,Revenue,CAHD,Central - Commissioned Services,Other Small Contracts,Blakehill Healthcare Ltd,840.74, 28-Nov-2022
916,Revenue,CAHD,Central - Commissioned Services,Other Small Contracts,Blakehill Healthcare Ltd,635.52, 28-Nov-2022
917,Revenue,CAHD,Central - Commissioned Services,Other Small Contracts,Blakehill Healthcare Ltd,542.84, 28-Nov-2022
918,Revenue,CAHD,Central - Commissioned Services,Other Small Contracts,Blakehill Healthcare Ltd,589.18, 28-Nov-2022
919,Revenue,CAHD,Central - Commissioned Services,Other Small Contracts,Blakehill Healthcare Ltd,966.52, 28-Nov-2022
920,Revenue,CAHD,Central - Commissioned Services,Other Small Contracts,Blakehill Healthcare Ltd,1264.42, 28-Nov-2022
921,Revenue,CAHD,Central - Commissioned Services,Other Small Contracts,Blakehill Healthcare Ltd,2297.14, 28-Nov-2022
922,Revenue,CAHD,Central - Commissioned Services,Other Small Contracts,Blakehill Healthcare Ltd,549.46, 28-Nov-2022
923,Revenue,CAHD,South - Commissioned Services,Other Small Contracts,Blakehill Healthcare Ltd,1006.24, 28-Nov-2022
924,Revenue,CAHD,South - Commissioned Services,Other Small Contracts,Blakehill Healthcare Ltd,556.08, 28-Nov-2022
925,Revenue,CAHD,South - Commissioned Services,Other Small Contracts,Blakehill Healthcare Ltd,1979.38, 28-Nov-2022
926,Revenue,CAHD,South - Commissioned Services,Other Small Contracts,Blakehill Healthcare Ltd,3939.41, 28-Nov-2022
927,Revenue,CAHD,South - Commissioned Services,Other Small Contracts,Blakehill Healthcare Ltd,2601.66, 28-Nov-2022
928,Revenue,CAHD,South - Commissioned Services,Other Small Contracts,Blakehill Healthcare Ltd,2833.36, 28-Nov-2022
929,Revenue,CAHD,South - Commissioned Services,Other Small Contracts,Blakehill Healthcare Ltd,1403.44, 28-Nov-2022
930,Revenue,CAHD,South - Commissioned Services,Other Small Contracts,Blakehill Healthcare Ltd,1436.54, 28-Nov-2022
931,Revenue,CAHD,South - Commissioned Services,Other Small Contracts,Blakehill Healthcare Ltd,1092.30, 28-Nov-2022
932,Revenue,CAHD,South - Commissioned Services,Other Small Contracts,Blakehill Healthcare Ltd,959.90, 28-Nov-2022
933,Revenue,CAHD,South - Commissioned Services,Mentoring,Blakehill Healthcare Ltd,251.56, 28-Nov-2022
934,Revenue,CAHD,North - Community based support,Other Small Contracts,Blakehill Healthcare Ltd,873.84, 28-Nov-2022
935,Revenue,CAHD,North - Community based support,Other Small Contracts,Blakehill Healthcare Ltd,5617.84, 28-Nov-2022
936,Revenue,CAHD,North - Community based support,Other Small Contracts,Blakehill Healthcare Ltd,2528.84, 28-Nov-2022
937,Revenue,CAHD,North - Community based support,Other Small Contracts,Blakehill Healthcare Ltd,1184.98, 28-Nov-2022
938,Revenue,CAHD,South Glos Users in South Glos Homes,Permanent Nursing,Blossom Fields Nursing Home,836.76, 15-Nov-2022
939,Revenue,CAHD,South Glos Users in South Glos Homes,Permanent Nursing,Blossom Fields Nursing Home,836.76, 15-Nov-2022
940,Revenue,CAHD,South Glos Users in South Glos Homes,Permanent Nursing,Blossom Fields Nursing Home,836.76, 15-Nov-2022
941,Revenue,CAHD,South Glos Users in South Glos Homes,Permanent Nursing,Blossom Fields Nursing Home,29.88, 15-Nov-2022
942,Revenue,CAHD,South Glos Users in South Glos Homes,Permanent Nursing,Blossom Fields Nursing Home,836.76, 15-Nov-2022
943,Revenue,CAHD,South Glos Users in South Glos Homes,Permanent Nursing,Blossom Fields Nursing Home,836.76, 15-Nov-2022
944,Revenue,CAHD,South Glos Users in South Glos Homes,Permanent Nursing,Blossom Fields Nursing Home,2062.02, 15-Nov-2022
945,Revenue,CAHD,South Glos Users in South Glos Homes,Permanent Nursing,Blossom Fields Nursing Home,836.76, 15-Nov-2022
946,Revenue,CAHD,South Glos Users in South Glos Homes,Permanent Nursing,Blossom Fields Nursing Home,836.76, 15-Nov-2022
947,Revenue,CAHD,South Glos Users in South Glos Homes,Permanent Nursing,Blossom Fields Nursing Home,448.26, 15-Nov-2022
948,Revenue,CAHD,South Glos Users in South Glos Homes,Permanent Nursing,Blossom Fields Nursing Home,836.76, 15-Nov-2022
949,Revenue,CAHD,South Glos Users in South Glos Homes,Permanent Nursing,Blossom Fields Nursing Home,836.76, 15-Nov-2022
950,Revenue,CAHD,South Glos Users in South Glos Homes,Permanent Nursing,Blossom Fields Nursing Home,836.76, 15-Nov-2022
951,Revenue,CAHD,South Glos Users in South Glos Homes,Permanent Nursing,Blossom Fields Nursing Home,836.76, 15-Nov-2022
952,Revenue,CAHD,South Glos Users in South Glos Homes,Permanent Nursing,Blossom Fields Nursing Home,836.76, 15-Nov-2022
953,Revenue,CAHD,South Glos Users in South Glos Homes,Permanent Nursing,Blossom Fields Nursing Home,836.76, 15-Nov-2022
954,Revenue,CAHD,South Glos Users in South Glos Homes,Permanent Nursing,Blossom Fields Nursing Home,836.76, 15-Nov-2022
955,Revenue,CAHD,South Glos Users in South Glos Homes,Permanent Nursing,Blossom Fields Nursing Home,836.76, 15-Nov-2022
956,Revenue,CAHD,South Glos Users in South Glos Homes,Permanent Nursing,Blossom Fields Nursing Home,836.76, 15-Nov-2022
957,Revenue,CAHD,South Glos Users in South Glos Homes,Permanent Nursing,Blossom Fields Nursing Home,836.76, 15-Nov-2022
958,Revenue,CAHD,South Glos Users in South Glos Homes,Permanent Nursing,Blossom Fields Nursing Home,836.76, 15-Nov-2022
959,Revenue,CAHD,South Glos Users in South Glos Homes,Permanent Nursing,Blossom Fields Nursing Home,836.76, 15-Nov-2022
960,Revenue,CAHD,South Glos Users in South Glos Homes,Permanent Nursing,Blossom Fields Nursing Home,836.76, 15-Nov-2022
961,Revenue,CAHD,South Glos Users in South Glos Homes,Permanent Nursing,Blossom Fields Nursing Home,836.76, 15-Nov-2022
962,Revenue,CAHD,South Glos Users in South Glos Homes,Permanent Nursing,Blossom Fields Nursing Home,836.76, 15-Nov-2022
963,Revenue,CAHD,South Glos Users in South Glos Homes,Permanent Nursing,Blossom Fields Nursing Home,836.76, 15-Nov-2022
964,Revenue,CAHD,South Glos Users in South Glos Homes,Permanent Nursing,Blossom Fields Nursing Home,836.76, 15-Nov-2022
965,Revenue,CAHD,South Glos Users in South Glos Homes,Permanent Nursing,Blossom Fields Nursing Home,836.76, 15-Nov-2022
966,Revenue,CAHD,Central - Commissioned Services,Respite Planned - Nursing,Blossom Fields Nursing Home,2400.00, 15-Nov-2022
967,Revenue,CAHD,South - Commissioned Services,Permanent Nursing,Blossom Fields Nursing Home,5088.00, 15-Nov-2022
968,Revenue,CAHD,South - Commissioned Services,Permanent Nursing,Blossom Fields Nursing Home,4664.00, 15-Nov-2022
969,Revenue,CAHD,South - Commissioned Services,Permanent Nursing,Blossom Fields Nursing Home,4337.08, 15-Nov-2022
970,Revenue,CAHD,South - Commissioned Services,Fees & Charges Income - General,Blossom Fields Nursing Home,-1482.92, 15-Nov-2022
971,Revenue,CAHD,South - Commissioned Services,Fees & Charges Income - General,Blossom Fields Nursing Home,-997.40, 15-Nov-2022
972,Revenue,CAHD,South - Commissioned Services,Fees & Charges Income - General,Blossom Fields Nursing Home,-750.52, 15-Nov-2022
973,Revenue,CAHD,North - Community based support,Permanent Nursing,Blossom Fields Nursing Home,5204.88, 15-Nov-2022
974,Revenue,CAHD,North - Community based support,Permanent Nursing,Blossom Fields Nursing Home,6548.76, 15-Nov-2022
975,Revenue,CAHD,North - Community based support,Permanent Nursing,Blossom Fields Nursing Home,4664.00, 15-Nov-2022
976,Revenue,CAHD,North - Community based support,Permanent Nursing,Blossom Fields Nursing Home,-7714.28, 15-Nov-2022
977,Revenue,CAHD,North - Community based support,Permanent Nursing,Blossom Fields Nursing Home,4380.04, 15-Nov-2022
978,Revenue,CAHD,North - Community based support,Permanent Nursing,Blossom Fields Nursing Home,4379.92, 15-Nov-2022
979,Revenue,CAHD,North - Community based support,Permanent Nursing,Blossom Fields Nursing Home,4380.04, 15-Nov-2022
980,Revenue,CAHD,North - Community based support,Permanent Nursing,Blossom Fields Nursing Home,4800.00, 15-Nov-2022
981,Revenue,CAHD,North - Community based support,Fees & Charges Income - General,Blossom Fields Nursing Home,-627.80, 15-Nov-2022
982,Revenue,CAHD,North - Community based support,Fees & Charges Income - General,Blossom Fields Nursing Home,-533.56, 15-Nov-2022
983,Revenue,CAHD,North - Community based support,Fees & Charges Income - General,Blossom Fields Nursing Home,-663.80, 15-Nov-2022
984,Revenue,CAHD,North - Community based support,Fees & Charges Income - General,Blossom Fields Nursing Home,-784.24, 15-Nov-2022
985,Revenue,CAHD,North - Community based support,Fees & Charges Income - General,Blossom Fields Nursing Home,-1742.72, 15-Nov-2022
986,Revenue,CAHD,South Glos Users in South Glos Homes,Permanent Nursing,Blossom Fields Nursing Home,836.76, 15-Nov-2022
987,Revenue,CAHD,South Glos Users in South Glos Homes,Permanent Nursing,Blossom Fields Nursing Home,119.53, 15-Nov-2022
988,Revenue,CAHD,South Glos Users in South Glos Homes,Permanent Nursing,Blossom Fields Nursing Home,836.76, 15-Nov-2022
989,Revenue,CAHD,South Glos Users in South Glos Homes,Permanent Nursing,Blossom Fields Nursing Home,836.76, 15-Nov-2022
990,Revenue,CAHD,South Glos Users in South Glos Homes,Permanent Nursing,Blossom Fields Nursing Home,-657.46, 15-Nov-2022
991,Revenue,CAHD,South Glos Users in South Glos Homes,Permanent Nursing,Blossom Fields Nursing Home,836.76, 15-Nov-2022
992,Revenue,CAHD,South Glos Users in South Glos Homes,Permanent Nursing,Blossom Fields Nursing Home,836.76, 15-Nov-2022
993,Revenue,CAHD,South Glos Users in South Glos Homes,Permanent Nursing,Blossom Fields Nursing Home,836.76, 15-Nov-2022
994,Revenue,CAHD,South Glos Users in South Glos Homes,Permanent Nursing,Blossom Fields Nursing Home,836.76, 15-Nov-2022
995,Revenue,CAHD,South Glos Users in South Glos Homes,Permanent Nursing,Blossom Fields Nursing Home,836.76, 15-Nov-2022
996,Revenue,CAHD,South Glos Users in South Glos Homes,Permanent Nursing,Blossom Fields Nursing Home,836.76, 15-Nov-2022
997,Revenue,CAHD,South Glos Users in South Glos Homes,Permanent Nursing,Blossom Fields Nursing Home,836.76, 15-Nov-2022
998,Revenue,CAHD,South Glos Users in South Glos Homes,Permanent Nursing,Blossom Fields Nursing Home,836.76, 15-Nov-2022
999,Revenue,CAHD,South Glos Users in South Glos Homes,Permanent Nursing,Blossom Fields Nursing Home,836.76, 15-Nov-2022
1000,Revenue,CAHD,South Glos Users in South Glos Homes,Permanent Nursing,Blossom Fields Nursing Home,836.76, 15-Nov-2022
1001,Revenue,CAHD,South Glos Users in South Glos Homes,Permanent Nursing,Blossom Fields Nursing Home,-597.69, 15-Nov-2022
1002,Revenue,CAHD,South Glos Users in South Glos Homes,Permanent Nursing,Blossom Fields Nursing Home,836.76, 15-Nov-2022
1003,Revenue,CAHD,South Glos Users in South Glos Homes,Permanent Nursing,Blossom Fields Nursing Home,836.76, 15-Nov-2022
1004,Revenue,CAHD,South Glos Users in South Glos Homes,Permanent Nursing,Blossom Fields Nursing Home,836.76, 15-Nov-2022
1005,Revenue,CAHD,South Glos Users in South Glos Homes,Permanent Nursing,Blossom Fields Nursing Home,836.76, 15-Nov-2022
1006,Revenue,CAHD,South Glos Users in South Glos Homes,Permanent Nursing,Blossom Fields Nursing Home,836.76, 15-Nov-2022
1007,Revenue,CAHD,South Glos Users in South Glos Homes,Permanent Nursing,Blossom Fields Nursing Home,836.76, 15-Nov-2022
1008,Revenue,CAHD,South Glos Users in South Glos Homes,Permanent Nursing,Blossom Fields Nursing Home,836.76, 15-Nov-2022
1009,Revenue,CAHD,South Glos Users in South Glos Homes,Permanent Nursing,Blossom Fields Nursing Home,836.76, 15-Nov-2022
1010,Revenue,CAHD,South Glos Users in South Glos Homes,Permanent Nursing,Blossom Fields Nursing Home,836.76, 15-Nov-2022
1011,Revenue,CAHD,South Glos Users in South Glos Homes,Permanent Nursing,Blossom Fields Nursing Home,836.76, 15-Nov-2022
1012,Revenue,CAHD,South Glos Users in South Glos Homes,Permanent Nursing,Blossom Fields Nursing Home,836.76, 15-Nov-2022
1013,Revenue,CAHD,South Glos Users in South Glos Homes,Permanent Nursing,Blossom Fields Nursing Home,836.76, 15-Nov-2022
1014,Revenue,CAHD,South Glos Users in South Glos Homes,Permanent Nursing,Blossom Fields Nursing Home,836.76, 15-Nov-2022
1015,Revenue,CAHD,South Glos Users in South Glos Homes,Permanent Nursing,Blossom Fields Nursing Home,836.76, 15-Nov-2022
1016,Revenue,CAHD,South Glos Users in South Glos Homes,Permanent Nursing,Blossom Fields Nursing Home,836.76, 15-Nov-2022
1017,Revenue,CAHD,South Glos Users in South Glos Homes,Permanent Nursing,Blossom Fields Nursing Home,836.76, 15-Nov-2022
1018,Revenue,CAHD,South Glos Users in South Glos Homes,Permanent Nursing,Blossom Fields Nursing Home,836.76, 15-Nov-2022
1019,Revenue,CAHD,South Glos Users in South Glos Homes,Permanent Nursing,Blossom Fields Nursing Home,836.76, 15-Nov-2022
1020,Revenue,CAHD,South Glos Users in South Glos Homes,Permanent Nursing,Blossom Fields Nursing Home,836.76, 15-Nov-2022
1021,Revenue,CAHD,South Glos Users in South Glos Homes,Permanent Nursing,Blossom Fields Nursing Home,836.76, 15-Nov-2022
1022,Revenue,CAHD,South Glos Users in South Glos Homes,Permanent Nursing,Blossom Fields Nursing Home,836.76, 15-Nov-2022
1023,Revenue,CAHD,South Glos Users in South Glos Homes,Permanent Nursing,Blossom Fields Nursing Home,747.11, 15-Nov-2022
1024,Revenue,CAHD,South Glos Users in South Glos Homes,Permanent Nursing,Blossom Fields Nursing Home,836.76, 15-Nov-2022
1025,Revenue,CAHD,South Glos Users in South Glos Homes,Permanent Nursing,Blossom Fields Nursing Home,836.76, 15-Nov-2022
1026,Revenue,CAHD,South Glos Users in South Glos Homes,Permanent Nursing,Blossom Fields Nursing Home,836.76, 15-Nov-2022
1027,Revenue,CAHD,South Glos Users in South Glos Homes,Permanent Nursing,Blossom Fields Nursing Home,836.76, 15-Nov-2022
1028,Revenue,CAHD,South Glos Users in South Glos Homes,Permanent Nursing,Blossom Fields Nursing Home,836.76, 15-Nov-2022
1029,Revenue,CAHD,South Glos Users in South Glos Homes,Permanent Nursing,Blossom Fields Nursing Home,836.76, 15-Nov-2022
1030,Revenue,CAHD,South Glos Users in South Glos Homes,Permanent Nursing,Blossom Fields Nursing Home,836.76, 15-Nov-2022
1031,Revenue,CAHD,South Glos Users in South Glos Homes,Permanent Nursing,Blossom Fields Nursing Home,836.76, 15-Nov-2022
1032,Revenue,CAHD,South Glos Users in South Glos Homes,Permanent Nursing,Blossom Fields Nursing Home,836.76, 15-Nov-2022
1033,Revenue,CAHD,South Glos Users in South Glos Homes,Permanent Nursing,Blossom Fields Nursing Home,836.76, 15-Nov-2022
1034,Revenue,CAHD,South Glos Users in South Glos Homes,Permanent Nursing,Blossom Fields Nursing Home,836.76, 15-Nov-2022
1035,Revenue,CAHD,South Glos Users in South Glos Homes,Permanent Nursing,Blossom Fields Nursing Home,836.76, 15-Nov-2022
1036,Revenue,CAHD,Central - Commissioned Services,Permanent Residential,Blossom Fields Nursing Home,4028.00, 15-Nov-2022
1037,Revenue,CAHD,Central - Commissioned Services,Permanent Residential,Blossom Fields Nursing Home,3816.00, 15-Nov-2022
1038,Revenue,CAHD,Central - Commissioned Services,Permanent Nursing,Blossom Fields Nursing Home,657.15, 15-Nov-2022
1039,Revenue,CAHD,Central - Commissioned Services,Permanent Nursing,Blossom Fields Nursing Home,5431.24, 15-Nov-2022
1040,Revenue,CAHD,Central - Commissioned Services,Permanent Nursing,Blossom Fields Nursing Home,4380.04, 15-Nov-2022
1041,Revenue,CAHD,Central - Commissioned Services,Permanent Nursing,Blossom Fields Nursing Home,4380.04, 15-Nov-2022
1042,Revenue,CAHD,Central - Commissioned Services,Permanent Nursing,Blossom Fields Nursing Home,5078.20, 15-Nov-2022
1043,Revenue,CAHD,Central - Commissioned Services,Permanent Nursing,Blossom Fields Nursing Home,-3285.71, 15-Nov-2022
1044,Revenue,CAHD,Central - Commissioned Services,Permanent Nursing,Blossom Fields Nursing Home,5107.84, 15-Nov-2022
1045,Revenue,CAHD,Central - Commissioned Services,Permanent Nursing,Blossom Fields Nursing Home,4380.04, 15-Nov-2022
1046,Revenue,CAHD,Central - Commissioned Services,Permanent Nursing,Blossom Fields Nursing Home,4600.00, 15-Nov-2022
1047,Revenue,CAHD,Central - Commissioned Services,Permanent Nursing,Blossom Fields Nursing Home,4600.00, 15-Nov-2022
1048,Revenue,CAHD,Central - Commissioned Services,Permanent Nursing,Blossom Fields Nursing Home,5421.92, 15-Nov-2022
1049,Revenue,CAHD,Central - Commissioned Services,Permanent Nursing,Blossom Fields Nursing Home,4876.00, 15-Nov-2022
1050,Revenue,CAHD,Central - Commissioned Services,Permanent Nursing,Blossom Fields Nursing Home,4600.00, 15-Nov-2022
1051,Revenue,CAHD,Central - Commissioned Services,Fees & Charges Income - General,Blossom Fields Nursing Home,-20.86, 15-Nov-2022
1052,Revenue,CAHD,Central - Commissioned Services,Fees & Charges Income - General,Blossom Fields Nursing Home,-978.56, 15-Nov-2022
1053,Revenue,CAHD,Central - Commissioned Services,Fees & Charges Income - General,Blossom Fields Nursing Home,-627.80, 15-Nov-2022
1054,Revenue,CAHD,Central - Commissioned Services,Fees & Charges Income - General,Blossom Fields Nursing Home,-1241.76, 15-Nov-2022
1055,Revenue,CAHD,Central - Commissioned Services,Fees & Charges Income - General,Blossom Fields Nursing Home,-2103.80, 15-Nov-2022
1056,Revenue,CAHD,Central - Commissioned Services,Fees & Charges Income - General,Blossom Fields Nursing Home,-486.88, 15-Nov-2022
1057,Revenue,CAHD,Central - Commissioned Services,Fees & Charges Income - General,Blossom Fields Nursing Home,1303.51, 15-Nov-2022
1058,Revenue,CAHD,Central - Commissioned Services,Fees & Charges Income - General,Blossom Fields Nursing Home,-1207.64, 15-Nov-2022
1059,Revenue,CAHD,Central - Commissioned Services,Fees & Charges Income - General,Blossom Fields Nursing Home,-1186.12, 15-Nov-2022
1060,Revenue,CAHD,Central - Commissioned Services,Fees & Charges Income - General,Blossom Fields Nursing Home,-1365.28, 15-Nov-2022
1061,Revenue,CAHD,Central - Commissioned Services,Fees & Charges Income - General,Blossom Fields Nursing Home,-866.68, 15-Nov-2022
1062,Revenue,CAHD,South - Commissioned Services,Permanent Residential,Blossom Fields Nursing Home,374.79, 15-Nov-2022
1063,Revenue,CAHD,South - Commissioned Services,Permanent Nursing,Blossom Fields Nursing Home,4179.64, 15-Nov-2022
1064,Revenue,CAHD,South - Commissioned Services,Permanent Nursing,Blossom Fields Nursing Home,4381.20, 15-Nov-2022
1065,Revenue,CAHD,South - Commissioned Services,Permanent Nursing,Blossom Fields Nursing Home,7557.14, 15-Nov-2022
1066,Revenue,CAHD,South - Commissioned Services,Permanent Nursing,Blossom Fields Nursing Home,5300.00, 15-Nov-2022
1067,Revenue,CAHD,South - Commissioned Services,Permanent Nursing,Blossom Fields Nursing Home,3816.00, 15-Nov-2022
1068,Revenue,CAHD,South - Commissioned Services,Fees & Charges Income - General,Blossom Fields Nursing Home,-473.21, 15-Nov-2022
1069,Revenue,CAHD,South - Commissioned Services,Fees & Charges Income - General,Blossom Fields Nursing Home,-1146.60, 15-Nov-2022
1070,Revenue,CAHD,South - Commissioned Services,Fees & Charges Income - General,Blossom Fields Nursing Home,-928.60, 15-Nov-2022
1071,Revenue,CAHD,South - Commissioned Services,Fees & Charges Income - General,Blossom Fields Nursing Home,-1044.00, 15-Nov-2022
1072,Revenue,CAHD,North - Community based support,Permanent Residential,Blossom Fields Nursing Home,-3123.21, 15-Nov-2022
1073,Revenue,CAHD,North - Community based support,Permanent Nursing,Blossom Fields Nursing Home,4381.20, 15-Nov-2022
1074,Revenue,CAHD,North - Community based support,Fees & Charges Income - General,Blossom Fields Nursing Home,1261.67, 15-Nov-2022
1075,Revenue,CAHD,North - Community based support,Fees & Charges Income - General,Blossom Fields Nursing Home,-627.80, 15-Nov-2022
1076,Revenue,CAHD,North - S117,Permanent Residential,Blossom Fields Nursing Home,5205.04, 15-Nov-2022
1077,Revenue,CAHD,Statemented Support Payments to OLAs,Other L.A.s - General,Blue Coat CE VA Primary School,1292.50, 22-Nov-2022
1078,Revenue,CAHD,Central - Commissioned Services,Other Small Contracts,Bluebird Care (South Gloucestershire),1771.56, 07-Nov-2022
1079,Revenue,CAHD,Central - Commissioned Services,Other Small Contracts,Bluebird Care (South Gloucestershire),349.65, 10-Nov-2022
1080,Revenue,CAHD,Central - Commissioned Services,Other Small Contracts,Bluebird Care (South Gloucestershire),303.03, 10-Nov-2022
1081,Revenue,CAHD,Central - Commissioned Services,Other Small Contracts,Bluebird Care (South Gloucestershire),2346.54, 10-Nov-2022
1082,Revenue,CAHD,Central - Commissioned Services,Other Small Contracts,Bluebird Care (South Gloucestershire),411.81, 10-Nov-2022
1083,Revenue,CAHD,Central - Commissioned Services,Other Small Contracts,Bluebird Care (South Gloucestershire),69.93, 10-Nov-2022
1084,Revenue,CAHD,Central - Commissioned Services,Other Small Contracts,Bluebird Care (South Gloucestershire),5299.14, 10-Nov-2022
1085,Revenue,CAHD,Central - Commissioned Services,Other Small Contracts,Bluebird Care (South Gloucestershire),442.89, 10-Nov-2022
1086,Revenue,CAHD,Central - Commissioned Services,Other Small Contracts,Bluebird Care (South Gloucestershire),839.16, 10-Nov-2022
1087,Revenue,CAHD,Central - Commissioned Services,Other Small Contracts,Bluebird Care (South Gloucestershire),637.14, 10-Nov-2022
1088,Revenue,CAHD,Central - Commissioned Services,Other Small Contracts,Bluebird Care (South Gloucestershire),481.74, 10-Nov-2022
1089,Revenue,CAHD,Central - Commissioned Services,Other Small Contracts,Bluebird Care (South Gloucestershire),341.88, 10-Nov-2022
1090,Revenue,CAHD,Central - Commissioned Services,Other Small Contracts,Bluebird Care (South Gloucestershire),2820.51, 10-Nov-2022
1091,Revenue,CAHD,Central - Commissioned Services,Other Small Contracts,Bluebird Care (South Gloucestershire),108.78, 10-Nov-2022
1092,Revenue,CAHD,Central - Commissioned Services,Other Small Contracts,Bluebird Care (South Gloucestershire),924.63, 10-Nov-2022
1093,Revenue,CAHD,Central - Commissioned Services,Other Small Contracts,Bluebird Care (South Gloucestershire),124.32, 10-Nov-2022
1094,Revenue,CAHD,Central - Commissioned Services,Other Small Contracts,Bluebird Care (South Gloucestershire),590.52, 10-Nov-2022
1095,Revenue,CAHD,Central - Commissioned Services,Other Small Contracts,Bluebird Care (South Gloucestershire),4198.32, 10-Nov-2022
1096,Revenue,CAHD,Central - Commissioned Services,Other Small Contracts,Bluebird Care (South Gloucestershire),520.59, 10-Nov-2022
1097,Revenue,CAHD,Central - Commissioned Services,Other Small Contracts,Bluebird Care (South Gloucestershire),1359.75, 10-Nov-2022
1098,Revenue,CAHD,Central - Commissioned Services,Other Small Contracts,Bluebird Care (South Gloucestershire),1872.57, 10-Nov-2022
1099,Revenue,CAHD,Central - Commissioned Services,Other Small Contracts,Bluebird Care (South Gloucestershire),1935.84, 10-Nov-2022
1100,Revenue,CAHD,Central - Commissioned Services,Other Small Contracts,Bluebird Care (South Gloucestershire),194.25, 10-Nov-2022
1101,Revenue,CAHD,Central - Commissioned Services,Other Small Contracts,Bluebird Care (South Gloucestershire),1072.26, 10-Nov-2022
1102,Revenue,CAHD,South - Commissioned Services,Other Small Contracts,Bluebird Care (South Gloucestershire),1351.98, 10-Nov-2022
1103,Revenue,CAHD,South - Commissioned Services,Other Small Contracts,Bluebird Care (South Gloucestershire),878.01, 10-Nov-2022
1104,Revenue,CAHD,South - Commissioned Services,Other Small Contracts,Bluebird Care (South Gloucestershire),1569.54, 10-Nov-2022
1105,Revenue,CAHD,South - Commissioned Services,Other Small Contracts,Bluebird Care (South Gloucestershire),606.06, 10-Nov-2022
1106,Revenue,CAHD,South - Commissioned Services,Other Small Contracts,Bluebird Care (South Gloucestershire),777.00, 10-Nov-2022
1107,Revenue,CAHD,South - Commissioned Services,Other Small Contracts,Bluebird Care (South Gloucestershire),4198.32, 10-Nov-2022
1108,Revenue,CAHD,South - Commissioned Services,Other Small Contracts,Bluebird Care (South Gloucestershire),186.48, 10-Nov-2022
1109,Revenue,CAHD,South - Commissioned Services,Other Small Contracts,Bluebird Care (South Gloucestershire),365.19, 10-Nov-2022
1110,Revenue,CAHD,South - Commissioned Services,Other Small Contracts,Bluebird Care (South Gloucestershire),124.32, 10-Nov-2022
1111,Revenue,CAHD,South - Commissioned Services,Other Small Contracts,Bluebird Care (South Gloucestershire),1087.80, 10-Nov-2022
1112,Revenue,CAHD,North - Community based support,Other Small Contracts,Bluebird Care (South Gloucestershire),1025.64, 10-Nov-2022
1113,Revenue,CAHD,North - Community based support,Other Small Contracts,Bluebird Care (South Gloucestershire),1390.83, 10-Nov-2022
1114,Revenue,CAHD,North - Community based support,Other Small Contracts,Bluebird Care (South Gloucestershire),442.89, 10-Nov-2022
1115,Revenue,CAHD,North - Community based support,Other Small Contracts,Bluebird Care (South Gloucestershire),170.94, 10-Nov-2022
1116,Revenue,CAHD,North - Community based support,Other Small Contracts,Bluebird Care (South Gloucestershire),4941.09, 10-Nov-2022
1117,Revenue,CAHD,North - Community based support,Other Small Contracts,Bluebird Care (South Gloucestershire),85.47, 10-Nov-2022
1118,Revenue,CAHD,North - Community based support,Other Small Contracts,Bluebird Care (South Gloucestershire),419.58, 10-Nov-2022
1119,Revenue,CAHD,North - Community based support,Other Small Contracts,Bluebird Care (South Gloucestershire),15.54, 10-Nov-2022
1120,Revenue,CAHD,North - Community based support,Other Small Contracts,Bluebird Care (South Gloucestershire),186.48, 10-Nov-2022
1121,Revenue,CAHD,North - Community based support,Other Small Contracts,Bluebird Care (South Gloucestershire),878.01, 10-Nov-2022
1122,Revenue,CAHD,North - Community based support,Other Small Contracts,Bluebird Care (South Gloucestershire),5252.52, 10-Nov-2022
1123,Revenue,CAHD,North - Community based support,Other Small Contracts,Bluebird Care (South Gloucestershire),2727.27, 10-Nov-2022
1124,Revenue,CAHD,Central - Commissioned Services,Other Small Contracts,Bluebird Care (South Gloucestershire),132.09, 10-Nov-2022
1125,Revenue,CAHD,Central - Commissioned Services,Other Small Contracts,Bluebird Care (South Gloucestershire),116.55, 10-Nov-2022
1126,Revenue,CAHD,Central - Commissioned Services,Other Small Contracts,Bluebird Care (South Gloucestershire),800.31, 10-Nov-2022
1127,Revenue,CAHD,Central - Commissioned Services,Other Small Contracts,Bluebird Care (South Gloucestershire),139.86, 10-Nov-2022
1128,Revenue,CAHD,Central - Commissioned Services,Other Small Contracts,Bluebird Care (South Gloucestershire),1818.18, 10-Nov-2022
1129,Revenue,CAHD,Central - Commissioned Services,Other Small Contracts,Bluebird Care (South Gloucestershire),155.40, 10-Nov-2022
1130,Revenue,CAHD,Central - Commissioned Services,Other Small Contracts,Bluebird Care (South Gloucestershire),271.95, 10-Nov-2022
1131,Revenue,CAHD,Central - Commissioned Services,Other Small Contracts,Bluebird Care (South Gloucestershire),209.79, 10-Nov-2022
1132,Revenue,CAHD,Central - Commissioned Services,Other Small Contracts,Bluebird Care (South Gloucestershire),139.86, 10-Nov-2022
1133,Revenue,CAHD,Central - Commissioned Services,Other Small Contracts,Bluebird Care (South Gloucestershire),132.09, 10-Nov-2022
1134,Revenue,CAHD,Central - Commissioned Services,Other Small Contracts,Bluebird Care (South Gloucestershire),940.17, 10-Nov-2022
1135,Revenue,CAHD,Central - Commissioned Services,Other Small Contracts,Bluebird Care (South Gloucestershire),46.62, 10-Nov-2022
1136,Revenue,CAHD,Central - Commissioned Services,Other Small Contracts,Bluebird Care (South Gloucestershire),46.62, 10-Nov-2022
1137,Revenue,CAHD,Central - Commissioned Services,Other Small Contracts,Bluebird Care (South Gloucestershire),202.02, 10-Nov-2022
1138,Revenue,CAHD,Central - Commissioned Services,Other Small Contracts,Bluebird Care (South Gloucestershire),1399.44, 10-Nov-2022
1139,Revenue,CAHD,Central - Commissioned Services,Other Small Contracts,Bluebird Care (South Gloucestershire),139.86, 10-Nov-2022
1140,Revenue,CAHD,Central - Commissioned Services,Other Small Contracts,Bluebird Care (South Gloucestershire),458.43, 10-Nov-2022
1141,Revenue,CAHD,Central - Commissioned Services,Other Small Contracts,Bluebird Care (South Gloucestershire),652.68, 10-Nov-2022
1142,Revenue,CAHD,Central - Commissioned Services,Other Small Contracts,Bluebird Care (South Gloucestershire),655.64, 10-Nov-2022
1143,Revenue,CAHD,Central - Commissioned Services,Other Small Contracts,Bluebird Care (South Gloucestershire),77.70, 10-Nov-2022
1144,Revenue,CAHD,Central - Commissioned Services,Other Small Contracts,Bluebird Care (South Gloucestershire),54.39, 10-Nov-2022
1145,Revenue,CAHD,Central - Commissioned Services,Other Small Contracts,Bluebird Care (South Gloucestershire),357.42, 10-Nov-2022
1146,Revenue,CAHD,South - Commissioned Services,Other Small Contracts,Bluebird Care (South Gloucestershire),419.58, 10-Nov-2022
1147,Revenue,CAHD,South - Commissioned Services,Other Small Contracts,Bluebird Care (South Gloucestershire),209.79, 10-Nov-2022
1148,Revenue,CAHD,South - Commissioned Services,Other Small Contracts,Bluebird Care (South Gloucestershire),505.05, 10-Nov-2022
1149,Revenue,CAHD,South - Commissioned Services,Other Small Contracts,Bluebird Care (South Gloucestershire),225.33, 10-Nov-2022
1150,Revenue,CAHD,South - Commissioned Services,Other Small Contracts,Bluebird Care (South Gloucestershire),279.72, 10-Nov-2022
1151,Revenue,CAHD,South - Commissioned Services,Other Small Contracts,Bluebird Care (South Gloucestershire),1399.44, 10-Nov-2022
1152,Revenue,CAHD,South - Commissioned Services,Other Small Contracts,Bluebird Care (South Gloucestershire),62.16, 10-Nov-2022
1153,Revenue,CAHD,South - Commissioned Services,Other Small Contracts,Bluebird Care (South Gloucestershire),124.32, 10-Nov-2022
1154,Revenue,CAHD,South - Commissioned Services,Other Small Contracts,Bluebird Care (South Gloucestershire),62.16, 10-Nov-2022
1155,Revenue,CAHD,South - Commissioned Services,Other Small Contracts,Bluebird Care (South Gloucestershire),365.19, 10-Nov-2022
1156,Revenue,CAHD,North - Community based support,Other Small Contracts,Bluebird Care (South Gloucestershire),341.88, 10-Nov-2022
1157,Revenue,CAHD,North - Community based support,Other Small Contracts,Bluebird Care (South Gloucestershire),341.88, 10-Nov-2022
1158,Revenue,CAHD,North - Community based support,Other Small Contracts,Bluebird Care (South Gloucestershire),139.86, 10-Nov-2022
1159,Revenue,CAHD,North - Community based support,Other Small Contracts,Bluebird Care (South Gloucestershire),62.16, 10-Nov-2022
1160,Revenue,CAHD,North - Community based support,Other Small Contracts,Bluebird Care (South Gloucestershire),1678.11, 10-Nov-2022
1161,Revenue,CAHD,North - Community based support,Other Small Contracts,Bluebird Care (South Gloucestershire),124.32, 10-Nov-2022
1162,Revenue,CAHD,North - Community based support,Other Small Contracts,Bluebird Care (South Gloucestershire),271.95, 10-Nov-2022
1163,Revenue,CAHD,North - Community based support,Other Small Contracts,Bluebird Care (South Gloucestershire),54.39, 10-Nov-2022
1164,Revenue,CAHD,North - Community based support,Other Small Contracts,Bluebird Care (South Gloucestershire),271.95, 10-Nov-2022
1165,Revenue,CAHD,North - Community based support,Other Small Contracts,Bluebird Care (South Gloucestershire),1750.84, 10-Nov-2022
1166,Revenue,CAHD,North - Community based support,Other Small Contracts,Bluebird Care (South Gloucestershire),963.48, 10-Nov-2022
1167,Revenue,CAHD,Central - Commissioned Services,Other Small Contracts,Bluebird Care (South Gloucestershire),85.47, 10-Nov-2022
1168,Revenue,CAHD,Central - Commissioned Services,Other Small Contracts,Bluebird Care (South Gloucestershire),777.00, 10-Nov-2022
1169,Revenue,CAHD,Central - Commissioned Services,Other Small Contracts,Bluebird Care (South Gloucestershire),132.09, 10-Nov-2022
1170,Revenue,CAHD,Central - Commissioned Services,Other Small Contracts,Bluebird Care (South Gloucestershire),31.08, 10-Nov-2022
1171,Revenue,CAHD,Central - Commissioned Services,Other Small Contracts,Bluebird Care (South Gloucestershire),1810.41, 10-Nov-2022
1172,Revenue,CAHD,Central - Commissioned Services,Other Small Contracts,Bluebird Care (South Gloucestershire),139.86, 10-Nov-2022
1173,Revenue,CAHD,Central - Commissioned Services,Other Small Contracts,Bluebird Care (South Gloucestershire),279.72, 10-Nov-2022
1174,Revenue,CAHD,Central - Commissioned Services,Other Small Contracts,Bluebird Care (South Gloucestershire),202.02, 10-Nov-2022
1175,Revenue,CAHD,Central - Commissioned Services,Other Small Contracts,Bluebird Care (South Gloucestershire),139.86, 10-Nov-2022
1176,Revenue,CAHD,Central - Commissioned Services,Other Small Contracts,Bluebird Care (South Gloucestershire),108.78, 10-Nov-2022
1177,Revenue,CAHD,Central - Commissioned Services,Other Small Contracts,Bluebird Care (South Gloucestershire),963.48, 10-Nov-2022
1178,Revenue,CAHD,Central - Commissioned Services,Other Small Contracts,Bluebird Care (South Gloucestershire),31.08, 10-Nov-2022
1179,Revenue,CAHD,Central - Commissioned Services,Other Small Contracts,Bluebird Care (South Gloucestershire),574.98, 10-Nov-2022
1180,Revenue,CAHD,Central - Commissioned Services,Other Small Contracts,Bluebird Care (South Gloucestershire),38.85, 10-Nov-2022
1181,Revenue,CAHD,Central - Commissioned Services,Other Small Contracts,Bluebird Care (South Gloucestershire),186.48, 10-Nov-2022
1182,Revenue,CAHD,Central - Commissioned Services,Other Small Contracts,Bluebird Care (South Gloucestershire),1399.44, 10-Nov-2022
1183,Revenue,CAHD,Central - Commissioned Services,Other Small Contracts,Bluebird Care (South Gloucestershire),124.32, 10-Nov-2022
1184,Revenue,CAHD,Central - Commissioned Services,Other Small Contracts,Bluebird Care (South Gloucestershire),442.89, 10-Nov-2022
1185,Revenue,CAHD,Central - Commissioned Services,Other Small Contracts,Bluebird Care (South Gloucestershire),629.37, 10-Nov-2022
1186,Revenue,CAHD,Central - Commissioned Services,Other Small Contracts,Bluebird Care (South Gloucestershire),647.87, 10-Nov-2022
1187,Revenue,CAHD,Central - Commissioned Services,Other Small Contracts,Bluebird Care (South Gloucestershire),101.01, 10-Nov-2022
1188,Revenue,CAHD,Central - Commissioned Services,Other Small Contracts,Bluebird Care (South Gloucestershire),404.04, 10-Nov-2022
1189,Revenue,CAHD,Central - Commissioned Services,Other Small Contracts,Bluebird Care (South Gloucestershire),365.19, 10-Nov-2022
1190,Revenue,CAHD,South - Commissioned Services,Other Small Contracts,Bluebird Care (South Gloucestershire),450.66, 10-Nov-2022
1191,Revenue,CAHD,South - Commissioned Services,Other Small Contracts,Bluebird Care (South Gloucestershire),303.03, 10-Nov-2022
1192,Revenue,CAHD,South - Commissioned Services,Other Small Contracts,Bluebird Care (South Gloucestershire),520.59, 10-Nov-2022
1193,Revenue,CAHD,South - Commissioned Services,Other Small Contracts,Bluebird Care (South Gloucestershire),194.25, 10-Nov-2022
1194,Revenue,CAHD,South - Commissioned Services,Other Small Contracts,Bluebird Care (South Gloucestershire),271.95, 10-Nov-2022
1195,Revenue,CAHD,South - Commissioned Services,Other Small Contracts,Bluebird Care (South Gloucestershire),1399.44, 10-Nov-2022
1196,Revenue,CAHD,South - Commissioned Services,Other Small Contracts,Bluebird Care (South Gloucestershire),62.16, 10-Nov-2022
1197,Revenue,CAHD,South - Commissioned Services,Other Small Contracts,Bluebird Care (South Gloucestershire),124.32, 10-Nov-2022
1198,Revenue,CAHD,South - Commissioned Services,Other Small Contracts,Bluebird Care (South Gloucestershire),62.16, 10-Nov-2022
1199,Revenue,CAHD,South - Commissioned Services,Other Small Contracts,Bluebird Care (South Gloucestershire),372.96, 10-Nov-2022
1200,Revenue,CAHD,North - Community based support,Other Small Contracts,Bluebird Care (South Gloucestershire),341.88, 10-Nov-2022
1201,Revenue,CAHD,North - Community based support,Other Small Contracts,Bluebird Care (South Gloucestershire),489.51, 10-Nov-2022
1202,Revenue,CAHD,North - Community based support,Other Small Contracts,Bluebird Care (South Gloucestershire),209.79, 10-Nov-2022
1203,Revenue,CAHD,North - Community based support,Other Small Contracts,Bluebird Care (South Gloucestershire),46.62, 10-Nov-2022
1204,Revenue,CAHD,North - Community based support,Other Small Contracts,Bluebird Care (South Gloucestershire),1647.03, 10-Nov-2022
1205,Revenue,CAHD,North - Community based support,Other Small Contracts,Bluebird Care (South Gloucestershire),15.54, 10-Nov-2022
1206,Revenue,CAHD,North - Community based support,Other Small Contracts,Bluebird Care (South Gloucestershire),139.86, 10-Nov-2022
1207,Revenue,CAHD,North - Community based support,Other Small Contracts,Bluebird Care (South Gloucestershire),62.16, 10-Nov-2022
1208,Revenue,CAHD,North - Community based support,Other Small Contracts,Bluebird Care (South Gloucestershire),450.66, 10-Nov-2022
1209,Revenue,CAHD,North - Community based support,Other Small Contracts,Bluebird Care (South Gloucestershire),1750.84, 10-Nov-2022
1210,Revenue,CAHD,North - Community based support,Other Small Contracts,Bluebird Care (South Gloucestershire),940.17, 10-Nov-2022
1211,Revenue,CAHD,Central - Commissioned Services,Other Small Contracts,Bluebird Care (South Gloucestershire),139.86, 28-Nov-2022
1212,Revenue,CAHD,Central - Commissioned Services,Other Small Contracts,Bluebird Care (South Gloucestershire),116.55, 28-Nov-2022
1213,Revenue,CAHD,Central - Commissioned Services,Other Small Contracts,Bluebird Care (South Gloucestershire),792.54, 28-Nov-2022
1214,Revenue,CAHD,Central - Commissioned Services,Other Small Contracts,Bluebird Care (South Gloucestershire),124.32, 28-Nov-2022
1215,Revenue,CAHD,Central - Commissioned Services,Other Small Contracts,Bluebird Care (South Gloucestershire),31.08, 28-Nov-2022
1216,Revenue,CAHD,Central - Commissioned Services,Other Small Contracts,Bluebird Care (South Gloucestershire),1787.10, 28-Nov-2022
1217,Revenue,CAHD,Central - Commissioned Services,Other Small Contracts,Bluebird Care (South Gloucestershire),147.63, 28-Nov-2022
1218,Revenue,CAHD,Central - Commissioned Services,Other Small Contracts,Bluebird Care (South Gloucestershire),256.41, 28-Nov-2022
1219,Revenue,CAHD,Central - Commissioned Services,Other Small Contracts,Bluebird Care (South Gloucestershire),217.56, 28-Nov-2022
1220,Revenue,CAHD,Central - Commissioned Services,Other Small Contracts,Bluebird Care (South Gloucestershire),139.86, 28-Nov-2022
1221,Revenue,CAHD,Central - Commissioned Services,Other Small Contracts,Bluebird Care (South Gloucestershire),124.32, 28-Nov-2022
1222,Revenue,CAHD,Central - Commissioned Services,Other Small Contracts,Bluebird Care (South Gloucestershire),940.17, 28-Nov-2022
1223,Revenue,CAHD,Central - Commissioned Services,Other Small Contracts,Bluebird Care (South Gloucestershire),46.62, 28-Nov-2022
1224,Revenue,CAHD,Central - Commissioned Services,Other Small Contracts,Bluebird Care (South Gloucestershire),574.98, 28-Nov-2022
1225,Revenue,CAHD,Central - Commissioned Services,Other Small Contracts,Bluebird Care (South Gloucestershire),31.08, 28-Nov-2022
1226,Revenue,CAHD,Central - Commissioned Services,Other Small Contracts,Bluebird Care (South Gloucestershire),202.02, 28-Nov-2022
1227,Revenue,CAHD,Central - Commissioned Services,Other Small Contracts,Bluebird Care (South Gloucestershire),1399.44, 28-Nov-2022
1228,Revenue,CAHD,Central - Commissioned Services,Other Small Contracts,Bluebird Care (South Gloucestershire),124.32, 28-Nov-2022
1229,Revenue,CAHD,Central - Commissioned Services,Other Small Contracts,Bluebird Care (South Gloucestershire),419.58, 28-Nov-2022
1230,Revenue,CAHD,Central - Commissioned Services,Other Small Contracts,Bluebird Care (South Gloucestershire),644.91, 28-Nov-2022
1231,Revenue,CAHD,Central - Commissioned Services,Other Small Contracts,Bluebird Care (South Gloucestershire),601.25, 28-Nov-2022
1232,Revenue,CAHD,Central - Commissioned Services,Other Small Contracts,Bluebird Care (South Gloucestershire),93.24, 28-Nov-2022
1233,Revenue,CAHD,Central - Commissioned Services,Other Small Contracts,Bluebird Care (South Gloucestershire),396.27, 28-Nov-2022
1234,Revenue,CAHD,Central - Commissioned Services,Other Small Contracts,Bluebird Care (South Gloucestershire),372.96, 28-Nov-2022
1235,Revenue,CAHD,South - Commissioned Services,Other Small Contracts,Bluebird Care (South Gloucestershire),466.20, 28-Nov-2022
1236,Revenue,CAHD,South - Commissioned Services,Other Small Contracts,Bluebird Care (South Gloucestershire),303.03, 28-Nov-2022
1237,Revenue,CAHD,South - Commissioned Services,Other Small Contracts,Bluebird Care (South Gloucestershire),497.28, 28-Nov-2022
1238,Revenue,CAHD,South - Commissioned Services,Other Small Contracts,Bluebird Care (South Gloucestershire),194.25, 28-Nov-2022
1239,Revenue,CAHD,South - Commissioned Services,Other Small Contracts,Bluebird Care (South Gloucestershire),264.18, 28-Nov-2022
1240,Revenue,CAHD,South - Commissioned Services,Other Small Contracts,Bluebird Care (South Gloucestershire),1399.44, 28-Nov-2022
1241,Revenue,CAHD,South - Commissioned Services,Other Small Contracts,Bluebird Care (South Gloucestershire),62.16, 28-Nov-2022
1242,Revenue,CAHD,South - Commissioned Services,Other Small Contracts,Bluebird Care (South Gloucestershire),62.16, 28-Nov-2022
1243,Revenue,CAHD,South - Commissioned Services,Other Small Contracts,Bluebird Care (South Gloucestershire),62.16, 28-Nov-2022
1244,Revenue,CAHD,South - Commissioned Services,Other Small Contracts,Bluebird Care (South Gloucestershire),365.19, 28-Nov-2022
1245,Revenue,CAHD,North - Community based support,Other Small Contracts,Bluebird Care (South Gloucestershire),279.72, 28-Nov-2022
1246,Revenue,CAHD,North - Community based support,Other Small Contracts,Bluebird Care (South Gloucestershire),466.20, 28-Nov-2022
1247,Revenue,CAHD,North - Community based support,Other Small Contracts,Bluebird Care (South Gloucestershire),163.17, 28-Nov-2022
1248,Revenue,CAHD,North - Community based support,Other Small Contracts,Bluebird Care (South Gloucestershire),31.08, 28-Nov-2022
1249,Revenue,CAHD,North - Community based support,Other Small Contracts,Bluebird Care (South Gloucestershire),1693.65, 28-Nov-2022
1250,Revenue,CAHD,North - Community based support,Other Small Contracts,Bluebird Care (South Gloucestershire),31.08, 28-Nov-2022
1251,Revenue,CAHD,North - Community based support,Other Small Contracts,Bluebird Care (South Gloucestershire),139.86, 28-Nov-2022
1252,Revenue,CAHD,North - Community based support,Other Small Contracts,Bluebird Care (South Gloucestershire),62.16, 28-Nov-2022
1253,Revenue,CAHD,North - Community based support,Other Small Contracts,Bluebird Care (South Gloucestershire),427.35, 28-Nov-2022
1254,Revenue,CAHD,North - Community based support,Other Small Contracts,Bluebird Care (South Gloucestershire),1750.84, 28-Nov-2022
1255,Revenue,CAHD,North - Community based support,Other Small Contracts,Bluebird Care (South Gloucestershire),924.63, 28-Nov-2022
1256,Revenue,CAHD,North - Community based support,Other Small Contracts,Bluebird Care (South Gloucestershire),93.24, 28-Nov-2022
1257,Revenue,CAHD,Central - Commissioned Services,Other Small Contracts,Bluebird Care (South Gloucestershire),163.17, 28-Nov-2022
1258,Revenue,CAHD,Central - Commissioned Services,Other Small Contracts,Bluebird Care (South Gloucestershire),116.55, 28-Nov-2022
1259,Revenue,CAHD,Central - Commissioned Services,Other Small Contracts,Bluebird Care (South Gloucestershire),815.85, 28-Nov-2022
1260,Revenue,CAHD,Central - Commissioned Services,Other Small Contracts,Bluebird Care (South Gloucestershire),132.09, 28-Nov-2022
1261,Revenue,CAHD,Central - Commissioned Services,Other Small Contracts,Bluebird Care (South Gloucestershire),31.08, 28-Nov-2022
1262,Revenue,CAHD,Central - Commissioned Services,Other Small Contracts,Bluebird Care (South Gloucestershire),1794.87, 28-Nov-2022
1263,Revenue,CAHD,Central - Commissioned Services,Other Small Contracts,Bluebird Care (South Gloucestershire),101.01, 28-Nov-2022
1264,Revenue,CAHD,Central - Commissioned Services,Other Small Contracts,Bluebird Care (South Gloucestershire),264.18, 28-Nov-2022
1265,Revenue,CAHD,Central - Commissioned Services,Other Small Contracts,Bluebird Care (South Gloucestershire),209.79, 28-Nov-2022
1266,Revenue,CAHD,Central - Commissioned Services,Other Small Contracts,Bluebird Care (South Gloucestershire),163.17, 28-Nov-2022
1267,Revenue,CAHD,Central - Commissioned Services,Other Small Contracts,Bluebird Care (South Gloucestershire),116.55, 28-Nov-2022
1268,Revenue,CAHD,Central - Commissioned Services,Other Small Contracts,Bluebird Care (South Gloucestershire),932.40, 28-Nov-2022
1269,Revenue,CAHD,Central - Commissioned Services,Other Small Contracts,Bluebird Care (South Gloucestershire),31.08, 28-Nov-2022
1270,Revenue,CAHD,Central - Commissioned Services,Other Small Contracts,Bluebird Care (South Gloucestershire),559.44, 28-Nov-2022
1271,Revenue,CAHD,Central - Commissioned Services,Other Small Contracts,Bluebird Care (South Gloucestershire),46.62, 28-Nov-2022
1272,Revenue,CAHD,Central - Commissioned Services,Other Small Contracts,Bluebird Care (South Gloucestershire),170.94, 28-Nov-2022
1273,Revenue,CAHD,Central - Commissioned Services,Other Small Contracts,Bluebird Care (South Gloucestershire),1399.44, 28-Nov-2022
1274,Revenue,CAHD,Central - Commissioned Services,Other Small Contracts,Bluebird Care (South Gloucestershire),139.86, 28-Nov-2022
1275,Revenue,CAHD,Central - Commissioned Services,Other Small Contracts,Bluebird Care (South Gloucestershire),442.89, 28-Nov-2022
1276,Revenue,CAHD,Central - Commissioned Services,Other Small Contracts,Bluebird Care (South Gloucestershire),644.91, 28-Nov-2022
1277,Revenue,CAHD,Central - Commissioned Services,Other Small Contracts,Bluebird Care (South Gloucestershire),616.79, 28-Nov-2022
1278,Revenue,CAHD,Central - Commissioned Services,Other Small Contracts,Bluebird Care (South Gloucestershire),93.24, 28-Nov-2022
1279,Revenue,CAHD,Central - Commissioned Services,Other Small Contracts,Bluebird Care (South Gloucestershire),411.81, 28-Nov-2022
1280,Revenue,CAHD,Central - Commissioned Services,Other Small Contracts,Bluebird Care (South Gloucestershire),365.19, 28-Nov-2022
1281,Revenue,CAHD,South - Commissioned Services,Other Small Contracts,Bluebird Care (South Gloucestershire),481.74, 28-Nov-2022
1282,Revenue,CAHD,South - Commissioned Services,Other Small Contracts,Bluebird Care (South Gloucestershire),287.49, 28-Nov-2022
1283,Revenue,CAHD,South - Commissioned Services,Other Small Contracts,Bluebird Care (South Gloucestershire),512.82, 28-Nov-2022
1284,Revenue,CAHD,South - Commissioned Services,Other Small Contracts,Bluebird Care (South Gloucestershire),233.10, 28-Nov-2022
1285,Revenue,CAHD,South - Commissioned Services,Other Small Contracts,Bluebird Care (South Gloucestershire),271.95, 28-Nov-2022
1286,Revenue,CAHD,South - Commissioned Services,Other Small Contracts,Bluebird Care (South Gloucestershire),1399.44, 28-Nov-2022
1287,Revenue,CAHD,South - Commissioned Services,Other Small Contracts,Bluebird Care (South Gloucestershire),62.16, 28-Nov-2022
1288,Revenue,CAHD,South - Commissioned Services,Other Small Contracts,Bluebird Care (South Gloucestershire),116.55, 28-Nov-2022
1289,Revenue,CAHD,South - Commissioned Services,Other Small Contracts,Bluebird Care (South Gloucestershire),54.39, 28-Nov-2022
1290,Revenue,CAHD,South - Commissioned Services,Other Small Contracts,Bluebird Care (South Gloucestershire),365.19, 28-Nov-2022
1291,Revenue,CAHD,North - Community based support,Other Small Contracts,Bluebird Care (South Gloucestershire),341.88, 28-Nov-2022
1292,Revenue,CAHD,North - Community based support,Other Small Contracts,Bluebird Care (South Gloucestershire),458.43, 28-Nov-2022
1293,Revenue,CAHD,North - Community based support,Other Small Contracts,Bluebird Care (South Gloucestershire),194.25, 28-Nov-2022
1294,Revenue,CAHD,North - Community based support,Other Small Contracts,Bluebird Care (South Gloucestershire),62.16, 28-Nov-2022
1295,Revenue,CAHD,North - Community based support,Other Small Contracts,Bluebird Care (South Gloucestershire),1685.88, 28-Nov-2022
1296,Revenue,CAHD,North - Community based support,Other Small Contracts,Bluebird Care (South Gloucestershire),46.62, 28-Nov-2022
1297,Revenue,CAHD,North - Community based support,Other Small Contracts,Bluebird Care (South Gloucestershire),132.09, 28-Nov-2022
1298,Revenue,CAHD,North - Community based support,Other Small Contracts,Bluebird Care (South Gloucestershire),62.16, 28-Nov-2022
1299,Revenue,CAHD,North - Community based support,Other Small Contracts,Bluebird Care (South Gloucestershire),473.97, 28-Nov-2022
1300,Revenue,CAHD,North - Community based support,Other Small Contracts,Bluebird Care (South Gloucestershire),1528.10, 28-Nov-2022
1301,Revenue,CAHD,North - Community based support,Other Small Contracts,Bluebird Care (South Gloucestershire),932.40, 28-Nov-2022
1302,Revenue,CAHD,North - Community based support,Other Small Contracts,Bluebird Care (South Gloucestershire),93.24, 28-Nov-2022
1303,Revenue,CAHD,Central - Commissioned Services,Other Small Contracts,Bluebird Care (South Gloucestershire),1284.00, 02-Nov-2022
1304,Revenue,CAHD,Central - Commissioned Services,Other Small Contracts,Bluebird Care (South Gloucestershire),2121.21, 02-Nov-2022
1305,Revenue,CAHD,Central - Commissioned Services,Other Small Contracts,Bluebird Care (South Gloucestershire),372.96, 02-Nov-2022
1306,Revenue,CAHD,North - Community based support,Other Small Contracts,Bluebird Care (South Gloucestershire),126.88, 02-Nov-2022
1307,Revenue,CAHD,North - Community based support,Other Small Contracts,Bluebird Care (South Gloucestershire),808.08, 02-Nov-2022
1308,Revenue,CAHD,Central - Commissioned Services,Other Small Contracts,Bluebird Care (South Gloucestershire),528.36, 10-Nov-2022
1309,Revenue,CAHD,Central - Commissioned Services,Other Small Contracts,Bluebird Care (South Gloucestershire),93.24, 10-Nov-2022
1310,Revenue,CAHD,North - Community based support,Other Small Contracts,Bluebird Care (South Gloucestershire),38.85, 10-Nov-2022
1311,Revenue,CAHD,CSC - Asylum Seekers - Unaccompanied,Independent Living,Blueline Healthcare Solutions Ltd T/A Blueline Car,4207.00, 11-Nov-2022
1312,Revenue,CAHD,CSC - Asylum Seekers - Unaccompanied,Independent Living,Blueline Healthcare Solutions Ltd T/A Blueline Car,4207.00, 01-Nov-2022
1313,Revenue,CAHD,CSC - Asylum Seekers - Unaccompanied,Independent Living,Blueline Healthcare Solutions Ltd T/A Blueline Car,7612.63, 04-Nov-2022
1314,Revenue,CAHD,CSC - Asylum Seekers - Unaccompanied,Independent Living,Blueline Healthcare Solutions Ltd T/A Blueline Car,4071.00, 25-Nov-2022
1315,Revenue,CAHD,CSC - Asylum Seekers - Unaccompanied,Independent Living,Blueline Healthcare Solutions Ltd T/A Blueline Car,4071.00, 25-Nov-2022
1316,Revenue,CAHD,CSC - Asylum Seekers - Unaccompanied,Independent Living,Blueline Healthcare Solutions Ltd T/A Blueline Car,4071.00, 25-Nov-2022
1317,Revenue,CAHD,CSC - Asylum Seekers - Unaccompanied,Independent Living,Blueline Healthcare Solutions Ltd T/A Blueline Car,4071.00, 25-Nov-2022
1318,Revenue,CAHD,CSC - Asylum Seekers - Unaccompanied,Independent Living,Blueline Healthcare Solutions Ltd T/A Blueline Car,4071.00, 25-Nov-2022
1319,Revenue,CAHD,CSC - Asylum Seekers - Unaccompanied,Independent Living,Blueline Healthcare Solutions Ltd T/A Blueline Car,4071.00, 25-Nov-2022
1320,Revenue,CAHD,CSC - Asylum Seekers - Unaccompanied,Independent Living,Blueline Healthcare Solutions Ltd T/A Blueline Car,4071.00, 25-Nov-2022
1321,Revenue,CAHD,CSC - Asylum Seekers - Unaccompanied,Independent Living,Blueline Healthcare Solutions Ltd T/A Blueline Car,4071.00, 25-Nov-2022
1322,Revenue,CAHD,CSC - Asylum Seekers - Unaccompanied,Independent Living,Blueline Healthcare Solutions Ltd T/A Blueline Car,4071.00, 25-Nov-2022
1323,Revenue,CAHD,CSC - Asylum Seekers - Unaccompanied,Independent Living,Blueline Healthcare Solutions Ltd T/A Blueline Car,4071.00, 25-Nov-2022
1324,Revenue,CAHD,Drugs Alcohol and Sexual Health,Other Small Contracts,Boots UK Ltd,825.00, 11-Nov-2022
1325,Revenue,CAHD,Drugs Alcohol and Sexual Health,Other Small Contracts,Boots UK Ltd,975.00, 11-Nov-2022
1326,Revenue,CAHD,North - Community based support,Permanent Residential,Bradbury House,6768.60, 15-Nov-2022
1327,Revenue,CAHD,S28A cases,Fees & Charges Income - General,Bradbury House,-438.80, 15-Nov-2022
1328,Revenue,CAHD,Central - Commissioned Services,Permanent Residential,Bradbury House,11342.80, 15-Nov-2022
1329,Revenue,CAHD,North - S117,Permanent Residential,Bradbury House,14640.32, 15-Nov-2022
1330,Revenue,CAHD,Drugs Alcohol and Sexual Health,Other Small Contracts,Bradley Stoke Surgery,898.16, 29-Nov-2022
1331,Revenue,CAHD,Drugs Alcohol and Sexual Health,Other Small Contracts,Bradley Stoke Surgery,1690.50, 29-Nov-2022
1332,Revenue,CAHD,Drugs Alcohol and Sexual Health,Other Small Contracts,Bradley Stoke Surgery,1116.50, 22-Nov-2022
1333,Revenue,CAHD,CSC - Residential Placements,Permanent Residential,Branas ISAF Ltd,48714.29, 09-Nov-2022
1334,Revenue,CAHD,Social Lettings Agency,Rent,Individual,822.73, 25-Nov-2022
1335,Revenue,CAHD,Social Lettings Agency,Fees & Charges Income - General,Individual,-102.80, 25-Nov-2022
1336,Revenue,CAHD,Social Lettings Agency,Rent,Individual,947.40, 08-Nov-2022
1337,Revenue,CAHD,Social Lettings Agency,Fees & Charges Income - General,Individual,-75.80, 08-Nov-2022
1338,Revenue,CAHD,Placements OLA Special Schools and RB,Other L.A.s - General,Briarwood School,2685.21, 22-Nov-2022
1339,Revenue,CAHD,Placements OLA Special Schools and RB,Other L.A.s - General,Briarwood School,1917.51, 22-Nov-2022
1340,Revenue,CAHD,Placements OLA Special Schools and RB,Other L.A.s - General,Briarwood School,766.84, 22-Nov-2022
1341,Revenue,CAHD,Central - Commissioned Services,Respite Planned - Residential,Bridge House Care Home,5370.00, 15-Nov-2022
1342,Revenue,CAHD,North - Community based support,Permanent Residential,Bridge House Care Home,3286.00, 15-Nov-2022
1343,Revenue,CAHD,North - Community based support,Permanent Residential,Bridge House Care Home,3440.00, 15-Nov-2022
1344,Revenue,CAHD,North - Community based support,Permanent Residential,Bridge House Care Home,3088.32, 15-Nov-2022
1345,Revenue,CAHD,North - Community based support,Permanent Nursing,Bridge House Care Home,3360.00, 15-Nov-2022
1346,Revenue,CAHD,North - Community based support,Fees & Charges Income - General,Bridge House Care Home,-627.80, 15-Nov-2022
1347,Revenue,CAHD,North - Community based support,Fees & Charges Income - General,Bridge House Care Home,-650.88, 15-Nov-2022
1348,Revenue,CAHD,North - Community based support,Fees & Charges Income - General,Bridge House Care Home,-651.64, 15-Nov-2022
1349,Revenue,CAHD,North - Community based support,Fees & Charges Income - General,Bridge House Care Home,-1679.52, 15-Nov-2022
1350,Revenue,CAHD,North - Community based support,Day Care / Social Activities,Bridge House Care Home,720.00, 15-Nov-2022
1351,Revenue,CAHD,North - Community based support,Permanent Residential,Bridgwater Court Care Home,10773.64, 15-Nov-2022
1352,Revenue,CAHD,Statemented Support Payments to OLAs,Other L.A.s - General,Bristol Cathedral Choir School,942.58, 22-Nov-2022
1353,Revenue,CAHD,Statemented Support Payments to OLAs,Other L.A.s - General,Bristol Cathedral Choir School,880.08, 22-Nov-2022
1354,Revenue,CAHD,Statemented Support Payments to OLAs,Other L.A.s - General,Bristol Cathedral Choir School,978.57, 22-Nov-2022
1355,Revenue,CAHD,CSC - Section 17 - ART,Interpreting & Translation,Bristol City Council,1108.88, 22-Nov-2022
1356,Revenue,CAHD,Statemented Support Payments to OLAs,Other L.A.s - General,Bristol City Council Schools General,897.42, 22-Nov-2022
1357,Revenue,CAHD,Afgan LES Refugees,Other Public Bodies,Bristol City Council Schools General,9000.00, 09-Nov-2022
1358,Revenue,CAHD,Statemented Support Payments to OLAs,Other L.A.s - General,Broadlands Academy,835.17, 22-Nov-2022
1359,Revenue,CAHD,North - Community based support,Permanent Residential,Brockhills Farm,3200.00, 15-Nov-2022
1360,Revenue,CAHD,North - Community based support,Fees & Charges Income - General,Brockhills Farm,-658.96, 15-Nov-2022
1361,Revenue,CAHD,Supporting People Programme,Grants to Voluntary Bodies,Bromford  :  Merlin Housing Society,2824.17, 01-Nov-2022
1362,Revenue,CAHD,Supporting People Programme,Grants to Voluntary Bodies,Bromford  :  Merlin Housing Society,23628.83, 01-Nov-2022
1363,Revenue,CAHD,Supporting People Programme,Grants to Voluntary Bodies,Bromford  :  Merlin Housing Society,1146.92, 01-Nov-2022
1364,Revenue,CAHD,South - Commissioned Services,Other Small Contracts,Brunelcare,28600.00, 09-Nov-2022
1365,Revenue,CAHD,D2A spend on behalf of NHS,Other Supplies & Services,Brunelcare,46900.00, 15-Nov-2022
1366,Revenue,CAHD,Central - Commissioned Services,Other Small Contracts,Brunelcare,278.30, 02-Nov-2022
1367,Revenue,CAHD,Central - Commissioned Services,Other Small Contracts,Brunelcare,901.45, 02-Nov-2022
1368,Revenue,CAHD,South - Commissioned Services,Other Small Contracts,Brunelcare,338.80, 02-Nov-2022
1369,Revenue,CAHD,South - Commissioned Services,Other Small Contracts,Brunelcare,169.40, 02-Nov-2022
1370,Revenue,CAHD,South - Commissioned Services,Other Small Contracts,Brunelcare,429.55, 02-Nov-2022
1371,Revenue,CAHD,South - Commissioned Services,Other Small Contracts,Brunelcare,568.70, 02-Nov-2022
1372,Revenue,CAHD,South - Commissioned Services,Other Small Contracts,Brunelcare,1137.40, 02-Nov-2022
1373,Revenue,CAHD,South - Commissioned Services,Other Small Contracts,Brunelcare,574.75, 02-Nov-2022
1374,Revenue,CAHD,South - Commissioned Services,Other Small Contracts,Brunelcare,344.85, 02-Nov-2022
1375,Revenue,CAHD,South - Commissioned Services,Other Small Contracts,Brunelcare,2438.15, 02-Nov-2022
1376,Revenue,CAHD,South - Commissioned Services,Other Small Contracts,Brunelcare,417.45, 02-Nov-2022
1377,Revenue,CAHD,South - Commissioned Services,Other Small Contracts,Brunelcare,901.45, 02-Nov-2022
1378,Revenue,CAHD,South - Commissioned Services,Other Small Contracts,Brunelcare,290.40, 02-Nov-2022
1379,Revenue,CAHD,South - Commissioned Services,Other Small Contracts,Brunelcare,229.90, 02-Nov-2022
1380,Revenue,CAHD,South - Commissioned Services,Other Small Contracts,Brunelcare,369.05, 02-Nov-2022
1381,Revenue,CAHD,South - Commissioned Services,Other Small Contracts,Brunelcare,254.10, 02-Nov-2022
1382,Revenue,CAHD,South - Commissioned Services,Other Small Contracts,Brunelcare,375.10, 02-Nov-2022
1383,Revenue,CAHD,South - Commissioned Services,Other Small Contracts,Brunelcare,2964.50, 02-Nov-2022
1384,Revenue,CAHD,South - Commissioned Services,Other Small Contracts,Brunelcare,1464.10, 02-Nov-2022
1385,Revenue,CAHD,South - Commissioned Services,Other Small Contracts,Brunelcare,60.50, 02-Nov-2022
1386,Revenue,CAHD,South - Commissioned Services,Other Small Contracts,Brunelcare,484.00, 02-Nov-2022
1387,Revenue,CAHD,South - Commissioned Services,Other Small Contracts,Brunelcare,671.55, 02-Nov-2022
1388,Revenue,CAHD,South - Commissioned Services,Other Small Contracts,Brunelcare,128.12, 02-Nov-2022
1389,Revenue,CAHD,South - Commissioned Services,Other Small Contracts,Brunelcare,2698.30, 02-Nov-2022
1390,Revenue,CAHD,South - Commissioned Services,Other Small Contracts,Brunelcare,193.60, 02-Nov-2022
1391,Revenue,CAHD,South - Commissioned Services,Other Small Contracts,Brunelcare,1082.95, 02-Nov-2022
1392,Revenue,CAHD,South - Commissioned Services,Other Small Contracts,Brunelcare,145.20, 02-Nov-2022
1393,Revenue,CAHD,South - Commissioned Services,Other Small Contracts,Brunelcare,248.05, 02-Nov-2022
1394,Revenue,CAHD,South - Commissioned Services,Other Small Contracts,Brunelcare,1082.95, 02-Nov-2022
1395,Revenue,CAHD,South - Commissioned Services,Other Small Contracts,Brunelcare,229.90, 02-Nov-2022
1396,Revenue,CAHD,South - Commissioned Services,Other Small Contracts,Brunelcare,1385.45, 02-Nov-2022
1397,Revenue,CAHD,South - Commissioned Services,Other Small Contracts,Brunelcare,484.00, 02-Nov-2022
1398,Revenue,CAHD,South - Commissioned Services,Other Small Contracts,Brunelcare,363.00, 02-Nov-2022
1399,Revenue,CAHD,South - Commissioned Services,Other Small Contracts,Brunelcare,114.95, 02-Nov-2022
1400,Revenue,CAHD,South - Commissioned Services,Other Small Contracts,Brunelcare,169.40, 02-Nov-2022
1401,Revenue,CAHD,South - Commissioned Services,Other Small Contracts,Brunelcare,465.85, 02-Nov-2022
1402,Revenue,CAHD,South - Commissioned Services,Other Small Contracts,Brunelcare,199.65, 02-Nov-2022
1403,Revenue,CAHD,South - Commissioned Services,Other Small Contracts,Brunelcare,484.00, 02-Nov-2022
1404,Revenue,CAHD,South - Commissioned Services,Other Small Contracts,Brunelcare,314.60, 02-Nov-2022
1405,Revenue,CAHD,South - Commissioned Services,Other Small Contracts,Brunelcare,477.95, 02-Nov-2022
1406,Revenue,CAHD,South - Commissioned Services,Other Small Contracts,Brunelcare,181.50, 02-Nov-2022
1407,Revenue,CAHD,South - Commissioned Services,Other Small Contracts,Brunelcare,72.60, 02-Nov-2022
1408,Revenue,CAHD,South - Commissioned Services,Other Small Contracts,Brunelcare,780.45, 02-Nov-2022
1409,Revenue,CAHD,South - Commissioned Services,Other Small Contracts,Brunelcare,356.95, 02-Nov-2022
1410,Revenue,CAHD,South - Commissioned Services,Other Small Contracts,Brunelcare,290.40, 02-Nov-2022
1411,Revenue,CAHD,South - Commissioned Services,Other Small Contracts,Brunelcare,744.15, 02-Nov-2022
1412,Revenue,CAHD,South - Commissioned Services,Other Small Contracts,Brunelcare,538.45, 02-Nov-2022
1413,Revenue,CAHD,South - Commissioned Services,Other Small Contracts,Brunelcare,726.00, 02-Nov-2022
1414,Revenue,CAHD,South - Commissioned Services,Other Small Contracts,Brunelcare,605.00, 02-Nov-2022
1415,Revenue,CAHD,South - Commissioned Services,Other Small Contracts,Brunelcare,586.85, 02-Nov-2022
1416,Revenue,CAHD,South - Commissioned Services,Other Small Contracts,Brunelcare,356.95, 02-Nov-2022
1417,Revenue,CAHD,South - Commissioned Services,Other Small Contracts,Brunelcare,1161.60, 02-Nov-2022
1418,Revenue,CAHD,South - Commissioned Services,Other Small Contracts,Brunelcare,526.35, 02-Nov-2022
1419,Revenue,CAHD,South - Commissioned Services,Other Small Contracts,Brunelcare,635.25, 02-Nov-2022
1420,Revenue,CAHD,South - Commissioned Services,Other Small Contracts,Brunelcare,1530.65, 02-Nov-2022
1421,Revenue,CAHD,South - Commissioned Services,Other Small Contracts,Brunelcare,435.60, 02-Nov-2022
1422,Revenue,CAHD,South - Commissioned Services,Other Small Contracts,Brunelcare,502.15, 02-Nov-2022
1423,Revenue,CAHD,South - Commissioned Services,Other Small Contracts,Brunelcare,1494.35, 02-Nov-2022
1424,Revenue,CAHD,South - Commissioned Services,Other Small Contracts,Brunelcare,187.55, 02-Nov-2022
1425,Revenue,CAHD,South - Commissioned Services,Other Small Contracts,Brunelcare,48.40, 02-Nov-2022
1426,Revenue,CAHD,South - Commissioned Services,Mentoring,Brunelcare,223.85, 02-Nov-2022
1427,Revenue,CAHD,South - Commissioned Services,Mentoring,Brunelcare,48.40, 02-Nov-2022
1428,Revenue,CAHD,South - Commissioned Services,Mentoring,Brunelcare,139.15, 02-Nov-2022
1429,Revenue,CAHD,South - Commissioned Services,Mentoring,Brunelcare,139.15, 02-Nov-2022
1430,Revenue,CAHD,South - Commissioned Services,Mentoring,Brunelcare,84.70, 02-Nov-2022
1431,Revenue,CAHD,South - Commissioned Services,Mentoring,Brunelcare,90.75, 02-Nov-2022
1432,Revenue,CAHD,North - Community based support,Other Small Contracts,Brunelcare,1228.15, 02-Nov-2022
1433,Revenue,CAHD,Central - Commissioned Services,Other Small Contracts,Brunelcare,96.80, 10-Nov-2022
1434,Revenue,CAHD,Central - Commissioned Services,Other Small Contracts,Brunelcare,350.90, 10-Nov-2022
1435,Revenue,CAHD,South - Commissioned Services,Other Small Contracts,Brunelcare,102.85, 10-Nov-2022
1436,Revenue,CAHD,South - Commissioned Services,Other Small Contracts,Brunelcare,60.50, 10-Nov-2022
1437,Revenue,CAHD,South - Commissioned Services,Other Small Contracts,Brunelcare,157.30, 10-Nov-2022
1438,Revenue,CAHD,South - Commissioned Services,Other Small Contracts,Brunelcare,175.45, 10-Nov-2022
1439,Revenue,CAHD,South - Commissioned Services,Other Small Contracts,Brunelcare,332.75, 10-Nov-2022
1440,Revenue,CAHD,South - Commissioned Services,Other Small Contracts,Brunelcare,205.70, 10-Nov-2022
1441,Revenue,CAHD,South - Commissioned Services,Other Small Contracts,Brunelcare,133.10, 10-Nov-2022
1442,Revenue,CAHD,South - Commissioned Services,Other Small Contracts,Brunelcare,828.85, 10-Nov-2022
1443,Revenue,CAHD,South - Commissioned Services,Other Small Contracts,Brunelcare,139.15, 10-Nov-2022
1444,Revenue,CAHD,South - Commissioned Services,Other Small Contracts,Brunelcare,302.50, 10-Nov-2022
1445,Revenue,CAHD,South - Commissioned Services,Other Small Contracts,Brunelcare,102.85, 10-Nov-2022
1446,Revenue,CAHD,South - Commissioned Services,Other Small Contracts,Brunelcare,72.60, 10-Nov-2022
1447,Revenue,CAHD,South - Commissioned Services,Other Small Contracts,Brunelcare,108.90, 10-Nov-2022
1448,Revenue,CAHD,South - Commissioned Services,Other Small Contracts,Brunelcare,84.70, 10-Nov-2022
1449,Revenue,CAHD,South - Commissioned Services,Other Small Contracts,Brunelcare,121.00, 10-Nov-2022
1450,Revenue,CAHD,South - Commissioned Services,Other Small Contracts,Brunelcare,961.95, 10-Nov-2022
1451,Revenue,CAHD,South - Commissioned Services,Other Small Contracts,Brunelcare,502.15, 10-Nov-2022
1452,Revenue,CAHD,South - Commissioned Services,Other Small Contracts,Brunelcare,12.10, 10-Nov-2022
1453,Revenue,CAHD,South - Commissioned Services,Other Small Contracts,Brunelcare,157.30, 10-Nov-2022
1454,Revenue,CAHD,South - Commissioned Services,Other Small Contracts,Brunelcare,242.00, 10-Nov-2022
1455,Revenue,CAHD,South - Commissioned Services,Other Small Contracts,Brunelcare,64.06, 10-Nov-2022
1456,Revenue,CAHD,South - Commissioned Services,Other Small Contracts,Brunelcare,901.45, 10-Nov-2022
1457,Revenue,CAHD,South - Commissioned Services,Other Small Contracts,Brunelcare,72.60, 10-Nov-2022
1458,Revenue,CAHD,South - Commissioned Services,Other Small Contracts,Brunelcare,356.95, 10-Nov-2022
1459,Revenue,CAHD,South - Commissioned Services,Other Small Contracts,Brunelcare,48.40, 10-Nov-2022
1460,Revenue,CAHD,South - Commissioned Services,Other Small Contracts,Brunelcare,84.70, 10-Nov-2022
1461,Revenue,CAHD,South - Commissioned Services,Other Small Contracts,Brunelcare,447.70, 10-Nov-2022
1462,Revenue,CAHD,South - Commissioned Services,Other Small Contracts,Brunelcare,133.10, 10-Nov-2022
1463,Revenue,CAHD,South - Commissioned Services,Other Small Contracts,Brunelcare,157.30, 10-Nov-2022
1464,Revenue,CAHD,South - Commissioned Services,Other Small Contracts,Brunelcare,139.15, 10-Nov-2022
1465,Revenue,CAHD,South - Commissioned Services,Other Small Contracts,Brunelcare,36.30, 10-Nov-2022
1466,Revenue,CAHD,South - Commissioned Services,Other Small Contracts,Brunelcare,72.60, 10-Nov-2022
1467,Revenue,CAHD,South - Commissioned Services,Other Small Contracts,Brunelcare,139.15, 10-Nov-2022
1468,Revenue,CAHD,South - Commissioned Services,Other Small Contracts,Brunelcare,60.50, 10-Nov-2022
1469,Revenue,CAHD,South - Commissioned Services,Other Small Contracts,Brunelcare,127.05, 10-Nov-2022
1470,Revenue,CAHD,South - Commissioned Services,Other Small Contracts,Brunelcare,121.00, 10-Nov-2022
1471,Revenue,CAHD,South - Commissioned Services,Other Small Contracts,Brunelcare,175.45, 10-Nov-2022
1472,Revenue,CAHD,South - Commissioned Services,Other Small Contracts,Brunelcare,72.60, 10-Nov-2022
1473,Revenue,CAHD,South - Commissioned Services,Other Small Contracts,Brunelcare,42.35, 10-Nov-2022
1474,Revenue,CAHD,South - Commissioned Services,Other Small Contracts,Brunelcare,272.25, 10-Nov-2022
1475,Revenue,CAHD,South - Commissioned Services,Other Small Contracts,Brunelcare,157.30, 10-Nov-2022
1476,Revenue,CAHD,South - Commissioned Services,Other Small Contracts,Brunelcare,96.80, 10-Nov-2022
1477,Revenue,CAHD,South - Commissioned Services,Other Small Contracts,Brunelcare,24.20, 10-Nov-2022
1478,Revenue,CAHD,South - Commissioned Services,Other Small Contracts,Brunelcare,217.80, 10-Nov-2022
1479,Revenue,CAHD,South - Commissioned Services,Other Small Contracts,Brunelcare,254.10, 10-Nov-2022
1480,Revenue,CAHD,South - Commissioned Services,Other Small Contracts,Brunelcare,229.90, 10-Nov-2022
1481,Revenue,CAHD,South - Commissioned Services,Other Small Contracts,Brunelcare,121.00, 10-Nov-2022
1482,Revenue,CAHD,South - Commissioned Services,Other Small Contracts,Brunelcare,387.20, 10-Nov-2022
1483,Revenue,CAHD,South - Commissioned Services,Other Small Contracts,Brunelcare,211.75, 10-Nov-2022
1484,Revenue,CAHD,South - Commissioned Services,Other Small Contracts,Brunelcare,532.40, 10-Nov-2022
1485,Revenue,CAHD,South - Commissioned Services,Other Small Contracts,Brunelcare,121.00, 10-Nov-2022
1486,Revenue,CAHD,South - Commissioned Services,Other Small Contracts,Brunelcare,169.40, 10-Nov-2022
1487,Revenue,CAHD,South - Commissioned Services,Other Small Contracts,Brunelcare,514.25, 10-Nov-2022
1488,Revenue,CAHD,South - Commissioned Services,Other Small Contracts,Brunelcare,96.80, 10-Nov-2022
1489,Revenue,CAHD,South - Commissioned Services,Mentoring,Brunelcare,48.40, 10-Nov-2022
1490,Revenue,CAHD,South - Commissioned Services,Mentoring,Brunelcare,48.40, 10-Nov-2022
1491,Revenue,CAHD,South - Commissioned Services,Mentoring,Brunelcare,48.40, 10-Nov-2022
1492,Revenue,CAHD,South - Commissioned Services,Mentoring,Brunelcare,48.40, 10-Nov-2022
1493,Revenue,CAHD,South - Commissioned Services,Mentoring,Brunelcare,72.60, 10-Nov-2022
1494,Revenue,CAHD,South - Commissioned Services,Mentoring,Brunelcare,48.40, 10-Nov-2022
1495,Revenue,CAHD,North - Community based support,Other Small Contracts,Brunelcare,417.45, 10-Nov-2022
1496,Revenue,CAHD,Central - Commissioned Services,Other Small Contracts,Brunelcare,193.60, 24-Nov-2022
1497,Revenue,CAHD,Central - Commissioned Services,Other Small Contracts,Brunelcare,689.70, 24-Nov-2022
1498,Revenue,CAHD,South - Commissioned Services,Other Small Contracts,Brunelcare,229.90, 24-Nov-2022
1499,Revenue,CAHD,South - Commissioned Services,Other Small Contracts,Brunelcare,121.00, 24-Nov-2022
1500,Revenue,CAHD,South - Commissioned Services,Other Small Contracts,Brunelcare,326.70, 24-Nov-2022
1501,Revenue,CAHD,South - Commissioned Services,Other Small Contracts,Brunelcare,356.95, 24-Nov-2022
1502,Revenue,CAHD,South - Commissioned Services,Other Small Contracts,Brunelcare,756.25, 24-Nov-2022
1503,Revenue,CAHD,South - Commissioned Services,Other Small Contracts,Brunelcare,411.40, 24-Nov-2022
1504,Revenue,CAHD,South - Commissioned Services,Other Small Contracts,Brunelcare,223.85, 24-Nov-2022
1505,Revenue,CAHD,South - Commissioned Services,Other Small Contracts,Brunelcare,1681.90, 24-Nov-2022
1506,Revenue,CAHD,South - Commissioned Services,Other Small Contracts,Brunelcare,290.40, 24-Nov-2022
1507,Revenue,CAHD,South - Commissioned Services,Other Small Contracts,Brunelcare,574.75, 24-Nov-2022
1508,Revenue,CAHD,South - Commissioned Services,Other Small Contracts,Brunelcare,187.55, 24-Nov-2022
1509,Revenue,CAHD,South - Commissioned Services,Other Small Contracts,Brunelcare,169.40, 24-Nov-2022
1510,Revenue,CAHD,South - Commissioned Services,Other Small Contracts,Brunelcare,459.80, 24-Nov-2022
1511,Revenue,CAHD,South - Commissioned Services,Other Small Contracts,Brunelcare,169.40, 24-Nov-2022
1512,Revenue,CAHD,South - Commissioned Services,Other Small Contracts,Brunelcare,242.00, 24-Nov-2022
1513,Revenue,CAHD,South - Commissioned Services,Other Small Contracts,Brunelcare,1706.10, 24-Nov-2022
1514,Revenue,CAHD,South - Commissioned Services,Other Small Contracts,Brunelcare,1046.65, 24-Nov-2022
1515,Revenue,CAHD,South - Commissioned Services,Other Small Contracts,Brunelcare,24.20, 24-Nov-2022
1516,Revenue,CAHD,South - Commissioned Services,Other Small Contracts,Brunelcare,399.30, 24-Nov-2022
1517,Revenue,CAHD,South - Commissioned Services,Other Small Contracts,Brunelcare,471.90, 24-Nov-2022
1518,Revenue,CAHD,South - Commissioned Services,Other Small Contracts,Brunelcare,544.50, 24-Nov-2022
1519,Revenue,CAHD,South - Commissioned Services,Other Small Contracts,Brunelcare,108.90, 24-Nov-2022
1520,Revenue,CAHD,South - Commissioned Services,Other Small Contracts,Brunelcare,1228.15, 24-Nov-2022
1521,Revenue,CAHD,South - Commissioned Services,Other Small Contracts,Brunelcare,127.05, 24-Nov-2022
1522,Revenue,CAHD,South - Commissioned Services,Other Small Contracts,Brunelcare,719.95, 24-Nov-2022
1523,Revenue,CAHD,South - Commissioned Services,Other Small Contracts,Brunelcare,96.80, 24-Nov-2022
1524,Revenue,CAHD,South - Commissioned Services,Other Small Contracts,Brunelcare,169.40, 24-Nov-2022
1525,Revenue,CAHD,South - Commissioned Services,Other Small Contracts,Brunelcare,792.55, 24-Nov-2022
1526,Revenue,CAHD,South - Commissioned Services,Other Small Contracts,Brunelcare,260.15, 24-Nov-2022
1527,Revenue,CAHD,South - Commissioned Services,Other Small Contracts,Brunelcare,350.90, 24-Nov-2022
1528,Revenue,CAHD,South - Commissioned Services,Other Small Contracts,Brunelcare,296.45, 24-Nov-2022
1529,Revenue,CAHD,South - Commissioned Services,Other Small Contracts,Brunelcare,72.60, 24-Nov-2022
1530,Revenue,CAHD,South - Commissioned Services,Other Small Contracts,Brunelcare,108.90, 24-Nov-2022
1531,Revenue,CAHD,South - Commissioned Services,Other Small Contracts,Brunelcare,266.20, 24-Nov-2022
1532,Revenue,CAHD,South - Commissioned Services,Other Small Contracts,Brunelcare,139.15, 24-Nov-2022
1533,Revenue,CAHD,South - Commissioned Services,Other Small Contracts,Brunelcare,441.65, 24-Nov-2022
1534,Revenue,CAHD,South - Commissioned Services,Other Small Contracts,Brunelcare,272.25, 24-Nov-2022
1535,Revenue,CAHD,South - Commissioned Services,Other Small Contracts,Brunelcare,363.00, 24-Nov-2022
1536,Revenue,CAHD,South - Commissioned Services,Other Small Contracts,Brunelcare,127.05, 24-Nov-2022
1537,Revenue,CAHD,South - Commissioned Services,Other Small Contracts,Brunelcare,90.75, 24-Nov-2022
1538,Revenue,CAHD,South - Commissioned Services,Other Small Contracts,Brunelcare,544.50, 24-Nov-2022
1539,Revenue,CAHD,South - Commissioned Services,Other Small Contracts,Brunelcare,302.50, 24-Nov-2022
1540,Revenue,CAHD,South - Commissioned Services,Other Small Contracts,Brunelcare,181.50, 24-Nov-2022
1541,Revenue,CAHD,South - Commissioned Services,Other Small Contracts,Brunelcare,471.90, 24-Nov-2022
1542,Revenue,CAHD,South - Commissioned Services,Other Small Contracts,Brunelcare,266.20, 24-Nov-2022
1543,Revenue,CAHD,South - Commissioned Services,Other Small Contracts,Brunelcare,459.80, 24-Nov-2022
1544,Revenue,CAHD,South - Commissioned Services,Other Small Contracts,Brunelcare,435.60, 24-Nov-2022
1545,Revenue,CAHD,South - Commissioned Services,Other Small Contracts,Brunelcare,429.55, 24-Nov-2022
1546,Revenue,CAHD,South - Commissioned Services,Other Small Contracts,Brunelcare,260.15, 24-Nov-2022
1547,Revenue,CAHD,South - Commissioned Services,Other Small Contracts,Brunelcare,774.40, 24-Nov-2022
1548,Revenue,CAHD,South - Commissioned Services,Other Small Contracts,Brunelcare,381.15, 24-Nov-2022
1549,Revenue,CAHD,South - Commissioned Services,Other Small Contracts,Brunelcare,235.95, 24-Nov-2022
1550,Revenue,CAHD,South - Commissioned Services,Other Small Contracts,Brunelcare,1010.35, 24-Nov-2022
1551,Revenue,CAHD,South - Commissioned Services,Other Small Contracts,Brunelcare,326.70, 24-Nov-2022
1552,Revenue,CAHD,South - Commissioned Services,Other Small Contracts,Brunelcare,1016.40, 24-Nov-2022
1553,Revenue,CAHD,South - Commissioned Services,Other Small Contracts,Brunelcare,187.55, 24-Nov-2022
1554,Revenue,CAHD,South - Commissioned Services,Mentoring,Brunelcare,175.45, 24-Nov-2022
1555,Revenue,CAHD,South - Commissioned Services,Mentoring,Brunelcare,96.80, 24-Nov-2022
1556,Revenue,CAHD,South - Commissioned Services,Mentoring,Brunelcare,96.80, 24-Nov-2022
1557,Revenue,CAHD,South - Commissioned Services,Mentoring,Brunelcare,102.85, 24-Nov-2022
1558,Revenue,CAHD,South - Commissioned Services,Mentoring,Brunelcare,145.20, 24-Nov-2022
1559,Revenue,CAHD,South - Commissioned Services,Mentoring,Brunelcare,90.75, 24-Nov-2022
1560,Revenue,CAHD,North - Community based support,Other Small Contracts,Brunelcare,828.85, 24-Nov-2022
1561,Revenue,CAHD,Central - Commissioned Services,Other Small Contracts,Brunelcare,284.35, 28-Nov-2022
1562,Revenue,CAHD,Central - Commissioned Services,Other Small Contracts,Brunelcare,1016.40, 28-Nov-2022
1563,Revenue,CAHD,South - Commissioned Services,Other Small Contracts,Brunelcare,356.95, 28-Nov-2022
1564,Revenue,CAHD,South - Commissioned Services,Other Small Contracts,Brunelcare,108.90, 28-Nov-2022
1565,Revenue,CAHD,South - Commissioned Services,Other Small Contracts,Brunelcare,508.20, 28-Nov-2022
1566,Revenue,CAHD,South - Commissioned Services,Other Small Contracts,Brunelcare,532.40, 28-Nov-2022
1567,Revenue,CAHD,South - Commissioned Services,Other Small Contracts,Brunelcare,1179.75, 28-Nov-2022
1568,Revenue,CAHD,South - Commissioned Services,Other Small Contracts,Brunelcare,611.05, 28-Nov-2022
1569,Revenue,CAHD,South - Commissioned Services,Other Small Contracts,Brunelcare,381.15, 28-Nov-2022
1570,Revenue,CAHD,South - Commissioned Services,Other Small Contracts,Brunelcare,2528.90, 28-Nov-2022
1571,Revenue,CAHD,South - Commissioned Services,Other Small Contracts,Brunelcare,471.90, 28-Nov-2022
1572,Revenue,CAHD,South - Commissioned Services,Other Small Contracts,Brunelcare,931.70, 28-Nov-2022
1573,Revenue,CAHD,South - Commissioned Services,Other Small Contracts,Brunelcare,290.40, 28-Nov-2022
1574,Revenue,CAHD,South - Commissioned Services,Other Small Contracts,Brunelcare,217.80, 28-Nov-2022
1575,Revenue,CAHD,South - Commissioned Services,Other Small Contracts,Brunelcare,356.95, 28-Nov-2022
1576,Revenue,CAHD,South - Commissioned Services,Other Small Contracts,Brunelcare,695.75, 28-Nov-2022
1577,Revenue,CAHD,South - Commissioned Services,Other Small Contracts,Brunelcare,260.15, 28-Nov-2022
1578,Revenue,CAHD,South - Commissioned Services,Other Small Contracts,Brunelcare,423.50, 28-Nov-2022
1579,Revenue,CAHD,South - Commissioned Services,Other Small Contracts,Brunelcare,2522.85, 28-Nov-2022
1580,Revenue,CAHD,South - Commissioned Services,Other Small Contracts,Brunelcare,1506.45, 28-Nov-2022
1581,Revenue,CAHD,South - Commissioned Services,Other Small Contracts,Brunelcare,60.50, 28-Nov-2022
1582,Revenue,CAHD,South - Commissioned Services,Other Small Contracts,Brunelcare,641.30, 28-Nov-2022
1583,Revenue,CAHD,South - Commissioned Services,Other Small Contracts,Brunelcare,695.75, 28-Nov-2022
1584,Revenue,CAHD,South - Commissioned Services,Other Small Contracts,Brunelcare,762.30, 28-Nov-2022
1585,Revenue,CAHD,South - Commissioned Services,Other Small Contracts,Brunelcare,166.54, 28-Nov-2022
1586,Revenue,CAHD,South - Commissioned Services,Other Small Contracts,Brunelcare,1191.85, 28-Nov-2022
1587,Revenue,CAHD,South - Commissioned Services,Other Small Contracts,Brunelcare,193.60, 28-Nov-2022
1588,Revenue,CAHD,South - Commissioned Services,Other Small Contracts,Brunelcare,1131.35, 28-Nov-2022
1589,Revenue,CAHD,South - Commissioned Services,Other Small Contracts,Brunelcare,145.20, 28-Nov-2022
1590,Revenue,CAHD,South - Commissioned Services,Other Small Contracts,Brunelcare,254.10, 28-Nov-2022
1591,Revenue,CAHD,South - Commissioned Services,Other Small Contracts,Brunelcare,1210.00, 28-Nov-2022
1592,Revenue,CAHD,South - Commissioned Services,Other Small Contracts,Brunelcare,399.30, 28-Nov-2022
1593,Revenue,CAHD,South - Commissioned Services,Other Small Contracts,Brunelcare,514.25, 28-Nov-2022
1594,Revenue,CAHD,South - Commissioned Services,Other Small Contracts,Brunelcare,496.10, 28-Nov-2022
1595,Revenue,CAHD,South - Commissioned Services,Other Small Contracts,Brunelcare,84.70, 28-Nov-2022
1596,Revenue,CAHD,South - Commissioned Services,Other Small Contracts,Brunelcare,169.40, 28-Nov-2022
1597,Revenue,CAHD,South - Commissioned Services,Other Small Contracts,Brunelcare,471.90, 28-Nov-2022
1598,Revenue,CAHD,South - Commissioned Services,Other Small Contracts,Brunelcare,181.50, 28-Nov-2022
1599,Revenue,CAHD,South - Commissioned Services,Other Small Contracts,Brunelcare,387.20, 28-Nov-2022
1600,Revenue,CAHD,South - Commissioned Services,Other Small Contracts,Brunelcare,526.35, 28-Nov-2022
1601,Revenue,CAHD,South - Commissioned Services,Other Small Contracts,Brunelcare,217.80, 28-Nov-2022
1602,Revenue,CAHD,South - Commissioned Services,Other Small Contracts,Brunelcare,139.15, 28-Nov-2022
1603,Revenue,CAHD,South - Commissioned Services,Other Small Contracts,Brunelcare,828.85, 28-Nov-2022
1604,Revenue,CAHD,South - Commissioned Services,Other Small Contracts,Brunelcare,163.35, 28-Nov-2022
1605,Revenue,CAHD,South - Commissioned Services,Other Small Contracts,Brunelcare,290.40, 28-Nov-2022
1606,Revenue,CAHD,South - Commissioned Services,Other Small Contracts,Brunelcare,719.95, 28-Nov-2022
1607,Revenue,CAHD,South - Commissioned Services,Other Small Contracts,Brunelcare,441.65, 28-Nov-2022
1608,Revenue,CAHD,South - Commissioned Services,Other Small Contracts,Brunelcare,744.15, 28-Nov-2022
1609,Revenue,CAHD,South - Commissioned Services,Other Small Contracts,Brunelcare,641.30, 28-Nov-2022
1610,Revenue,CAHD,South - Commissioned Services,Other Small Contracts,Brunelcare,647.35, 28-Nov-2022
1611,Revenue,CAHD,South - Commissioned Services,Other Small Contracts,Brunelcare,272.25, 28-Nov-2022
1612,Revenue,CAHD,South - Commissioned Services,Other Small Contracts,Brunelcare,1167.65, 28-Nov-2022
1613,Revenue,CAHD,South - Commissioned Services,Other Small Contracts,Brunelcare,635.25, 28-Nov-2022
1614,Revenue,CAHD,South - Commissioned Services,Other Small Contracts,Brunelcare,974.05, 28-Nov-2022
1615,Revenue,CAHD,South - Commissioned Services,Other Small Contracts,Brunelcare,121.00, 28-Nov-2022
1616,Revenue,CAHD,South - Commissioned Services,Other Small Contracts,Brunelcare,1506.45, 28-Nov-2022
1617,Revenue,CAHD,South - Commissioned Services,Other Small Contracts,Brunelcare,502.15, 28-Nov-2022
1618,Revenue,CAHD,South - Commissioned Services,Other Small Contracts,Brunelcare,1542.75, 28-Nov-2022
1619,Revenue,CAHD,South - Commissioned Services,Other Small Contracts,Brunelcare,284.35, 28-Nov-2022
1620,Revenue,CAHD,South - Commissioned Services,Mentoring,Brunelcare,187.55, 28-Nov-2022
1621,Revenue,CAHD,South - Commissioned Services,Mentoring,Brunelcare,48.40, 28-Nov-2022
1622,Revenue,CAHD,South - Commissioned Services,Mentoring,Brunelcare,145.20, 28-Nov-2022
1623,Revenue,CAHD,South - Commissioned Services,Mentoring,Brunelcare,127.05, 28-Nov-2022
1624,Revenue,CAHD,South - Commissioned Services,Mentoring,Brunelcare,96.80, 28-Nov-2022
1625,Revenue,CAHD,South - Commissioned Services,Mentoring,Brunelcare,145.20, 28-Nov-2022
1626,Revenue,CAHD,South - Commissioned Services,Mentoring,Brunelcare,108.90, 28-Nov-2022
1627,Revenue,CAHD,North - Community based support,Other Small Contracts,Brunelcare,1288.65, 28-Nov-2022
1628,Revenue,CAHD,North - S117,Permanent Residential,Buckland Care,3600.00, 15-Nov-2022
1629,Revenue,CAHD,Social Lettings Agency,Rent,Individual,947.40, 11-Nov-2022
1630,Revenue,CAHD,Social Lettings Agency,Fees & Charges Income - General,Individual,-94.74, 11-Nov-2022
1631,Revenue,CAHD,LAC Teaching Staff,Other Public Bodies,Cabot Learning Federation,780.00, 22-Nov-2022
1632,Revenue,CAHD,Statemented Support Academies,Other Public Bodies,Cabot Learning Federation,896.50, 22-Nov-2022
1633,Revenue,CAHD,Statemented Support Academies,Other Public Bodies,Cabot Learning Federation,1012.67, 22-Nov-2022
1634,Revenue,CAHD,Statemented Support Academies,Other Public Bodies,Cabot Learning Federation,556.74, 22-Nov-2022
1635,Revenue,CAHD,Statemented Support Academies,Other Public Bodies,Cabot Learning Federation,740.00, 22-Nov-2022
1636,Revenue,CAHD,Statemented Support Academies,Other Public Bodies,Cabot Learning Federation,740.00, 22-Nov-2022
1637,Revenue,CAHD,Statemented Support Academies,Other Public Bodies,Cabot Learning Federation,740.00, 22-Nov-2022
1638,Revenue,CAHD,Statemented Support Academies,Other Public Bodies,Cabot Learning Federation,740.00, 22-Nov-2022
1639,Revenue,CAHD,Statemented Support Academies,Other Public Bodies,Cabot Learning Federation,740.00, 22-Nov-2022
1640,Revenue,CAHD,Statemented Support Academies,Other Public Bodies,Cabot Learning Federation,740.00, 22-Nov-2022
1641,Revenue,CAHD,Statemented Support Academies,Other Public Bodies,Cabot Learning Federation,896.50, 22-Nov-2022
1642,Revenue,CAHD,Statemented Support Academies,Other Public Bodies,Cabot Learning Federation,740.00, 22-Nov-2022
1643,Revenue,CAHD,Statemented Support Academies,Other Public Bodies,Cabot Learning Federation,740.00, 22-Nov-2022
1644,Revenue,CAHD,Academy Resource Base Funding,Other Public Bodies,Cabot Learning Federation,518.06, 22-Nov-2022
1645,Revenue,CAHD,Academy Resource Base Funding,Other Public Bodies,Cabot Learning Federation,1147.97, 22-Nov-2022
1646,Revenue,CAHD,Academy Resource Base Funding,Other Public Bodies,Cabot Learning Federation,918.43, 22-Nov-2022
1647,Revenue,CAHD,Academy Resource Base Funding,Other Public Bodies,Cabot Learning Federation,518.06, 22-Nov-2022
1648,Revenue,CAHD,Academy Resource Base Funding,Other Public Bodies,Cabot Learning Federation,1147.97, 22-Nov-2022
1649,Revenue,CAHD,Academy Resource Base Funding,Other Public Bodies,Cabot Learning Federation,1147.97, 22-Nov-2022
1650,Revenue,CAHD,Academy Resource Base Funding,Other Public Bodies,Cabot Learning Federation,918.43, 22-Nov-2022
1651,Revenue,CAHD,Academy Resource Base Funding,Other Public Bodies,Cabot Learning Federation,918.43, 22-Nov-2022
1652,Revenue,CAHD,Academy Resource Base Funding,Other Public Bodies,Cabot Learning Federation,1147.97, 22-Nov-2022
1653,Revenue,CAHD,Academy Resource Base Funding,Other Public Bodies,Cabot Learning Federation,918.43, 22-Nov-2022
1654,Revenue,CAHD,Academy Resource Base Funding,Other Public Bodies,Cabot Learning Federation,1147.97, 22-Nov-2022
1655,Revenue,CAHD,Academy Resource Base Funding,Other Public Bodies,Cabot Learning Federation,1147.97, 22-Nov-2022
1656,Revenue,CAHD,Academy Resource Base Funding,Other Public Bodies,Cabot Learning Federation,1147.97, 22-Nov-2022
1657,Revenue,CAHD,Academy Resource Base Funding,Other Public Bodies,Cabot Learning Federation,918.43, 22-Nov-2022
1658,Revenue,CAHD,Academy Resource Base Funding,Other Public Bodies,Cabot Learning Federation,518.06, 22-Nov-2022
1659,Revenue,CAHD,Academy Resource Base Funding,Other Public Bodies,Cabot Learning Federation,518.06, 22-Nov-2022
1660,Revenue,CAHD,Academy Resource Base Funding,Other Public Bodies,Cabot Learning Federation,918.43, 22-Nov-2022
1661,Revenue,CAHD,Academy Resource Base Funding,Other Public Bodies,Cabot Learning Federation,918.43, 22-Nov-2022
1662,Revenue,CAHD,Academy Resource Base Funding,Other Public Bodies,Cabot Learning Federation,918.43, 22-Nov-2022
1663,Revenue,CAHD,Academy Resource Base Funding,Other Public Bodies,Cabot Learning Federation,918.43, 22-Nov-2022
1664,Revenue,CAHD,Academy Resource Base Funding,Other Public Bodies,Cabot Learning Federation,918.43, 22-Nov-2022
1665,Revenue,CAHD,Academy Resource Base Funding,Other Public Bodies,Cabot Learning Federation,918.43, 22-Nov-2022
1666,Revenue,CAHD,Academy Resource Base Funding,Other Public Bodies,Cabot Learning Federation,918.43, 22-Nov-2022
1667,Revenue,CAHD,Academy Resource Base Funding,Other Public Bodies,Cabot Learning Federation,518.06, 22-Nov-2022
1668,Revenue,CAHD,Academy Resource Base Funding,Other Public Bodies,Cabot Learning Federation,918.43, 22-Nov-2022
1669,Revenue,CAHD,Academy Resource Base Funding,Other Public Bodies,Cabot Learning Federation,5753.44, 22-Nov-2022
1670,Revenue,CAHD,Academy Resource Base Funding,Other Public Bodies,Cabot Learning Federation,849.32, 22-Nov-2022
1671,Revenue,CAHD,Academy Resource Base Funding,Other Public Bodies,Cabot Learning Federation,821.92, 22-Nov-2022
1672,Revenue,CAHD,LAC Teaching Staff,Other Public Bodies,Cabot Learning Federation,1600.00, 22-Nov-2022
1673,Revenue,CAHD,Homes For Ukraine School Support,Other Public Bodies,Cabot Learning Federation,1387.50, 29-Nov-2022
1674,Revenue,CAHD,Statemented Support Payments to OLAs,Other L.A.s - General,Cabot Learning Federation,561.13, 22-Nov-2022
1675,Revenue,CAHD,Statemented Support Payments to OLAs,Other L.A.s - General,Cabot Learning Federation,1944.17, 22-Nov-2022
1676,Revenue,CAHD,Statemented Support Academies,Other Public Bodies,Cabot Learning Federation,896.50, 22-Nov-2022
1677,Revenue,CAHD,Statemented Support Academies,Other Public Bodies,Cabot Learning Federation,740.00, 22-Nov-2022
1678,Revenue,CAHD,Statemented Support Academies,Other Public Bodies,Cabot Learning Federation,896.50, 22-Nov-2022
1679,Revenue,CAHD,Schools Block Growth Contingency,Other Public Bodies,Cabot Learning Federation,44730.00, 14-Nov-2022
1680,Revenue,CAHD,Schools Specific Grant Income,Other Public Bodies,Cabot Learning Federation,3100.00, 22-Nov-2022
1681,Revenue,CAHD,Homes For Ukraine School Support,Other Public Bodies,Cabot Learning Federation,1500.00, 29-Nov-2022
1682,Revenue,CAHD,Homes For Ukraine School Support,Other Public Bodies,Cabot Learning Federation,1312.50, 29-Nov-2022
1683,Revenue,CAHD,LAC Teaching Staff,Other Public Bodies,Cabot Learning Federation,1600.00, 22-Nov-2022
1684,Revenue,CAHD,Statemented Support Academies,Other Public Bodies,Cabot Learning Federation,740.00, 22-Nov-2022
1685,Revenue,CAHD,Statemented Support Academies,Other Public Bodies,Cabot Learning Federation,896.50, 22-Nov-2022
1686,Revenue,CAHD,Statemented Support Academies,Other Public Bodies,Cabot Learning Federation,740.00, 22-Nov-2022
1687,Revenue,CAHD,Statemented Support Academies,Other Public Bodies,Cabot Learning Federation,896.50, 22-Nov-2022
1688,Revenue,CAHD,Statemented Support Academies,Other Public Bodies,Cabot Learning Federation,740.00, 22-Nov-2022
1689,Revenue,CAHD,Statemented Support Academies,Other Public Bodies,Cabot Learning Federation,740.00, 22-Nov-2022
1690,Revenue,CAHD,Statemented Support Payments to OLAs,Other L.A.s - General,Cabot Learning Federation,1062.33, 22-Nov-2022
1691,Revenue,CAHD,Statemented Support Payments to OLAs,Other L.A.s - General,Cabot Learning Federation,1720.00, 22-Nov-2022
1692,Revenue,CAHD,Statemented Support Payments to OLAs,Other L.A.s - General,Cabot Learning Federation,809.75, 22-Nov-2022
1693,Revenue,CAHD,Statemented Support Payments to OLAs,Other L.A.s - General,Cabot Learning Federation,5985.00, 22-Nov-2022
1694,Revenue,CAHD,Statemented Support Academies,Other Public Bodies,Cabot Learning Federation,740.00, 22-Nov-2022
1695,Revenue,CAHD,Statemented Support Academies,Other Public Bodies,Cabot Learning Federation,740.00, 22-Nov-2022
1696,Revenue,CAHD,Statemented Support Academies,Other Public Bodies,Cabot Learning Federation,740.00, 22-Nov-2022
1697,Revenue,CAHD,Statemented Support Payments to OLAs,Other L.A.s - General,Cabot Learning Federation,665.33, 22-Nov-2022
1698,Revenue,CAHD,Drugs Alcohol and Sexual Health,Other Small Contracts,Cadbury Heath Healthcare,1435.00, 29-Nov-2022
1699,Revenue,CAHD,Drugs Alcohol and Sexual Health,Other Small Contracts,Cadbury Heath Healthcare,1851.50, 29-Nov-2022
1700,Revenue,CAHD,Drugs Alcohol and Sexual Health,Other Small Contracts,Cadbury Heath Healthcare,3146.50, 22-Nov-2022
1701,Revenue,CAHD,EARLY YEARS DEPRIVATION PAYMENT,Preventative Assistance,Caerleon Childcare,636.78, 11-Nov-2022
1702,Revenue,CAHD,Central - Commissioned Services,Permanent Nursing,Caernarvon House,9218.60, 15-Nov-2022
1703,Revenue,CAHD,Central - Commissioned Services,Fees & Charges Income - General,Caernarvon House,0.00, 15-Nov-2022
1704,Revenue,CAHD,South - Commissioned Services,Permanent Nursing,Caernarvon House,5000.00, 15-Nov-2022
1705,Revenue,CAHD,South - Commissioned Services,Permanent Nursing,Caernarvon House,5114.28, 15-Nov-2022
1706,Revenue,CAHD,South - Commissioned Services,Permanent Nursing,Caernarvon House,7683.00, 15-Nov-2022
1707,Revenue,CAHD,South - Commissioned Services,Permanent Nursing,Caernarvon House,3079.88, 15-Nov-2022
1708,Revenue,CAHD,South - Commissioned Services,Fees & Charges Income - General,Caernarvon House,-1267.84, 15-Nov-2022
1709,Revenue,CAHD,South - Commissioned Services,Fees & Charges Income - General,Caernarvon House,-840.56, 15-Nov-2022
1710,Revenue,CAHD,South - Commissioned Services,Fees & Charges Income - General,Caernarvon House,-773.60, 15-Nov-2022
1711,Revenue,CAHD,North - Community based support,Permanent Nursing,Caernarvon House,4901.16, 15-Nov-2022
1712,Revenue,CAHD,North - Community based support,Permanent Nursing,Caernarvon House,3474.32, 15-Nov-2022
1713,Revenue,CAHD,North - Community based support,Fees & Charges Income - General,Caernarvon House,-627.80, 15-Nov-2022
1714,Revenue,CAHD,North - Community based support,Fees & Charges Income - General,Caernarvon House,-1036.92, 15-Nov-2022
1715,Revenue,CAHD,South - S117,Permanent Nursing,Caernarvon House,5114.28, 15-Nov-2022
1716,Revenue,CAHD,North - S117,Permanent Nursing,Caernarvon House,4151.84, 15-Nov-2022
1717,Revenue,CAHD,Post 16 High Needs Placements,Other Private Contractors,Cambian Asperger Syndrome Services Limited,68569.67, 18-Nov-2022
1718,Revenue,CAHD,Post 16 High Needs Placements,Other Private Contractors,Cambian Asperger Syndrome Services Limited,24072.33, 24-Nov-2022
1719,Revenue,CAHD,Post 16 High Needs Placements,Other Private Contractors,Cambian Whinfell School Limited,60935.25, 01-Nov-2022
1720,Revenue,CAHD,Post 16 High Needs Placements,Other Private Contractors,Cambian Whinfell School Limited,10597.44, 18-Nov-2022
1721,Revenue,CAHD,Central - Commissioned Services,Respite Planned - Residential,Campania Care Home,3800.00, 15-Nov-2022
1722,Revenue,CAHD,Post 16 High Needs Placements,Other Private Contractors,Candle Ltd,12357.00, 09-Nov-2022
1723,Revenue,CAHD,MH Purchasing - Younger,Permanent Residential,Canonbury Residential Home,3400.00, 15-Nov-2022
1724,Revenue,CAHD,Central - Commissioned Services,Other Small Contracts,Care 1st Homecare,1844.08, 02-Nov-2022
1725,Revenue,CAHD,Central - Commissioned Services,Other Small Contracts,Care 1st Homecare,3253.50, 02-Nov-2022
1726,Revenue,CAHD,North - Community based support,Other Small Contracts,Care 1st Homecare,1540.50, 02-Nov-2022
1727,Revenue,CAHD,North - Community based support,Other Small Contracts,Care 1st Homecare,1605.80, 02-Nov-2022
1728,Revenue,CAHD,North - Community based support,Other Small Contracts,Care 1st Homecare,1570.24, 02-Nov-2022
1729,Revenue,CAHD,Central - Commissioned Services,Other Small Contracts,Care 1st Homecare,1294.48, 10-Nov-2022
1730,Revenue,CAHD,Central - Commissioned Services,Other Small Contracts,Care 1st Homecare,9823.16, 10-Nov-2022
1731,Revenue,CAHD,North - Community based support,Other Small Contracts,Care 1st Homecare,4414.20, 10-Nov-2022
1732,Revenue,CAHD,North - Community based support,Other Small Contracts,Care 1st Homecare,198.95, 10-Nov-2022
1733,Revenue,CAHD,North - Community based support,Other Small Contracts,Care 1st Homecare,4699.82, 10-Nov-2022
1734,Revenue,CAHD,Central - Commissioned Services,Other Small Contracts,Care 1st Homecare,5369.48, 24-Nov-2022
1735,Revenue,CAHD,North - Community based support,Other Small Contracts,Care 1st Homecare,3057.45, 24-Nov-2022
1736,Revenue,CAHD,North - Community based support,Other Small Contracts,Care 1st Homecare,3140.48, 24-Nov-2022
1737,Revenue,CAHD,Central - Commissioned Services,Other Small Contracts,Care 1st Homecare,3229.40, 28-Nov-2022
1738,Revenue,CAHD,North - Community based support,Other Small Contracts,Care 1st Homecare,1526.00, 28-Nov-2022
1739,Revenue,CAHD,North - Community based support,Other Small Contracts,Care 1st Homecare,1570.24, 28-Nov-2022
1740,Revenue,CAHD,Central - Commissioned Services,Other Small Contracts,Care 1st Homecare,3234.22, 28-Nov-2022
1741,Revenue,CAHD,North - Community based support,Other Small Contracts,Care 1st Homecare,1526.00, 28-Nov-2022
1742,Revenue,CAHD,North - Community based support,Other Small Contracts,Care 1st Homecare,1570.24, 28-Nov-2022
1743,Revenue,CAHD,North - Community based support,Respite Care,Care Horizons,0.00, 15-Nov-2022
1744,Revenue,CAHD,North - Community based support,Respite Care,Care Horizons,0.00, 15-Nov-2022
1745,Revenue,CAHD,North - Community based support,Supported Living,Care Horizons,5727.08, 15-Nov-2022
1746,Revenue,CAHD,North - Community based support,Supported Living,Care Horizons,5727.08, 15-Nov-2022
1747,Revenue,CAHD,Central - Commissioned Services,Other Small Contracts,Care Horizons,768.96, 02-Nov-2022
1748,Revenue,CAHD,Central - Commissioned Services,Other Small Contracts,Care Horizons,299.04, 02-Nov-2022
1749,Revenue,CAHD,Central - Commissioned Services,Other Small Contracts,Care Horizons,85.44, 02-Nov-2022
1750,Revenue,CAHD,Central - Commissioned Services,Other Small Contracts,Care Horizons,6735.06, 02-Nov-2022
1751,Revenue,CAHD,Central - Commissioned Services,Other Small Contracts,Care Horizons,341.76, 02-Nov-2022
1752,Revenue,CAHD,Central - Commissioned Services,Other Small Contracts,Care Horizons,170.88, 02-Nov-2022
1753,Revenue,CAHD,Central - Commissioned Services,Other Small Contracts,Care Horizons,341.76, 02-Nov-2022
1754,Revenue,CAHD,Central - Commissioned Services,Other Small Contracts,Care Horizons,170.88, 02-Nov-2022
1755,Revenue,CAHD,Central - Commissioned Services,Mentoring,Care Horizons,256.32, 02-Nov-2022
1756,Revenue,CAHD,South - Commissioned Services,Other Small Contracts,Care Horizons,811.68, 02-Nov-2022
1757,Revenue,CAHD,South - Commissioned Services,Other Small Contracts,Care Horizons,213.60, 02-Nov-2022
1758,Revenue,CAHD,South - Commissioned Services,Mentoring,Care Horizons,170.88, 02-Nov-2022
1759,Revenue,CAHD,North - Community based support,Other Small Contracts,Care Horizons,512.64, 02-Nov-2022
1760,Revenue,CAHD,North - Community based support,Other Small Contracts,Care Horizons,427.20, 02-Nov-2022
1761,Revenue,CAHD,North - Community based support,Other Small Contracts,Care Horizons,427.20, 02-Nov-2022
1762,Revenue,CAHD,North - Community based support,Other Small Contracts,Care Horizons,5958.40, 02-Nov-2022
1763,Revenue,CAHD,North - S117,Other Small Contracts,Care Horizons,0.00, 02-Nov-2022
1764,Revenue,CAHD,Younger MH non-res purchasing,Other Small Contracts,Care Horizons,192.24, 02-Nov-2022
1765,Revenue,CAHD,Younger MH non-res purchasing,Other Small Contracts,Care Horizons,256.32, 02-Nov-2022
1766,Revenue,CAHD,Central - Commissioned Services,Other Small Contracts,Care Horizons,1132.08, 28-Nov-2022
1767,Revenue,CAHD,Central - Commissioned Services,Other Small Contracts,Care Horizons,448.56, 28-Nov-2022
1768,Revenue,CAHD,Central - Commissioned Services,Other Small Contracts,Care Horizons,90.78, 28-Nov-2022
1769,Revenue,CAHD,Central - Commissioned Services,Other Small Contracts,Care Horizons,10468.38, 28-Nov-2022
1770,Revenue,CAHD,Central - Commissioned Services,Other Small Contracts,Care Horizons,534.00, 28-Nov-2022
1771,Revenue,CAHD,Central - Commissioned Services,Other Small Contracts,Care Horizons,256.32, 28-Nov-2022
1772,Revenue,CAHD,Central - Commissioned Services,Other Small Contracts,Care Horizons,512.64, 28-Nov-2022
1773,Revenue,CAHD,Central - Commissioned Services,Other Small Contracts,Care Horizons,256.32, 28-Nov-2022
1774,Revenue,CAHD,Central - Commissioned Services,Mentoring,Care Horizons,384.48, 28-Nov-2022
1775,Revenue,CAHD,South - Commissioned Services,Other Small Contracts,Care Horizons,1217.52, 28-Nov-2022
1776,Revenue,CAHD,South - Commissioned Services,Other Small Contracts,Care Horizons,373.80, 28-Nov-2022
1777,Revenue,CAHD,South - Commissioned Services,Mentoring,Care Horizons,256.32, 28-Nov-2022
1778,Revenue,CAHD,North - Community based support,Other Small Contracts,Care Horizons,768.96, 28-Nov-2022
1779,Revenue,CAHD,North - Community based support,Other Small Contracts,Care Horizons,640.80, 28-Nov-2022
1780,Revenue,CAHD,North - Community based support,Other Small Contracts,Care Horizons,961.20, 28-Nov-2022
1781,Revenue,CAHD,North - Community based support,Other Small Contracts,Care Horizons,8937.60, 28-Nov-2022
1782,Revenue,CAHD,North - Community based support,Other Small Contracts,Care Horizons,128.16, 28-Nov-2022
1783,Revenue,CAHD,North - S117,Other Small Contracts,Care Horizons,0.00, 28-Nov-2022
1784,Revenue,CAHD,Younger MH non-res purchasing,Other Small Contracts,Care Horizons,299.04, 28-Nov-2022
1785,Revenue,CAHD,Younger MH non-res purchasing,Other Small Contracts,Care Horizons,256.32, 28-Nov-2022
1786,Revenue,CAHD,South - Commissioned Services,Other Small Contracts,Care Unite Ltd t/a Home Instead Senior Care,850.08, 16-Nov-2022
1787,Revenue,CAHD,South - Commissioned Services,Other Small Contracts,Care Unite Ltd t/a Home Instead Senior Care,1700.16, 16-Nov-2022
1788,Revenue,CAHD,South - Commissioned Services,Other Small Contracts,Care Unite Ltd t/a Home Instead Senior Care,850.08, 16-Nov-2022
1789,Revenue,CAHD,South - Commissioned Services,Other Small Contracts,Care Unite Ltd t/a Home Instead Senior Care,698.28, 16-Nov-2022
1790,Revenue,CAHD,CSC - Care Leavers Independent Living,Independent Living,Caretech Community Services,6317.94, 04-Nov-2022
1791,Revenue,CAHD,CSC - Care Leavers Independent Living,Independent Living,Caretech Community Services,4821.30, 04-Nov-2022
1792,Revenue,CAHD,CSC - Care Leavers Independent Living,Independent Living,Caretech Community Services,2175.00, 04-Nov-2022
1793,Revenue,CAHD,CSC - Care Leavers Independent Living,Independent Living,Caretech Community Services,4982.01, 04-Nov-2022
1794,Revenue,CAHD,CSC - Care Leavers Independent Living,Independent Living,Caretech Community Services,1650.00, 04-Nov-2022
1795,Revenue,CAHD,CSC - Care Leavers Independent Living,Independent Living,Caretech Community Services,1125.00, 04-Nov-2022
1796,Revenue,CAHD,CSC - Care Leavers Independent Living,Independent Living,Caretech Community Services,4821.30, 04-Nov-2022
1797,Revenue,CAHD,CSC - Care Leavers Independent Living,Independent Living,Caretech Community Services,2250.00, 04-Nov-2022
1798,Revenue,CAHD,CSC - Care Leavers Independent Living,Independent Living,Caretech Community Services,4982.01, 04-Nov-2022
1799,Revenue,CAHD,CSC - Care Leavers Independent Living,Independent Living,Caretech Community Services,1275.00, 04-Nov-2022
